Workbook

Sheet Notes
A1: TheDMI Stochastic.xlsm
A2: Coded 2013-Jan 09 by Ronald McAllister (rpmac_xltt@sprynet.com)
A4: This Workbook demonstrates an EXCEL version of the ideas presented
A5: by Slawomir Bobrowski in an article titled "Camarilla Points"
A6: which appears in the March 2013 issue of
A7: "Technical Analysis of Stocks and Commodities" magazine.
A9: Acknowledgements:
B10: 2012-Nov-08 Ron McAllister (rpmac_xltt@sprynet.com)
C11: Special thanks to Mr. V. S., a MAC user, who brought to my attention that the green button on the InputPrice tab did not fuction properly on his MAC.
C12: This interaction with Mr. S. brought out two problems in the Mac environment: ActiveX controls are not supported, and GetOpenFileName dialog is not supported.
C13: Subsequently:
C14: > Replaced all green ActiveX buttons throughout the workbook with gray EXCEL FORM buttons which are supported on Mac and adjusted my VBA logic to match.
C15: > Modified code behind the ImportData button to test for MAC operating system and use a variation of Ron de Bruin's Applescript
C16: workaround for the shortcommings of the Windows GetOpenFileName function in the MAC environment.
C17: See Mr. deBruin's web page: http://www.rondebruin.nl/mac.htm for a thorough treatment of the subject
A19: CalculationsAndCharts construction Notes:
A20: 1 | C20: The chart presented here attempts to replicate the chart in Figure 1 from the article.
A21: 2 | C21: Price Data is plotted on the primary axis as candlesticks. The various background color areas were created using stacked bars.
C22: The floating range box is created with a range series stacked on top of a pillow series where the pillow series is plotted with "No Color" and fully transparent. So it disappears.
A23: 3 | C23: All data plotted in reverse order to get dates/times to read ascending left to right.
A24: 4 | C24: Scrolling the Camarilla cursor moves the control bar, and replots the chart to keep all of the Camarilla levels visible.
C25: However, it is possible to scroll the range box off the left edge of the plot and the trading days off the right edge of the plot.
A26: 5 | C26: Check boxes are provided to let you select which levels are actually displayed on the chart at any given time.
A28: Data for this EXCEL example:
B29: Due to contractual requirements, free data sites, like the Yahoo Finance History page, are allowed to display price history for the Dow Industrial Average
B30: as a series of pages, but these free sites are not allowed to provide history file downloads of the Dow Index. Consequently, the data used in this spreadsheet
B31: was obtained by way of a manual Copy and Paste from several pages of history display at one of the free sites.
C32: The Yahoo symbol for the Dow Industrial Average is ^DJI. Other sites use variations on the theme such as ^DJIA
A34: Price history for various STOCK symbols and some INDEX symbols can be downloaded as files from Yahoo Finance: http://finance.yahoo.com
A35: Enter a symbol and select "Historical Prices" from the left margin.
B36: You might want to copy the name and symbol text from the top of the history page to use as your downloaded file name.
A37: Then go to the bottom of the page and click "Download to Spreadsheet".
A38: Use the "Save As" option to save the file to your drive for later input processing. (See "Automated data import" below)
A39: Note: The resulting .csv file is in date-descending sequence (most recent first) and may be used in this spread sheet with out sorting.
A41: Automated data import
A42: The InputPriceData tab now has a button that will automate importing Price History data which you have previously downloaded to your hard drive from Yahoo Finance (.csv format please!)
A43: The VBA macro code behind this button uses the standard EXCEL file open dialog to allow you to navigate to the directory where you have stored the downloaded
A44: history files. You may then select the file you are interested in.
A45: Subsequent processing will adjust the Open, High, Low, and Close prices as indicated by the Adjusted Close values provided in the downloaded file.
A46: Both the Raw and the Adjusted data will be copied to the InputPriceData tab for use in this workbook.
A47: However, YOU must enter the symbol and description in cell A1 of the InputPriceData tab after you use the button: YAHOO history files DO NOT contain the symbol or a description!
A48: If you used the name and symbol copied from the top of the history page as your file name you may not need to adjust A1.
A49: Note: After the data has been transferred to this workbook, the source history file will be closed with out saving it so that it remains unchanged for future uses.
A51: Development Notes:
A52: 1 | C52: This workbook contains and uses VBA macros.
A53: 2 | C53: Input Data
C54: The data in this workbook is sorted date descending (most recent date at the top) and the formulas are built accordingly.
A56: Calculation and Chart Worksheet Usage Comments:
A57: 1 | C57: In General, Items in Bolded BLUE are items you may freely change to play what-if games.
C58: Be sure to have a backup copy of the spreadsheet before you alter anything else.
A59: 2 | C59: Several of the column formulas begin with "IF" logic that determines when there is sufficient data available for the subsequent calculations to be relevant. The cell will calculate to blank or the result of the calculation.
C60: In a couple of cases, this "IF" logic also sets starter values for subsequent smoothing calculations.
A61: 3 | C61: Data windowing can be performed by changing cell A11. Positive values logically "Pan" the data window represented by the Calculation sheet down the input sheet and back in time.
C62: This can have two side effects: First, data may fall outside of the fixed Y-axis scales and be clipped or fall well inside the Y-axis scales wasting a lot of chart vertical space.
C63: Second, you may move far enough back that you do not have sufficient data points to fill the left of the chart.
A64: 4 | C64: The VBA macros behind the Gray button address these Data Windowing problems and also resizes and vertically aligns all charts on the work sheet to match the Price chart
C65: and then horizontally adjusts the X-axis positions of all charts on the work sheet so that the corresponding data points align vertically.
C66: The macros behind the green button are sensitive to the user control values in cells A11 and A12, and also uses the computed values in cells A8, F11, and F12

Sheet InputPriceData
A1: Dow Jones Industrial Average (^DJIA)
B6: Available Input Data Rows | F6: Available Date Range:
B7: =COUNTA(B11:B65000) -> 360 | F7: From | G7: =OFFSET(B10,B7,0,1,1) -> 2011-08-04
F8: To | G8: =OFFSET(B10,1,0,1,1) -> 2013-01-09
B9: Raw Data Values | H9: Adjusted | I9: Adjustment | J9: Adjusted Values
A10: RelRow | B10: Date | C10: Open | D10: High | E10: Low | F10: Close | G10: Volume | H10: Close | I10: Factor | J10: Open | K10: High | L10: Low | M10: Close
A11: 1 | B11: 2013-01-09 | C11: 13329.92 | D11: 13416.55 | E11: 13329.08 | F11: 13390.51 | G11: 123059989 | H11: 13390.51 | I11: 1 | J11: 13329.92 | K11: 13416.55 | L11: 13329.08 | M11: 13390.51
A12: 2 | B12: 2013-01-08 | C12: 13377.42 | D12: 13377.42 | E12: 13293.13 | F12: 13328.85 | G12: 129516098 | H12: 13328.85 | I12: 1 | J12: 13377.42 | K12: 13377.42 | L12: 13293.13 | M12: 13328.85
A13: 3 | B13: 2013-01-07 | C13: 13436.13 | D13: 13436.13 | E13: 13343.32 | F13: 13384.29 | G13: 113063807 | H13: 13384.29 | I13: 1 | J13: 13436.13 | K13: 13436.13 | L13: 13343.32 | M13: 13384.29
A14: 4 | B14: 2013-01-04 | C14: 13391.05 | D14: 13447.11 | E14: 13376.23 | F14: 13435.21 | G14: 107541336 | H14: 13435.21 | I14: 1 | J14: 13391.05 | K14: 13447.11 | L14: 13376.23 | M14: 13435.21
A15: 5 | B15: 2013-01-03 | C15: 13413.01 | D15: 13430.6 | E15: 13358.3 | F15: 13391.36 | G15: 129609840 | H15: 13391.36 | I15: 1 | J15: 13413.01 | K15: 13430.6 | L15: 13358.3 | M15: 13391.36
A16: 6 | B16: 2013-01-02 | C16: 13104.3 | D16: 13412.71 | E16: 13104.3 | F16: 13412.55 | G16: 160045349 | H16: 13412.55 | I16: 1 | J16: 13104.3 | K16: 13412.71 | L16: 13104.3 | M16: 13412.55
A17: 7 | B17: 2012-12-31 | C17: 12938.19 | D17: 13109.13 | E17: 12883.89 | F17: 13104.14 | G17: 145734698 | H17: 13104.14 | I17: 1 | J17: 12938.19 | K17: 13109.13 | L17: 12883.89 | M17: 13104.14
A18: 8 | B18: 2012-12-28 | C18: 13095.08 | D18: 13095.46 | E18: 12926.86 | F18: 12938.11 | G18: 85919860 | H18: 12938.11 | I18: 1 | J18: 13095.08 | K18: 13095.46 | L18: 12926.86 | M18: 12938.11
A19: 9 | B19: 2012-12-27 | C19: 13114.97 | D19: 13141.74 | E19: 12964.08 | F19: 13096.31 | G19: 100147628 | H19: 13096.31 | I19: 1 | J19: 13114.97 | K19: 13141.74 | L19: 12964.08 | M19: 13096.31
A20: 10 | B20: 2012-12-26 | C20: 13138.85 | D20: 13174.88 | E20: 13076.87 | F20: 13114.59 | G20: 79406220 | H20: 13114.59 | I20: 1 | J20: 13138.85 | K20: 13174.88 | L20: 13076.87 | M20: 13114.59
A21: 11 | B21: 2012-12-24 | C21: 13190.15 | D21: 13190.38 | E21: 13128.55 | F21: 13139.08 | G21: 47704926 | H21: 13139.08 | I21: 1 | J21: 13190.15 | K21: 13190.38 | L21: 13128.55 | M21: 13139.08
A22: 12 | B22: 2012-12-21 | C22: 13309.95 | D22: 13309.95 | E22: 13122.53 | F22: 13190.84 | G22: 413145563 | H22: 13190.84 | I22: 1 | J22: 13309.95 | K22: 13309.95 | L22: 13122.53 | M22: 13190.84
A23: 13 | B23: 2012-12-20 | C23: 13246.67 | D23: 13314.64 | E23: 13216.03 | F23: 13311.72 | G23: 119499389 | H23: 13311.72 | I23: 1 | J23: 13246.67 | K23: 13314.64 | L23: 13216.03 | M23: 13311.72
A24: 14 | B24: 2012-12-19 | C24: 13351.04 | D24: 13357.7 | E24: 13251.74 | F24: 13251.97 | G24: 149016176 | H24: 13251.97 | I24: 1 | J24: 13351.04 | K24: 13357.7 | L24: 13251.74 | M24: 13251.97
A25: 15 | B25: 2012-12-18 | C25: 13236.61 | D25: 13365.86 | E25: 13232.58 | F25: 13350.96 | G25: 152923178 | H25: 13350.96 | I25: 1 | J25: 13236.61 | K25: 13365.86 | L25: 13232.58 | M25: 13350.96
A26: 16 | B26: 2012-12-17 | C26: 13135.17 | D26: 13244.33 | E26: 13134.63 | F26: 13235.39 | G26: 142964589 | H26: 13235.39 | I26: 1 | J26: 13135.17 | K26: 13244.33 | L26: 13134.63 | M26: 13235.39
A27: 17 | B27: 2012-12-14 | C27: 13170.8 | D27: 13190.41 | E27: 13118.46 | F27: 13135.01 | G27: 117601705 | H27: 13135.01 | I27: 1 | J27: 13170.8 | K27: 13190.41 | L27: 13118.46 | M27: 13135.01
A28: 18 | B28: 2012-12-13 | C28: 13241.38 | D28: 13264.41 | E28: 13147.19 | F28: 13170.72 | G28: 101181492 | H28: 13170.72 | I28: 1 | J28: 13241.38 | K28: 13264.41 | L28: 13147.19 | M28: 13170.72
A29: 19 | B29: 2012-12-12 | C29: 13250.05 | D29: 13329.44 | E29: 13227.44 | F29: 13245.45 | G29: 126332897 | H29: 13245.45 | I29: 1 | J29: 13250.05 | K29: 13329.44 | L29: 13227.44 | M29: 13245.45
A30: 20 | B30: 2012-12-11 | C30: 13170.34 | D30: 13306.57 | E30: 13170.34 | F30: 13248.44 | G30: 124485165 | H30: 13248.44 | I30: 1 | J30: 13170.34 | K30: 13306.57 | L30: 13170.34 | M30: 13248.44
A31: 21 | B31: 2012-12-10 | C31: 13154.89 | D31: 13195.35 | E31: 13139.08 | F31: 13169.88 | G31: 118501439 | H31: 13169.88 | I31: 1 | J31: 13154.89 | K31: 13195.35 | L31: 13139.08 | M31: 13169.88
A32: 22 | B32: 2012-12-07 | C32: 13072.87 | D32: 13157.28 | E32: 13072.87 | F32: 13155.13 | G32: 124082269 | H32: 13155.13 | I32: 1 | J32: 13072.87 | K32: 13157.28 | L32: 13072.87 | M32: 13155.13
A33: 23 | B33: 2012-12-06 | C33: 13026.19 | D33: 13076.88 | E33: 13007.84 | F33: 13074.04 | G33: 115270866 | H33: 13074.04 | I33: 1 | J33: 13026.19 | K33: 13076.88 | L33: 13007.84 | M33: 13074.04
A34: 24 | B34: 2012-12-05 | C34: 12948.96 | D34: 13089.11 | E34: 12923.44 | F34: 13034.49 | G34: 161208157 | H34: 13034.49 | I34: 1 | J34: 12948.96 | K34: 13089.11 | L34: 12923.44 | M34: 13034.49
A35: 25 | B35: 2012-12-04 | C35: 12966.45 | D35: 13022.51 | E35: 12940.07 | F35: 12951.78 | G35: 125211643 | H35: 12951.78 | I35: 1 | J35: 12966.45 | K35: 13022.51 | L35: 12940.07 | M35: 12951.78
A36: 26 | B36: 2012-12-03 | C36: 13027.73 | D36: 13087.32 | E36: 12959.42 | F36: 12965.6 | G36: 112889796 | H36: 12965.6 | I36: 1 | J36: 13027.73 | K36: 13087.32 | L36: 12959.42 | M36: 12965.6
A37: 27 | B37: 2012-11-30 | C37: 13022.05 | D37: 13053.74 | E37: 12988.68 | F37: 13025.58 | G37: 171059710 | H37: 13025.58 | I37: 1 | J37: 13022.05 | K37: 13053.74 | L37: 12988.68 | M37: 13025.58
A38: 28 | B38: 2012-11-29 | C38: 12977.35 | D38: 13062.56 | E38: 12961.92 | F38: 13021.82 | G38: 113165522 | H38: 13021.82 | I38: 1 | J38: 12977.35 | K38: 13062.56 | L38: 12961.92 | M38: 13021.82
A39: 29 | B39: 2012-11-28 | C39: 12875.56 | D39: 12989.1 | E39: 12765.32 | F39: 12985.11 | G39: 130958941 | H39: 12985.11 | I39: 1 | J39: 12875.56 | K39: 12989.1 | L39: 12765.32 | M39: 12985.11
A40: 30 | B40: 2012-11-27 | C40: 12963.38 | D40: 12980.19 | E40: 12868.26 | F40: 12878.13 | G40: 117884537 | H40: 12878.13 | I40: 1 | J40: 12963.38 | K40: 12980.19 | L40: 12868.26 | M40: 12878.13
A41: 31 | B41: 2012-11-26 | C41: 13008.3 | D41: 13008.45 | E41: 12900.17 | F41: 12967.37 | G41: 114350336 | H41: 12967.37 | I41: 1 | J41: 13008.3 | K41: 13008.45 | L41: 12900.17 | M41: 12967.37
A42: 32 | B42: 2012-11-23 | C42: 12833.13 | D42: 13011.45 | E42: 12832.98 | F42: 13009.68 | G42: 61081037 | H42: 13009.68 | I42: 1 | J42: 12833.13 | K42: 13011.45 | L42: 12832.98 | M42: 13009.68
A43: 33 | B43: 2012-11-21 | C43: 12788.36 | D43: 12845.99 | E43: 12786.13 | F43: 12836.89 | G43: 96181910 | H43: 12836.89 | I43: 1 | J43: 12788.36 | K43: 12845.99 | L43: 12786.13 | M43: 12836.89
A44: 34 | B44: 2012-11-20 | C44: 12790.89 | D44: 12808.56 | E44: 12701.07 | F44: 12788.51 | G44: 133975396 | H44: 12788.51 | I44: 1 | J44: 12790.89 | K44: 12808.56 | L44: 12701.07 | M44: 12788.51
A45: 35 | B45: 2012-11-19 | C45: 12590.23 | D45: 12796.19 | E45: 12590.23 | F45: 12795.96 | G45: 136857919 | H45: 12795.96 | I45: 1 | J45: 12590.23 | K45: 12796.19 | L45: 12590.23 | M45: 12795.96
A46: 36 | B46: 2012-11-16 | C46: 12542.31 | D46: 12604.17 | E46: 12471.49 | F46: 12588.31 | G46: 197088803 | H46: 12588.31 | I46: 1 | J46: 12542.31 | K46: 12604.17 | L46: 12471.49 | M46: 12588.31
A47: 37 | B47: 2012-11-15 | C47: 12571.1 | D47: 12600.59 | E47: 12496.56 | F47: 12542.38 | G47: 129134736 | H47: 12542.38 | I47: 1 | J47: 12571.1 | K47: 12600.59 | L47: 12496.56 | M47: 12542.38
A48: 38 | B48: 2012-11-14 | C48: 12746.54 | D48: 12797.73 | E48: 12542.68 | F48: 12570.95 | G48: 162158986 | H48: 12570.95 | I48: 1 | J48: 12746.54 | K48: 12797.73 | L48: 12542.68 | M48: 12570.95
A49: 39 | B49: 2012-11-13 | C49: 12808.71 | D49: 12898.25 | E49: 12748.51 | F49: 12756.18 | G49: 140450118 | H49: 12756.18 | I49: 1 | J49: 12808.71 | K49: 12898.25 | L49: 12748.51 | M49: 12756.18
A50: 40 | B50: 2012-11-12 | C50: 12815.93 | D50: 12861.28 | E50: 12783 | F50: 12815.08 | G50: 62352821 | H50: 12815.08 | I50: 1 | J50: 12815.93 | K50: 12861.28 | L50: 12783 | M50: 12815.08
A51: 41 | B51: 2012-11-09 | C51: 12811.17 | D51: 12890.19 | E51: 12743.39 | F51: 12815.39 | G51: 131659388 | H51: 12815.39 | I51: 1 | J51: 12811.17 | K51: 12890.19 | L51: 12743.39 | M51: 12815.39
A52: 42 | B52: 2012-11-08 | C52: 12932.81 | D52: 12980.23 | E52: 12811.24 | F52: 12811.32 | G52: 138309952 | H52: 12811.32 | I52: 1 | J52: 12932.81 | K52: 12980.23 | L52: 12811.24 | M52: 12811.32
A53: 43 | B53: 2012-11-07 | C53: 13228.24 | D53: 13228.32 | E53: 12876.6 | F53: 12932.73 | G53: 164229095 | H53: 12932.73 | I53: 1 | J53: 13228.24 | K53: 13228.32 | L53: 12876.6 | M53: 12932.73
A54: 44 | B54: 2012-11-06 | C54: 13113.89 | D54: 13290.75 | E54: 13112.9 | F54: 13245.68 | G54: 105704809 | H54: 13245.68 | I54: 1 | J54: 13113.89 | K54: 13290.75 | L54: 13112.9 | M54: 13245.68
A55: 45 | B55: 2012-11-05 | C55: 13092.28 | D55: 13140.58 | E55: 13038.71 | F55: 13112.44 | G55: 95039931 | H55: 13112.44 | I55: 1 | J55: 13092.28 | K55: 13140.58 | L55: 13038.71 | M55: 13112.44
A56: 46 | B56: 2012-11-02 | C56: 13233.39 | D56: 13289.45 | E56: 13076.57 | F56: 13093.16 | G56: 137628823 | H56: 13093.16 | I56: 1 | J56: 13233.39 | K56: 13289.45 | L56: 13076.57 | M56: 13093.16
A57: 47 | B57: 2012-11-01 | C57: 13099.19 | D57: 13273.71 | E57: 13099.11 | F57: 13232.62 | G57: 139224221 | H57: 13232.62 | I57: 1 | J57: 13099.19 | K57: 13273.71 | L57: 13099.11 | M57: 13232.62
A58: 48 | B58: 2012-10-31 | C58: 13107.44 | D58: 13189.08 | E58: 13052.07 | F58: 13096.46 | G58: 138139226 | H58: 13096.46 | I58: 1 | J58: 13107.44 | K58: 13189.08 | L58: 13052.07 | M58: 13096.46
A59: 49 | B59: 2012-10-26 | C59: 13104.22 | D59: 13151.72 | E59: 13040.17 | F59: 13107.21 | G59: 134642113 | H59: 13107.21 | I59: 1 | J59: 13104.22 | K59: 13151.72 | L59: 13040.17 | M59: 13107.21
A60: 50 | B60: 2012-10-25 | C60: 13079.64 | D60: 13164.52 | E60: 13039.86 | F60: 13103.68 | G60: 113657989 | H60: 13103.68 | I60: 1 | J60: 13079.64 | K60: 13164.52 | L60: 13039.86 | M60: 13103.68
A61: 51 | B61: 2012-10-24 | C61: 13103.53 | D61: 13155.21 | E61: 13063.63 | F61: 13077.34 | G61: 110626209 | H61: 13077.34 | I61: 1 | J61: 13103.53 | K61: 13155.21 | L61: 13063.63 | M61: 13077.34
A62: 52 | B62: 2012-10-23 | C62: 13344.9 | D62: 13344.9 | E62: 13083.28 | F62: 13102.53 | G62: 122214657 | H62: 13102.53 | I62: 1 | J62: 13344.9 | K62: 13344.9 | L62: 13083.28 | M62: 13102.53
A63: 53 | B63: 2012-10-22 | C63: 13344.28 | D63: 13368.55 | E63: 13235.15 | F63: 13345.89 | G63: 121570469 | H63: 13345.89 | I63: 1 | J63: 13344.28 | K63: 13368.55 | L63: 13235.15 | M63: 13345.89
A64: 54 | B64: 2012-10-19 | C64: 13545.33 | D64: 13545.49 | E64: 13312.22 | F64: 13343.51 | G64: 238951163 | H64: 13343.51 | I64: 1 | J64: 13545.33 | K64: 13545.49 | L64: 13312.22 | M64: 13343.51
A65: 55 | B65: 2012-10-18 | C65: 13553.24 | D65: 13588.73 | E65: 13510.93 | F65: 13548.94 | G65: 127752120 | H65: 13548.94 | I65: 1 | J65: 13553.24 | K65: 13588.73 | L65: 13510.93 | M65: 13548.94
A66: 56 | B66: 2012-10-17 | C66: 13539.63 | D66: 13561.65 | E66: 13468.9 | F66: 13557 | G66: 135547894 | H66: 13557 | I66: 1 | J66: 13539.63 | K66: 13561.65 | L66: 13468.9 | M66: 13557
A67: 57 | B67: 2012-10-16 | C67: 13423.84 | D67: 13556.37 | E67: 13423.76 | F67: 13551.78 | G67: 109793745 | H67: 13551.78 | I67: 1 | J67: 13423.84 | K67: 13556.37 | L67: 13423.76 | M67: 13551.78
A68: 58 | B68: 2012-10-15 | C68: 13329.54 | D68: 13437.66 | E68: 13325.93 | F68: 13424.23 | G68: 114823445 | H68: 13424.23 | I68: 1 | J68: 13329.54 | K68: 13437.66 | L68: 13325.93 | M68: 13424.23
A69: 59 | B69: 2012-10-12 | C69: 13325.62 | D69: 13401.32 | E69: 13296.43 | F69: 13328.85 | G69: 113188443 | H69: 13328.85 | I69: 1 | J69: 13325.62 | K69: 13401.32 | L69: 13296.43 | M69: 13328.85
A70: 60 | B70: 2012-10-11 | C70: 13346.28 | D70: 13428.49 | E70: 13326.12 | F70: 13326.39 | G70: 86566812 | H70: 13326.39 | I70: 1 | J70: 13346.28 | K70: 13428.49 | L70: 13326.12 | M70: 13326.39
A71: 61 | B71: 2012-10-10 | C71: 13473.53 | D71: 13478.83 | E71: 13327.62 | F71: 13344.97 | G71: 101115655 | H71: 13344.97 | I71: 1 | J71: 13473.53 | K71: 13478.83 | L71: 13327.62 | M71: 13344.97
A72: 62 | B72: 2012-10-09 | C72: 13582.88 | D72: 13592.33 | E72: 13473.31 | F72: 13473.53 | G72: 103593902 | H72: 13473.53 | I72: 1 | J72: 13582.88 | K72: 13592.33 | L72: 13473.31 | M72: 13473.53
A73: 63 | B73: 2012-10-08 | C73: 13610.38 | D73: 13610.38 | E73: 13552.09 | F73: 13583.65 | G73: 71181046 | H73: 13583.65 | I73: 1 | J73: 13610.38 | K73: 13610.38 | L73: 13552.09 | M73: 13583.65
A74: 64 | B74: 2012-10-05 | C74: 13569.18 | D74: 13661.87 | E74: 13568.75 | F74: 13610.15 | G74: 115443521 | H74: 13610.15 | I74: 1 | J74: 13569.18 | K74: 13661.87 | L74: 13568.75 | M74: 13610.15
A75: 65 | B75: 2012-10-04 | C75: 13495.18 | D75: 13594.33 | E75: 13495.18 | F75: 13575.36 | G75: 106377384 | H75: 13575.36 | I75: 1 | J75: 13495.18 | K75: 13594.33 | L75: 13495.18 | M75: 13575.36
A76: 66 | B76: 2012-10-03 | C76: 13479.21 | D76: 13536.27 | E76: 13439.12 | F76: 13494.61 | G76: 103856537 | H76: 13494.61 | I76: 1 | J76: 13479.21 | K76: 13536.27 | L76: 13439.12 | M76: 13494.61
A77: 67 | B77: 2012-10-02 | C77: 13515.3 | D77: 13567.06 | E77: 13424.92 | F77: 13482.36 | G77: 90703696 | H77: 13482.36 | I77: 1 | J77: 13515.3 | K77: 13567.06 | L77: 13424.92 | M77: 13482.36
A78: 68 | B78: 2012-10-01 | C78: 13437.66 | D78: 13598.25 | E78: 13437.66 | F78: 13515.11 | G78: 106118869 | H78: 13515.11 | I78: 1 | J78: 13437.66 | K78: 13598.25 | L78: 13437.66 | M78: 13515.11
A79: 69 | B79: 2012-09-28 | C79: 13485.89 | D79: 13487.66 | E79: 13367.27 | F79: 13437.13 | G79: 146737668 | H79: 13437.13 | I79: 1 | J79: 13485.89 | K79: 13487.66 | L79: 13367.27 | M79: 13437.13
A80: 70 | B80: 2012-09-27 | C80: 13413.47 | D80: 13522.83 | E80: 13413.47 | F80: 13485.97 | G80: 113951488 | H80: 13485.97 | I80: 1 | J80: 13413.47 | K80: 13522.83 | L80: 13413.47 | M80: 13485.97
A81: 71 | B81: 2012-09-26 | C81: 13458.63 | D81: 13480.37 | E81: 13406.91 | F81: 13413.51 | G81: 124334563 | H81: 13413.51 | I81: 1 | J81: 13458.63 | K81: 13480.37 | L81: 13406.91 | M81: 13413.51
A82: 72 | B82: 2012-09-25 | C82: 13559.92 | D82: 13620.21 | E82: 13457.25 | F82: 13457.55 | G82: 138479667 | H82: 13457.55 | I82: 1 | J82: 13559.92 | K82: 13620.21 | L82: 13457.25 | M82: 13457.55
A83: 73 | B83: 2012-09-24 | C83: 13577.85 | D83: 13601.9 | E83: 13521.68 | F83: 13558.92 | G83: 120328750 | H83: 13558.92 | I83: 1 | J83: 13577.85 | K83: 13601.9 | L83: 13521.68 | M83: 13558.92
A84: 74 | B84: 2012-09-21 | C84: 13597.24 | D84: 13647.1 | E84: 13571.53 | F84: 13579.47 | G84: 429592201 | H84: 13579.47 | I84: 1 | J84: 13597.24 | K84: 13647.1 | L84: 13571.53 | M84: 13579.47
A85: 75 | B85: 2012-09-20 | C85: 13575.17 | D85: 13599.02 | E85: 13503 | F85: 13596.93 | G85: 117899776 | H85: 13596.93 | I85: 1 | J85: 13575.17 | K85: 13599.02 | L85: 13503 | M85: 13596.93
A86: 76 | B86: 2012-09-19 | C86: 13565.41 | D86: 13626.48 | E86: 13556.74 | F86: 13577.96 | G86: 116203041 | H86: 13577.96 | I86: 1 | J86: 13565.41 | K86: 13626.48 | L86: 13556.74 | M86: 13577.96
A87: 77 | B87: 2012-09-18 | C87: 13552.33 | D87: 13582.12 | E87: 13517.81 | F87: 13564.64 | G87: 120527119 | H87: 13564.64 | I87: 1 | J87: 13552.33 | K87: 13582.12 | L87: 13517.81 | M87: 13564.64
A88: 78 | B88: 2012-09-17 | C88: 13588.57 | D88: 13593.15 | E88: 13526.67 | F88: 13553.1 | G88: 128004490 | H88: 13553.1 | I88: 1 | J88: 13588.57 | K88: 13593.15 | L88: 13526.67 | M88: 13553.1
A89: 79 | B89: 2012-09-14 | C89: 13540.4 | D89: 13653.24 | E89: 13533.94 | F89: 13593.37 | G89: 184571677 | H89: 13593.37 | I89: 1 | J89: 13540.4 | K89: 13653.24 | L89: 13533.94 | M89: 13593.37
A90: 80 | B90: 2012-09-13 | C90: 13329.71 | D90: 13573.33 | E90: 13325.11 | F90: 13539.86 | G90: 151747046 | H90: 13539.86 | I90: 1 | J90: 13329.71 | K90: 13573.33 | L90: 13325.11 | M90: 13539.86
A91: 81 | B91: 2012-09-12 | C91: 13321.62 | D91: 13373.62 | E91: 13317.52 | F91: 13333.35 | G91: 111090714 | H91: 13333.35 | I91: 1 | J91: 13321.62 | K91: 13373.62 | L91: 13317.52 | M91: 13333.35
A92: 82 | B92: 2012-09-11 | C92: 13254.6 | D92: 13354.34 | E92: 13253.21 | F92: 13323.36 | G92: 104895689 | H92: 13323.36 | I92: 1 | J92: 13254.6 | K92: 13354.34 | L92: 13253.21 | M92: 13323.36
A93: 83 | B93: 2012-09-10 | C93: 13308.56 | D93: 13324.1 | E93: 13251.39 | F93: 13254.29 | G93: 123781470 | H93: 13254.29 | I93: 1 | J93: 13308.56 | K93: 13324.1 | L93: 13251.39 | M93: 13254.29
A94: 84 | B94: 2012-09-07 | C94: 13289.53 | D94: 13320.27 | E94: 13266.22 | F94: 13306.64 | G94: 140693615 | H94: 13306.64 | I94: 1 | J94: 13289.53 | K94: 13320.27 | L94: 13266.22 | M94: 13306.64
A95: 85 | B95: 2012-09-06 | C95: 13045.23 | D95: 13294.13 | E95: 13045.08 | F95: 13292 | G95: 128623258 | H95: 13292 | I95: 1 | J95: 13045.23 | K95: 13294.13 | L95: 13045.08 | M95: 13292
A96: 86 | B96: 2012-09-05 | C96: 13036.09 | D96: 13095.91 | E96: 13018.74 | F96: 13047.48 | G96: 92183235 | H96: 13047.48 | I96: 1 | J96: 13036.09 | K96: 13095.91 | L96: 13018.74 | M96: 13047.48
A97: 87 | B97: 2012-09-04 | C97: 13092.15 | D97: 13092.39 | E97: 12977.09 | F97: 13035.94 | G97: 103900590 | H97: 13035.94 | I97: 1 | J97: 13092.15 | K97: 13092.39 | L97: 12977.09 | M97: 13035.94
A98: 88 | B98: 2012-08-31 | C98: 13002.72 | D98: 13151.87 | E98: 13002.64 | F98: 13090.84 | G98: 119752154 | H98: 13090.84 | I98: 1 | J98: 13002.72 | K98: 13151.87 | L98: 13002.64 | M98: 13090.84
A99: 89 | B99: 2012-08-30 | C99: 13101.29 | D99: 13101.37 | E99: 12978.91 | F99: 13000.71 | G99: 89963994 | H99: 13000.71 | I99: 1 | J99: 13101.29 | K99: 13101.37 | L99: 12978.91 | M99: 13000.71
A100: 90 | B100: 2012-08-29 | C100: 13103.46 | D100: 13144.81 | E100: 13081.27 | F100: 13107.48 | G100: 89892260 | H100: 13107.48 | I100: 1 | J100: 13103.46 | K100: 13144.81 | L100: 13081.27 | M100: 13107.48
A101: 91 | B101: 2012-08-28 | C101: 13122.74 | D101: 13147.32 | E101: 13081.12 | F101: 13102.99 | G101: 81625855 | H101: 13102.99 | I101: 1 | J101: 13122.74 | K101: 13147.32 | L101: 13081.12 | M101: 13102.99
A102: 92 | B102: 2012-08-27 | C102: 13157.74 | D102: 13176.17 | E102: 13115.46 | F102: 13124.67 | G102: 96068237 | H102: 13124.67 | I102: 1 | J102: 13157.74 | K102: 13176.17 | L102: 13115.46 | M102: 13124.67
A103: 93 | B103: 2012-08-24 | C103: 13052.82 | D103: 13175.51 | E103: 13027.2 | F103: 13157.97 | G103: 86772375 | H103: 13157.97 | I103: 1 | J103: 13052.82 | K103: 13175.51 | L103: 13027.2 | M103: 13157.97
A104: 94 | B104: 2012-08-23 | C104: 13171.37 | D104: 13171.37 | E104: 13046.46 | F104: 13057.46 | G104: 101411074 | H104: 13057.46 | I104: 1 | J104: 13171.37 | K104: 13171.37 | L104: 13046.46 | M104: 13057.46
A105: 95 | B105: 2012-08-22 | C105: 13198.31 | D105: 13205.06 | E105: 13120.34 | F105: 13172.76 | G105: 111213843 | H105: 13172.76 | I105: 1 | J105: 13198.31 | K105: 13205.06 | L105: 13120.34 | M105: 13172.76
A106: 96 | B106: 2012-08-21 | C106: 13272.1 | D106: 13330.76 | E106: 13186.6 | F106: 13203.58 | G106: 117004724 | H106: 13203.58 | I106: 1 | J106: 13272.1 | K106: 13330.76 | L106: 13186.6 | M106: 13203.58
A107: 97 | B107: 2012-08-20 | C107: 13274.58 | D107: 13276.15 | E107: 13230.06 | F107: 13271.64 | G107: 87534968 | H107: 13271.64 | I107: 1 | J107: 13274.58 | K107: 13276.15 | L107: 13230.06 | M107: 13271.64
A108: 98 | B108: 2012-08-17 | C108: 13251.2 | D108: 13281.32 | E108: 13244.85 | F108: 13275.2 | G108: 138020795 | H108: 13275.2 | I108: 1 | J108: 13251.2 | K108: 13281.32 | L108: 13244.85 | M108: 13275.2
A109: 99 | B109: 2012-08-16 | C109: 13163.24 | D109: 13269.35 | E109: 13145.85 | F109: 13250.11 | G109: 114562583 | H109: 13250.11 | I109: 1 | J109: 13163.24 | K109: 13269.35 | L109: 13145.85 | M109: 13250.11
A110: 100 | B110: 2012-08-15 | C110: 13157.47 | D110: 13192.89 | E110: 13138.23 | F110: 13164.78 | G110: 74845587 | H110: 13164.78 | I110: 1 | J110: 13157.47 | K110: 13192.89 | L110: 13138.23 | M110: 13164.78
A111: 101 | B111: 2012-08-14 | C111: 13168.11 | D111: 13223.01 | E111: 13142.1 | F111: 13172.14 | G111: 84392838 | H111: 13172.14 | I111: 1 | J111: 13168.11 | K111: 13223.01 | L111: 13142.1 | M111: 13172.14
A112: 102 | B112: 2012-08-13 | C112: 13204.93 | D112: 13205.01 | E112: 13112.94 | F112: 13169.43 | G112: 67537123 | H112: 13169.43 | I112: 1 | J112: 13204.93 | K112: 13205.01 | L112: 13112.94 | M112: 13169.43
A113: 103 | B113: 2012-08-10 | C113: 13163.15 | D113: 13208.22 | E113: 13094.96 | F113: 13207.95 | G113: 86625628 | H113: 13207.95 | I113: 1 | J113: 13163.15 | K113: 13208.22 | L113: 13094.96 | M113: 13207.95
A114: 104 | B114: 2012-08-09 | C114: 13174.73 | D114: 13200.23 | E114: 13125.09 | F114: 13165.19 | G114: 83547970 | H114: 13165.19 | I114: 1 | J114: 13174.73 | K114: 13200.23 | L114: 13125.09 | M114: 13165.19
A115: 105 | B115: 2012-08-08 | C115: 13158.1 | D115: 13202.65 | E115: 13115.24 | F115: 13175.64 | G115: 84882333 | H115: 13175.64 | I115: 1 | J115: 13158.1 | K115: 13202.65 | L115: 13115.24 | M115: 13175.64
A116: 106 | B116: 2012-08-07 | C116: 13118.65 | D116: 13215.97 | E116: 13118.42 | F116: 13168.6 | G116: 95241397 | H116: 13168.6 | I116: 1 | J116: 13118.65 | K116: 13215.97 | L116: 13118.42 | M116: 13168.6
A117: 107 | B117: 2012-08-06 | C117: 13099.88 | D117: 13187.28 | E117: 13099.72 | F117: 13117.51 | G117: 84256674 | H117: 13117.51 | I117: 1 | J117: 13099.88 | K117: 13187.28 | L117: 13099.72 | M117: 13117.51
A118: 108 | B118: 2012-08-03 | C118: 12884.82 | D118: 13133.18 | E118: 12884.82 | F118: 13096.17 | G118: 112391986 | H118: 13096.17 | I118: 1 | J118: 12884.82 | K118: 13133.18 | L118: 12884.82 | M118: 13096.17
A119: 109 | B119: 2012-08-02 | C119: 12969.7 | D119: 12969.85 | E119: 12778.9 | F119: 12878.88 | G119: 112724676 | H119: 12878.88 | I119: 1 | J119: 12969.7 | K119: 12969.85 | L119: 12778.9 | M119: 12878.88
A120: 110 | B120: 2012-08-01 | C120: 13007.47 | D120: 13074.83 | E120: 12951.16 | F120: 12971.06 | G120: 132781673 | H120: 12971.06 | I120: 1 | J120: 13007.47 | K120: 13074.83 | L120: 12951.16 | M120: 12971.06
A121: 111 | B121: 2012-07-31 | C121: 13071.72 | D121: 13082.66 | E121: 13006.48 | F121: 13008.68 | G121: 125597835 | H121: 13008.68 | I121: 1 | J121: 13071.72 | K121: 13082.66 | L121: 13006.48 | M121: 13008.68
A122: 112 | B122: 2012-07-30 | C122: 13075.35 | D122: 13128.64 | E122: 13042.85 | F122: 13073.01 | G122: 91574327 | H122: 13073.01 | I122: 1 | J122: 13075.35 | K122: 13128.64 | L122: 13042.85 | M122: 13073.01
A123: 113 | B123: 2012-07-27 | C123: 12888.91 | D123: 13117.74 | E123: 12888.53 | F123: 13075.66 | G123: 161495423 | H123: 13075.66 | I123: 1 | J123: 12888.91 | K123: 13117.74 | L123: 12888.53 | M123: 13075.66
A124: 114 | B124: 2012-07-26 | C124: 12680.59 | D124: 12931.22 | E124: 12680.59 | F124: 12887.93 | G124: 133605095 | H124: 12887.93 | I124: 1 | J124: 12680.59 | K124: 12931.22 | L124: 12680.59 | M124: 12887.93
A125: 115 | B125: 2012-07-25 | C125: 12617.77 | D125: 12732.77 | E125: 12617.62 | F125: 12676.05 | G125: 126984523 | H125: 12676.05 | I125: 1 | J125: 12617.77 | K125: 12732.77 | L125: 12617.62 | M125: 12676.05
A126: 116 | B126: 2012-07-24 | C126: 12720.93 | D126: 12730.09 | E126: 12521.84 | F126: 12617.32 | G126: 131409746 | H126: 12617.32 | I126: 1 | J126: 12720.93 | K126: 12730.09 | L126: 12521.84 | M126: 12617.32
A127: 117 | B127: 2012-07-23 | C127: 12820.45 | D127: 12820.45 | E127: 12583.41 | F127: 12721.46 | G127: 137759645 | H127: 12721.46 | I127: 1 | J127: 12820.45 | K127: 12820.45 | L127: 12583.41 | M127: 12721.46
A128: 118 | B128: 2012-07-20 | C128: 12942.68 | D128: 12942.83 | E128: 12810.35 | F128: 12822.57 | G128: 210735664 | H128: 12822.57 | I128: 1 | J128: 12942.68 | K128: 12942.83 | L128: 12810.35 | M128: 12822.57
A129: 119 | B129: 2012-07-19 | C129: 12909.61 | D129: 12977.57 | E129: 12889.93 | F129: 12943.36 | G129: 137874680 | H129: 12943.36 | I129: 1 | J129: 12909.61 | K129: 12977.57 | L129: 12889.93 | M129: 12943.36
A130: 120 | B130: 2012-07-18 | C130: 12796.98 | D130: 12921.94 | E130: 12754.61 | F130: 12908.7 | G130: 130059770 | H130: 12908.7 | I130: 1 | J130: 12796.98 | K130: 12921.94 | L130: 12754.61 | M130: 12908.7
A131: 121 | B131: 2012-07-17 | C131: 12728.73 | D131: 12829.23 | E131: 12645.1 | F131: 12805.54 | G131: 119000691 | H131: 12805.54 | I131: 1 | J131: 12728.73 | K131: 12829.23 | L131: 12645.1 | M131: 12805.54
A132: 122 | B132: 2012-07-16 | C132: 12776.33 | D132: 12779.58 | E132: 12690.05 | F132: 12727.21 | G132: 93493918 | H132: 12727.21 | I132: 1 | J132: 12776.33 | K132: 12779.58 | L132: 12690.05 | M132: 12727.21
A133: 123 | B133: 2012-07-13 | C133: 12573.73 | D133: 12784.73 | E133: 12573.04 | F133: 12777.09 | G133: 121079336 | H133: 12777.09 | I133: 1 | J133: 12573.73 | K133: 12784.73 | L133: 12573.04 | M133: 12777.09
A134: 124 | B134: 2012-07-12 | C134: 12602.71 | D134: 12630.64 | E134: 12492.25 | F134: 12573.27 | G134: 142570033 | H134: 12573.27 | I134: 1 | J134: 12602.71 | K134: 12630.64 | L134: 12492.25 | M134: 12573.27
A135: 125 | B135: 2012-07-11 | C135: 12653.04 | D135: 12661.97 | E135: 12534.33 | F135: 12604.53 | G135: 128422157 | H135: 12604.53 | I135: 1 | J135: 12653.04 | K135: 12661.97 | L135: 12534.33 | M135: 12604.53
A136: 126 | B136: 2012-07-10 | C136: 12733.87 | D136: 12830.29 | E136: 12606.91 | F136: 12653.12 | G136: 114500727 | H136: 12653.12 | I136: 1 | J136: 12733.87 | K136: 12830.29 | L136: 12606.91 | M136: 12653.12
A137: 127 | B137: 2012-07-09 | C137: 12772.02 | D137: 12772.02 | E137: 12686.57 | F137: 12736.29 | G137: 98674148 | H137: 12736.29 | I137: 1 | J137: 12772.02 | K137: 12772.02 | L137: 12686.57 | M137: 12736.29
A138: 128 | B138: 2012-07-06 | C138: 12889.4 | D138: 12889.4 | E138: 12702.99 | F138: 12772.47 | G138: 96277887 | H138: 12772.47 | I138: 1 | J138: 12889.4 | K138: 12889.4 | L138: 12702.99 | M138: 12772.47
A139: 129 | B139: 2012-07-05 | C139: 12941.85 | D139: 12961.3 | E139: 12852.24 | F139: 12896.67 | G139: 97418925 | H139: 12896.67 | I139: 1 | J139: 12941.85 | K139: 12961.3 | L139: 12852.24 | M139: 12896.67
A140: 130 | B140: 2012-07-03 | C140: 12868.06 | D140: 12946.2 | E140: 12845.28 | F140: 12943.82 | G140: 63833360 | H140: 12943.82 | I140: 1 | J140: 12868.06 | K140: 12946.2 | L140: 12845.28 | M140: 12943.82
A141: 131 | B141: 2012-07-02 | C141: 12879.71 | D141: 12902.12 | E141: 12795.48 | F141: 12871.39 | G141: 109134047 | H141: 12871.39 | I141: 1 | J141: 12879.71 | K141: 12902.12 | L141: 12795.48 | M141: 12871.39
A142: 132 | B142: 2012-06-29 | C142: 12604.6 | D142: 12880.39 | E142: 12604.53 | F142: 12880.09 | G142: 191566814 | H142: 12880.09 | I142: 1 | J142: 12604.6 | K142: 12880.39 | L142: 12604.53 | M142: 12880.09
A143: 133 | B143: 2012-06-28 | C143: 12626.25 | D143: 12626.25 | E143: 12450.17 | F143: 12602.26 | G143: 125864695 | H143: 12602.26 | I143: 1 | J143: 12626.25 | K143: 12626.25 | L143: 12450.17 | M143: 12602.26
A144: 134 | B144: 2012-06-27 | C144: 12532.93 | D144: 12646.87 | E144: 12532.71 | F144: 12627.01 | G144: 97933787 | H144: 12627.01 | I144: 1 | J144: 12532.93 | K144: 12646.87 | L144: 12532.71 | M144: 12627.01
A145: 135 | B145: 2012-06-26 | C145: 12503.57 | D145: 12576.41 | E145: 12452.03 | F145: 12534.67 | G145: 109263881 | H145: 12534.67 | I145: 1 | J145: 12503.57 | K145: 12576.41 | L145: 12452.03 | M145: 12534.67
A146: 136 | B146: 2012-06-25 | C146: 12639.8 | D146: 12639.87 | E146: 12458.01 | F146: 12502.66 | G146: 134067966 | H146: 12502.66 | I146: 1 | J146: 12639.8 | K146: 12639.87 | L146: 12458.01 | M146: 12502.66
A147: 137 | B147: 2012-06-22 | C147: 12574.82 | D147: 12674.08 | E147: 12574.67 | F147: 12640.78 | G147: 209984909 | H147: 12640.78 | I147: 1 | J147: 12574.82 | K147: 12674.08 | L147: 12574.67 | M147: 12640.78
A148: 138 | B148: 2012-06-21 | C148: 12823.1 | D148: 12857.39 | E148: 12561.46 | F148: 12573.57 | G148: 146742705 | H148: 12573.57 | I148: 1 | J148: 12823.1 | K148: 12857.39 | L148: 12561.46 | M148: 12573.57
A149: 139 | B149: 2012-06-20 | C149: 12837.1 | D149: 12877.18 | E149: 12744.92 | F149: 12824.39 | G149: 119073026 | H149: 12824.39 | I149: 1 | J149: 12837.1 | K149: 12877.18 | L149: 12744.92 | M149: 12824.39
A150: 140 | B150: 2012-06-19 | C150: 12744.62 | D150: 12898.94 | E150: 12744.47 | F150: 12837.33 | G150: 125122945 | H150: 12837.33 | I150: 1 | J150: 12744.62 | K150: 12898.94 | L150: 12744.47 | M150: 12837.33
A151: 141 | B151: 2012-06-18 | C151: 12767.02 | D151: 12781.93 | E151: 12696.18 | F151: 12741.82 | G151: 111268385 | H151: 12741.82 | I151: 1 | J151: 12767.02 | K151: 12781.93 | L151: 12696.18 | M151: 12741.82
A152: 142 | B152: 2012-06-15 | C152: 12652.21 | D152: 12774.7 | E152: 12651.38 | F152: 12767.17 | G152: 281556832 | H152: 12767.17 | I152: 1 | J152: 12652.21 | K152: 12774.7 | L152: 12651.38 | M152: 12767.17
A153: 143 | B153: 2012-06-14 | C153: 12497.89 | D153: 12698.68 | E153: 12497.66 | F153: 12651.91 | G153: 128635556 | H153: 12651.91 | I153: 1 | J153: 12497.89 | K153: 12698.68 | L153: 12497.66 | M153: 12651.91
A154: 144 | B154: 2012-06-13 | C154: 12566.38 | D154: 12598.25 | E154: 12453.69 | F154: 12496.38 | G154: 125772145 | H154: 12496.38 | I154: 1 | J154: 12566.38 | K154: 12598.25 | L154: 12453.69 | M154: 12496.38
A155: 145 | B155: 2012-06-12 | C155: 12412.07 | D155: 12577.02 | E155: 12411.91 | F155: 12573.8 | G155: 110883749 | H155: 12573.8 | I155: 1 | J155: 12412.07 | K155: 12577.02 | L155: 12411.91 | M155: 12573.8
A156: 146 | B156: 2012-06-11 | C156: 12553.81 | D156: 12650.47 | E156: 12398.48 | F156: 12411.23 | G156: 121032997 | H156: 12411.23 | I156: 1 | J156: 12553.81 | K156: 12650.47 | L156: 12398.48 | M156: 12411.23
A157: 147 | B157: 2012-06-08 | C157: 12460.81 | D157: 12554.2 | E157: 12398.44 | F157: 12554.2 | G157: 110998035 | H157: 12554.2 | I157: 1 | J157: 12460.81 | K157: 12554.2 | L157: 12398.44 | M157: 12554.2
A158: 148 | B158: 2012-06-07 | C158: 12416.53 | D158: 12555.26 | E158: 12416.53 | F158: 12460.96 | G158: 130686683 | H158: 12460.96 | I158: 1 | J158: 12416.53 | K158: 12555.26 | L158: 12416.53 | M158: 12460.96
A159: 149 | B159: 2012-06-06 | C159: 12125 | D159: 12414.79 | E159: 12125 | F159: 12414.79 | G159: 140068330 | H159: 12414.79 | I159: 1 | J159: 12125 | K159: 12414.79 | L159: 12125 | M159: 12414.79
A160: 150 | B160: 2012-06-05 | C160: 12101.08 | D160: 12147.55 | E160: 12072.17 | F160: 12127.95 | G160: 108935725 | H160: 12127.95 | I160: 1 | J160: 12101.08 | K160: 12147.55 | L160: 12072.17 | M160: 12127.95
A161: 151 | B161: 2012-06-04 | C161: 12119.85 | D161: 12143.69 | E161: 12035.09 | F161: 12101.46 | G161: 126436971 | H161: 12101.46 | I161: 1 | J161: 12119.85 | K161: 12143.69 | L161: 12035.09 | M161: 12101.46
A162: 152 | B162: 2012-06-01 | C162: 12391.56 | D162: 12391.63 | E162: 12107.48 | F162: 12118.57 | G162: 162644992 | H162: 12118.57 | I162: 1 | J162: 12391.56 | K162: 12391.63 | L162: 12107.48 | M162: 12118.57
A163: 153 | B163: 2012-05-31 | C163: 12414.41 | D163: 12489.87 | E163: 12316.48 | F163: 12393.45 | G163: 200423290 | H163: 12393.45 | I163: 1 | J163: 12414.41 | K163: 12489.87 | L163: 12316.48 | M163: 12393.45
A164: 154 | B164: 2012-05-30 | C164: 12579.02 | D164: 12579.1 | E164: 12396.4 | F164: 12419.86 | G164: 122819241 | H164: 12419.86 | I164: 1 | J164: 12579.02 | K164: 12579.1 | L164: 12396.4 | M164: 12419.86
A165: 155 | B165: 2012-05-29 | C165: 12454.83 | D165: 12611.61 | E165: 12454.6 | F165: 12580.69 | G165: 107482485 | H165: 12580.69 | I165: 1 | J165: 12454.83 | K165: 12611.61 | L165: 12454.6 | M165: 12580.69
A166: 156 | B166: 2012-05-25 | C166: 12530.74 | D166: 12533.12 | E166: 12421.53 | F166: 12454.83 | G166: 92314513 | H166: 12454.83 | I166: 1 | J166: 12530.74 | K166: 12533.12 | L166: 12421.53 | M166: 12454.83
A167: 157 | B167: 2012-05-24 | C167: 12491.91 | D167: 12539.59 | E167: 12419.63 | F167: 12529.75 | G167: 126800577 | H167: 12529.75 | I167: 1 | J167: 12491.91 | K167: 12539.59 | L167: 12419.63 | M167: 12529.75
A168: 158 | B168: 2012-05-23 | C168: 12501.52 | D168: 12508.3 | E168: 12311.56 | F168: 12496.15 | G168: 147829671 | H168: 12496.15 | I168: 1 | J168: 12501.52 | K168: 12508.3 | L168: 12311.56 | M168: 12496.15
A169: 159 | B169: 2012-05-22 | C169: 12505.38 | D169: 12575.96 | E169: 12447.33 | F169: 12502.81 | G169: 133599677 | H169: 12502.81 | I169: 1 | J169: 12505.38 | K169: 12575.96 | L169: 12447.33 | M169: 12502.81
A170: 160 | B170: 2012-05-21 | C170: 12369.15 | D170: 12508.11 | E170: 12367.72 | F170: 12504.48 | G170: 141624733 | H170: 12504.48 | I170: 1 | J170: 12369.15 | K170: 12508.11 | L170: 12367.72 | M170: 12504.48
A171: 161 | B171: 2012-05-18 | C171: 12443.02 | D171: 12492.97 | E171: 12336.76 | F171: 12369.38 | G171: 240509807 | H171: 12369.38 | I171: 1 | J171: 12443.02 | K171: 12492.97 | L171: 12336.76 | M171: 12369.38
A172: 162 | B172: 2012-05-17 | C172: 12598.32 | D172: 12611.42 | E172: 12440.52 | F172: 12442.49 | G172: 147332828 | H172: 12442.49 | I172: 1 | J172: 12598.32 | K172: 12611.42 | L172: 12440.52 | M172: 12442.49
A173: 163 | B173: 2012-05-16 | C173: 12617.32 | D173: 12722.63 | E173: 12597.34 | F173: 12598.55 | G173: 143125503 | H173: 12598.55 | I173: 1 | J173: 12617.32 | K173: 12722.63 | L173: 12597.34 | M173: 12598.55
A174: 164 | B174: 2012-05-15 | C174: 12695.05 | D174: 12758.43 | E174: 12608.16 | F174: 12632 | G174: 155996865 | H174: 12632 | I174: 1 | J174: 12695.05 | K174: 12758.43 | L174: 12608.16 | M174: 12632
A175: 165 | B175: 2012-05-14 | C175: 12818.49 | D175: 12818.86 | E175: 12661.48 | F175: 12695.35 | G175: 143168951 | H175: 12695.35 | I175: 1 | J175: 12818.49 | K175: 12818.86 | L175: 12661.48 | M175: 12695.35
A176: 166 | B176: 2012-05-11 | C176: 12851.79 | D176: 12918.01 | E176: 12779.28 | F176: 12820.6 | G176: 148347480 | H176: 12820.6 | I176: 1 | J176: 12851.79 | K176: 12918.01 | L176: 12779.28 | M176: 12820.6
A177: 167 | B177: 2012-05-10 | C177: 12831.58 | D177: 12931.71 | E177: 12820.3 | F177: 12855.04 | G177: 151572422 | H177: 12855.04 | I177: 1 | J177: 12831.58 | K177: 12931.71 | L177: 12820.3 | M177: 12855.04
A178: 168 | B178: 2012-05-09 | C178: 12921.81 | D178: 12921.81 | E178: 12748.48 | F178: 12835.06 | G178: 146364865 | H178: 12835.06 | I178: 1 | J178: 12921.81 | K178: 12921.81 | L178: 12748.48 | M178: 12835.06
A179: 169 | B179: 2012-05-08 | C179: 13000.73 | D179: 13000.73 | E179: 12810.39 | F179: 12932.09 | G179: 138603459 | H179: 12932.09 | I179: 1 | J179: 13000.73 | K179: 13000.73 | L179: 12810.39 | M179: 12932.09
A180: 170 | B180: 2012-05-07 | C180: 13035.85 | D180: 13049.09 | E180: 12970 | F180: 13008.53 | G180: 110066364 | H180: 13008.53 | I180: 1 | J180: 13035.85 | K180: 13049.09 | L180: 12970 | M180: 13008.53
A181: 171 | B181: 2012-05-04 | C181: 13204.62 | D181: 13205 | E181: 13022.34 | F181: 13038.27 | G181: 113750576 | H181: 13038.27 | I181: 1 | J181: 13204.62 | K181: 13205 | L181: 13022.34 | M181: 13038.27
A182: 172 | B182: 2012-05-03 | C182: 13267.59 | D182: 13284.09 | E182: 13175.64 | F182: 13206.59 | G182: 102062921 | H182: 13206.59 | I182: 1 | J182: 13267.59 | K182: 13284.09 | L182: 13175.64 | M182: 13206.59
A183: 173 | B183: 2012-05-02 | C183: 13278.11 | D183: 13278.11 | E183: 13192.21 | F183: 13268.57 | G183: 100768646 | H183: 13268.57 | I183: 1 | J183: 13278.11 | K183: 13278.11 | L183: 13192.21 | M183: 13268.57
A184: 174 | B184: 2012-05-01 | C184: 13214.16 | D184: 13338.66 | E184: 13174.65 | F184: 13279.32 | G184: 123374175 | H184: 13279.32 | I184: 1 | J184: 13214.16 | K184: 13338.66 | L184: 13174.65 | M184: 13279.32
A185: 175 | B185: 2012-04-30 | C185: 13228.31 | D185: 13228.76 | E185: 13176.01 | F185: 13213.63 | G185: 127087896 | H185: 13213.63 | I185: 1 | J185: 13228.31 | K185: 13228.76 | L185: 13176.01 | M185: 13213.63
A186: 176 | B186: 2012-04-27 | C186: 13204.7 | D186: 13266.68 | E186: 13192.21 | F186: 13228.31 | G186: 108376549 | H186: 13228.31 | I186: 1 | J186: 13204.7 | K186: 13266.68 | L186: 13192.21 | M186: 13228.31
A187: 177 | B187: 2012-04-26 | C187: 13090.11 | D187: 13227.82 | E187: 13075.96 | F187: 13204.62 | G187: 107573666 | H187: 13204.62 | I187: 1 | J187: 13090.11 | K187: 13227.82 | L187: 13075.96 | M187: 13204.62
A188: 178 | B188: 2012-04-25 | C188: 12997.69 | D188: 13105.7 | E188: 12993.6 | F188: 13090.72 | G188: 135229412 | H188: 13090.72 | I188: 1 | J188: 12997.69 | K188: 13105.7 | L188: 12993.6 | M188: 13090.72
A189: 179 | B189: 2012-04-24 | C189: 12927.77 | D189: 13050.3 | E189: 12926.49 | F189: 13001.56 | G189: 132106640 | H189: 13001.56 | I189: 1 | J189: 12927.77 | K189: 13050.3 | L189: 12926.49 | M189: 13001.56
A190: 180 | B190: 2012-04-23 | C190: 13028.2 | D190: 13028.2 | E190: 12845.58 | F190: 12927.17 | G190: 139356717 | H190: 12927.17 | I190: 1 | J190: 13028.2 | K190: 13028.2 | L190: 12845.58 | M190: 12927.17
A191: 181 | B191: 2012-04-20 | C191: 12964.48 | D191: 13082.54 | E191: 12964.25 | F191: 13029.26 | G191: 212027843 | H191: 13029.26 | I191: 1 | J191: 12964.48 | K191: 13082.54 | L191: 12964.25 | M191: 13029.26
A192: 182 | B192: 2012-04-19 | C192: 13028.73 | D192: 13080.2 | E192: 12896.82 | F192: 12964.1 | G192: 139181902 | H192: 12964.1 | I192: 1 | J192: 13028.73 | K192: 13080.2 | L192: 12896.82 | M192: 12964.1
A193: 183 | B193: 2012-04-18 | C193: 13114.56 | D193: 13114.56 | E193: 13027.49 | F193: 13032.75 | G193: 113493735 | H193: 13032.75 | I193: 1 | J193: 13114.56 | K193: 13114.56 | L193: 13027.49 | M193: 13032.75
A194: 184 | B194: 2012-04-17 | C194: 12921.79 | D194: 13131.36 | E194: 12921.79 | F194: 13115.54 | G194: 113085264 | H194: 13115.54 | I194: 1 | J194: 12921.79 | K194: 13131.36 | L194: 12921.79 | M194: 13115.54
A195: 185 | B195: 2012-04-16 | C195: 12850.88 | D195: 12986.77 | E195: 12850.8 | F195: 12921.41 | G195: 120976827 | H195: 12921.41 | I195: 1 | J195: 12850.88 | K195: 12986.77 | L195: 12850.8 | M195: 12921.41
A196: 186 | B196: 2012-04-13 | C196: 12986.2 | D196: 12986.35 | E196: 12845.28 | F196: 12849.59 | G196: 140936923 | H196: 12849.59 | I196: 1 | J196: 12986.2 | K196: 12986.35 | L196: 12845.28 | M196: 12849.59
A197: 187 | B197: 2012-04-12 | C197: 12806.45 | D197: 12986.96 | E197: 12806.3 | F197: 12986.58 | G197: 119760382 | H197: 12986.58 | I197: 1 | J197: 12806.45 | K197: 12986.96 | L197: 12806.3 | M197: 12986.58
A198: 188 | B198: 2012-04-11 | C198: 12716.92 | D198: 12844.82 | E198: 12716.92 | F198: 12805.39 | G198: 125199189 | H198: 12805.39 | I198: 1 | J198: 12716.92 | K198: 12844.82 | L198: 12716.92 | M198: 12805.39
A199: 189 | B199: 2012-04-10 | C199: 12929.44 | D199: 12929.59 | E199: 12710.56 | F199: 12715.93 | G199: 159270498 | H199: 12715.93 | I199: 1 | J199: 12929.44 | K199: 12929.59 | L199: 12710.56 | M199: 12715.93
A200: 190 | B200: 2012-04-09 | C200: 13057.57 | D200: 13057.72 | E200: 12903.78 | F200: 12929.59 | G200: 105478280 | H200: 12929.59 | I200: 1 | J200: 13057.57 | K200: 13057.72 | L200: 12903.78 | M200: 12929.59
A201: 191 | B201: 2012-04-05 | C201: 13067.18 | D201: 13088.11 | E201: 13012.46 | F201: 13060.14 | G201: 109491748 | H201: 13060.14 | I201: 1 | J201: 13067.18 | K201: 13088.11 | L201: 13012.46 | M201: 13060.14
A202: 192 | B202: 2012-04-04 | C202: 13198.19 | D202: 13198.19 | E202: 13020.86 | F202: 13074.75 | G202: 124961094 | H202: 13074.75 | I202: 1 | J202: 13198.19 | K202: 13198.19 | L202: 13020.86 | M202: 13074.75
A203: 193 | B203: 2012-04-03 | C203: 13258.96 | D203: 13265.36 | E203: 13131.21 | F203: 13199.55 | G203: 123741371 | H203: 13199.55 | I203: 1 | J203: 13258.96 | K203: 13265.36 | L203: 13131.21 | M203: 13199.55
A204: 194 | B204: 2012-04-02 | C204: 13211.36 | D204: 13297.11 | E204: 13153.69 | F204: 13264.49 | G204: 106029218 | H204: 13264.49 | I204: 1 | J204: 13211.36 | K204: 13297.11 | L204: 13153.69 | M204: 13264.49
... 166 more rows

Sheet CalculationsAndCharts
A1: Camarilla Points
B2: Price Data: | C2: =InputPriceData!A1&"; "&C18&" "&C17&", Camarilla Date: "&TEXT(B18,"ddd mm/dd/yyyy") -> Dow Jones Industrial Average (^DJIA); 25 Trading Days, Camarilla Date: Tue 04/24/2012 | S2: Camarilla Levels
S3: Show | T3: Value
A4: User Charting Controls | S4: TRUE | T4: =$C$20/$D$20*$E$20 -> 13523.71583
A5: Data Control | S5: TRUE | T5: =$E$20+$F$20*1.1/2 -> 13249.7725
A6: =InputPriceData!$B$7 -> 360 | B6: Available Input Data Rows | E6: Earliest: | F6: =OFFSET(InputPriceData!B10,CalculationsAndCharts!A6,0,1,1) -> 2011-08-04 | S6: TRUE | T6: =$E$20+$F$20*1.1/4 -> 13088.47125
E7: Latest: | F7: =OFFSET(InputPriceData!B10,1,0,1,1) -> 2013-01-09 | S7: FALSE | T7: =$E$20+$F$20*1.1/6 -> 13034.70417
A8: =MIN(A6-A11,COUNTA(B32:B9982)) -> 310 | B8: Logically Available for Calc / Plot | S8: FALSE | T8: =$E$20+$F$20*1.1/12 -> 12980.93708
A10: Price Chart Windowing Controls | F10: Y-axis Range | S10: FALSE | T10: =$C$20 -> 13297.11
A11: 50 | B11: Input Data Offset (Pan) | E11: Max High+ | F11: =CEILING(MAX(OFFSET($E$32,0,0,$A$12,1),($C$20/$D$20*$E$20))+2*F14,0.1) -> 13727 | S11: TRUE | T11: =$E$20 -> 12927.17
A12: 160 | B12: Data Points to Plot (Zoom) | E12: Min Low- | F12: =FLOOR(MIN(OFFSET($F$32,0,0,$A$12,1),(E20-(Q32-E20)))-2*F14,0.1) -> 11970 | S12: FALSE | T12: =$D$20 -> 12710.56
B13: First: | C13: =OFFSET(B31,A12,0,1,1) -> 2012-03-09 | E13: White space %: | F13: 0.02
B14: Last: | C14: =B32 -> 2012-10-24 | E14: Allowance: | F14: =FLOOR((CEILING(MAX(OFFSET($E$32,0,0,$A$12,1)),1)-FLOOR(MIN(OFFSET($F$32,0,0,$A$12,1)),1))*F13,0.01) -> 32.54 | S14: FALSE | T14: =$E$20-$F$20*1.1/12 -> 12873.40292
S15: FALSE | T15: =$E$20-$F$20*1.1/6 -> 12819.63583
S16: TRUE | T16: =$E$20-$F$20*1.1/4 -> 12765.86875
B17: Camarilla Date | C17: Trading Days | D17: =OFFSET($B$31,$B$20+$C$18,0,1,1) -> 2012-03-19 | E17: =OFFSET($B$31,$B$20+1,0,1,1) -> 2012-04-23 | S17: TRUE | T17: =$E$20-$F$20*1.1/2 -> 12604.5675
B18: =D27 -> 2012-04-24 | C18: 25 | E18: Range Close | S18: TRUE | T18: =2*$E$20-($C$20/$D$20*$E$20) -> 12330.62417
B19: Offset | C19: Range Hi | D19: Range Lo | F19: Range
B20: =OFFSET(A31,MATCH(B18,OFFSET(B31,1,0,A8,1),0),0,1,1) -> 129 | C20: =MAX(OFFSET($E$31,$B$20+1,0,$C$18,1)) -> 13297.11 | D20: =MIN(OFFSET($F$31,$B$20+1,0,$C$18,1)) -> 12710.56 | E20: =OFFSET($G$31,$B$20+1,0,1,1) -> 12927.17 | F20: =C20-D20 -> 586.55
A22: Help! I would like to plot data | D22: Chart Windowing values to use
B23: From | C23: 2012-03-12 | D23: =OFFSET(InputPriceData!$A$10,MATCH(C23,OFFSET(InputPriceData!B10,1,0,InputPriceData!$B$7,1),0),0,1,1)-D24 -> 55 | E23: ==> for Points to Plot
B24: To | C24: 2012-05-29 | D24: =OFFSET(InputPriceData!$A$10,MATCH(C24,OFFSET(InputPriceData!$B$10,1,0,InputPriceData!$B$7,1),0),0,1,1)-1 -> 154 | E24: ==> for Offset
D25: Date at Cursor
A27: 32 | B27: =$A$12-$A$27+1 -> 129 | D27: =OFFSET($B$31,B27,0,1,1) -> 2012-04-24 | E27: Scroll Cam'la Bar =>
A28: 71 | B28: =$A$12-$A$28+1 -> 90 | S28: Chart Cursors
D29: =OFFSET($B$31,B28,0,1,1) -> 2012-06-19 | E29: Scroll Price => | S29: Price Cursor | T29: Camarilla Bar
A30: Rel Row | D30: Price Sources | H30: Support Lines | M30: Resistance Lines | R30: =$C$18 & " Range Days" -> 25 Range Days | U30: =$C$18 & " Trade Days" -> 25 Trade Days | V30: Camarilla Basis Determinants
B31: Date | C31: Volume | D31: Open | E31: High | F31: Low | G31: Close | H31: S1 | I31: S2 | J31: S3 | K31: S4 | L31: S5 | M31: R1 | N31: R2 | O31: R3 | P31: R4 | Q31: R5 | S31: =$F$11 -> 13727 | T31: =$F$11 -> 13727 | V31: C-High | W31: C-Close | X31: C-Low | Y31: Pillow
A32: 1 | B32: =OFFSET(InputPriceData!B$10,CalculationsAndCharts!$A32+$A$11,0,1,1) -> 2012-10-24 | C32: =OFFSET(InputPriceData!G$10,CalculationsAndCharts!$A32+$A$11,0,1,1) -> 110626209 | D32: =OFFSET(InputPriceData!C$10,CalculationsAndCharts!$A32+$A$11,0,1,1) -> 13103.53 | E32: =OFFSET(InputPriceData!D$10,CalculationsAndCharts!$A32+$A$11,0,1,1) -> 13155.21 | F32: =OFFSET(InputPriceData!E$10,CalculationsAndCharts!$A32+$A$11,0,1,1) -> 13063.63 | G32: =OFFSET(InputPriceData!F$10,CalculationsAndCharts!$A32+$A$11,0,1,1) -> 13077.34 | H32: =IF(AND(A32<=$B$20,$S$14),$T$14,0) -> 0 | I32: =IF(AND(A32<=$B$20,$S$15),$T$15,0) -> 0 | J32: =IF(AND(A32<=$B$20,$S$16),$T$16,0) -> 12765.86875 | K32: =IF(AND(A32<=$B$20,$S$17),$T$17,0) -> 12604.5675 | L32: =IF(AND(A32<=$B$20,$S$18),$T$18,0) -> 12330.62417 | M32: =IF(AND(A32<=$B$20,$S$8),$T$8,0) -> 0 | N32: =IF(AND(A32<=$B$20,$S$7),$T$7,0) -> 0 | O32: =IF(AND(A32<=$B$20,$S$6),$T$6,0) -> 13088.47125 | P32: =IF(AND(A32<=$B$20,$S$5),$T$5,0) -> 13249.7725 | Q32: =IF(AND(A32<=$B$20,$S$4),$T$4,0) -> 13523.71583 | R32: =IF(AND(A32>$B$20,A32<=($B$20+$C$18)),$T$10-Y32,0) -> 0 | S32: =IF($A32=$B$28,S$31,0) -> 0 | T32: =IF($A32=$B$27,S$31,0) -> 0 | U32: =IF(AND(A32<=$B$20,A32>($B$20-$C$18)),$F$11,0) -> 0 | V32: =IF(AND($S$10,A32>$B$20,A32<=($B$20+$C$18)),$T$10,0) -> 0 | W32: =IF(AND($S$11,A32>$B$20,A32<=($B$20+$C$18)),$T$11,0) -> 0 | X32: =IF(AND($S$12,A32>$B$20,A32<=($B$20+$C$18)),$T$12,0) -> 0 | Y32: =IF(AND(A32>$B$20,A32<=($B$20+$C$18)),$T$12,0) -> 0
A33: 2 | B33: =OFFSET(InputPriceData!B$10,CalculationsAndCharts!$A33+$A$11,0,1,1) -> 2012-10-23 | C33: =OFFSET(InputPriceData!G$10,CalculationsAndCharts!$A33+$A$11,0,1,1) -> 122214657 | D33: =OFFSET(InputPriceData!C$10,CalculationsAndCharts!$A33+$A$11,0,1,1) -> 13344.9 | E33: =OFFSET(InputPriceData!D$10,CalculationsAndCharts!$A33+$A$11,0,1,1) -> 13344.9 | F33: =OFFSET(InputPriceData!E$10,CalculationsAndCharts!$A33+$A$11,0,1,1) -> 13083.28 | G33: =OFFSET(InputPriceData!F$10,CalculationsAndCharts!$A33+$A$11,0,1,1) -> 13102.53 | H33: =IF(AND(A33<=$B$20,$S$14),$T$14,0) -> 0 | I33: =IF(AND(A33<=$B$20,$S$15),$T$15,0) -> 0 | J33: =IF(AND(A33<=$B$20,$S$16),$T$16,0) -> 12765.86875 | K33: =IF(AND(A33<=$B$20,$S$17),$T$17,0) -> 12604.5675 | L33: =IF(AND(A33<=$B$20,$S$18),$T$18,0) -> 12330.62417 | M33: =IF(AND(A33<=$B$20,$S$8),$T$8,0) -> 0 | N33: =IF(AND(A33<=$B$20,$S$7),$T$7,0) -> 0 | O33: =IF(AND(A33<=$B$20,$S$6),$T$6,0) -> 13088.47125 | P33: =IF(AND(A33<=$B$20,$S$5),$T$5,0) -> 13249.7725 | Q33: =IF(AND(A33<=$B$20,$S$4),$T$4,0) -> 13523.71583 | R33: =IF(AND(A33>$B$20,A33<=($B$20+$C$18)),$T$10-Y33,0) -> 0 | S33: 0 | T33: =IF($A33=$B$27,S$31,0) -> 0 | U33: =IF(AND(A33<=$B$20,A33>($B$20-$C$18)),$F$11,0) -> 0 | V33: =IF(AND($S$10,A33>$B$20,A33<=($B$20+$C$18)),$T$10,0) -> 0 | W33: =IF(AND($S$11,A33>$B$20,A33<=($B$20+$C$18)),$T$11,0) -> 0 | X33: =IF(AND($S$12,A33>$B$20,A33<=($B$20+$C$18)),$T$12,0) -> 0 | Y33: =IF(AND(A33>$B$20,A33<=($B$20+$C$18)),$T$12,0) -> 0
A34: 3 | B34: =OFFSET(InputPriceData!B$10,CalculationsAndCharts!$A34+$A$11,0,1,1) -> 2012-10-22 | C34: =OFFSET(InputPriceData!G$10,CalculationsAndCharts!$A34+$A$11,0,1,1) -> 121570469 | D34: =OFFSET(InputPriceData!C$10,CalculationsAndCharts!$A34+$A$11,0,1,1) -> 13344.28 | E34: =OFFSET(InputPriceData!D$10,CalculationsAndCharts!$A34+$A$11,0,1,1) -> 13368.55 | F34: =OFFSET(InputPriceData!E$10,CalculationsAndCharts!$A34+$A$11,0,1,1) -> 13235.15 | G34: =OFFSET(InputPriceData!F$10,CalculationsAndCharts!$A34+$A$11,0,1,1) -> 13345.89 | H34: =IF(AND(A34<=$B$20,$S$14),$T$14,0) -> 0 | I34: =IF(AND(A34<=$B$20,$S$15),$T$15,0) -> 0 | J34: =IF(AND(A34<=$B$20,$S$16),$T$16,0) -> 12765.86875 | K34: =IF(AND(A34<=$B$20,$S$17),$T$17,0) -> 12604.5675 | L34: =IF(AND(A34<=$B$20,$S$18),$T$18,0) -> 12330.62417 | M34: 0 | N34: 0 | O34: 13088.47125 | P34: 13249.7725 | Q34: 13523.71583 | R34: 0 | S34: 0 | T34: 0 | U34: 0 | V34: 0 | W34: 0 | X34: 0 | Y34: 0
A35: 4 | B35: =OFFSET(InputPriceData!B$10,CalculationsAndCharts!$A35+$A$11,0,1,1) -> 2012-10-19 | C35: =OFFSET(InputPriceData!G$10,CalculationsAndCharts!$A35+$A$11,0,1,1) -> 238951163 | D35: =OFFSET(InputPriceData!C$10,CalculationsAndCharts!$A35+$A$11,0,1,1) -> 13545.33 | E35: =OFFSET(InputPriceData!D$10,CalculationsAndCharts!$A35+$A$11,0,1,1) -> 13545.49 | F35: =OFFSET(InputPriceData!E$10,CalculationsAndCharts!$A35+$A$11,0,1,1) -> 13312.22 | G35: =OFFSET(InputPriceData!F$10,CalculationsAndCharts!$A35+$A$11,0,1,1) -> 13343.51 | H35: =IF(AND(A35<=$B$20,$S$14),$T$14,0) -> 0 | I35: =IF(AND(A35<=$B$20,$S$15),$T$15,0) -> 0 | J35: =IF(AND(A35<=$B$20,$S$16),$T$16,0) -> 12765.86875 | K35: =IF(AND(A35<=$B$20,$S$17),$T$17,0) -> 12604.5675 | L35: =IF(AND(A35<=$B$20,$S$18),$T$18,0) -> 12330.62417 | M35: 0 | N35: 0 | O35: 13088.47125 | P35: 13249.7725 | Q35: 13523.71583 | R35: 0 | S35: 0 | T35: 0 | U35: 0 | V35: 0 | W35: 0 | X35: 0 | Y35: 0
A36: 5 | B36: =OFFSET(InputPriceData!B$10,CalculationsAndCharts!$A36+$A$11,0,1,1) -> 2012-10-18 | C36: =OFFSET(InputPriceData!G$10,CalculationsAndCharts!$A36+$A$11,0,1,1) -> 127752120 | D36: =OFFSET(InputPriceData!C$10,CalculationsAndCharts!$A36+$A$11,0,1,1) -> 13553.24 | E36: =OFFSET(InputPriceData!D$10,CalculationsAndCharts!$A36+$A$11,0,1,1) -> 13588.73 | F36: =OFFSET(InputPriceData!E$10,CalculationsAndCharts!$A36+$A$11,0,1,1) -> 13510.93 | G36: =OFFSET(InputPriceData!F$10,CalculationsAndCharts!$A36+$A$11,0,1,1) -> 13548.94 | H36: =IF(AND(A36<=$B$20,$S$14),$T$14,0) -> 0 | I36: =IF(AND(A36<=$B$20,$S$15),$T$15,0) -> 0 | J36: =IF(AND(A36<=$B$20,$S$16),$T$16,0) -> 12765.86875 | K36: =IF(AND(A36<=$B$20,$S$17),$T$17,0) -> 12604.5675 | L36: =IF(AND(A36<=$B$20,$S$18),$T$18,0) -> 12330.62417 | M36: 0 | N36: 0 | O36: 13088.47125 | P36: 13249.7725 | Q36: 13523.71583 | R36: 0 | S36: 0 | T36: 0 | U36: 0 | V36: 0 | W36: 0 | X36: 0 | Y36: 0
A37: 6 | B37: =OFFSET(InputPriceData!B$10,CalculationsAndCharts!$A37+$A$11,0,1,1) -> 2012-10-17 | C37: =OFFSET(InputPriceData!G$10,CalculationsAndCharts!$A37+$A$11,0,1,1) -> 135547894 | D37: =OFFSET(InputPriceData!C$10,CalculationsAndCharts!$A37+$A$11,0,1,1) -> 13539.63 | E37: =OFFSET(InputPriceData!D$10,CalculationsAndCharts!$A37+$A$11,0,1,1) -> 13561.65 | F37: =OFFSET(InputPriceData!E$10,CalculationsAndCharts!$A37+$A$11,0,1,1) -> 13468.9 | G37: =OFFSET(InputPriceData!F$10,CalculationsAndCharts!$A37+$A$11,0,1,1) -> 13557 | H37: =IF(AND(A37<=$B$20,$S$14),$T$14,0) -> 0 | I37: =IF(AND(A37<=$B$20,$S$15),$T$15,0) -> 0 | J37: =IF(AND(A37<=$B$20,$S$16),$T$16,0) -> 12765.86875 | K37: =IF(AND(A37<=$B$20,$S$17),$T$17,0) -> 12604.5675 | L37: =IF(AND(A37<=$B$20,$S$18),$T$18,0) -> 12330.62417 | M37: 0 | N37: 0 | O37: 13088.47125 | P37: 13249.7725 | Q37: 13523.71583 | R37: 0 | S37: 0 | T37: 0 | U37: 0 | V37: 0 | W37: 0 | X37: 0 | Y37: 0
A38: 7 | B38: =OFFSET(InputPriceData!B$10,CalculationsAndCharts!$A38+$A$11,0,1,1) -> 2012-10-16 | C38: =OFFSET(InputPriceData!G$10,CalculationsAndCharts!$A38+$A$11,0,1,1) -> 109793745 | D38: =OFFSET(InputPriceData!C$10,CalculationsAndCharts!$A38+$A$11,0,1,1) -> 13423.84 | E38: =OFFSET(InputPriceData!D$10,CalculationsAndCharts!$A38+$A$11,0,1,1) -> 13556.37 | F38: =OFFSET(InputPriceData!E$10,CalculationsAndCharts!$A38+$A$11,0,1,1) -> 13423.76 | G38: =OFFSET(InputPriceData!F$10,CalculationsAndCharts!$A38+$A$11,0,1,1) -> 13551.78 | H38: =IF(AND(A38<=$B$20,$S$14),$T$14,0) -> 0 | I38: =IF(AND(A38<=$B$20,$S$15),$T$15,0) -> 0 | J38: =IF(AND(A38<=$B$20,$S$16),$T$16,0) -> 12765.86875 | K38: =IF(AND(A38<=$B$20,$S$17),$T$17,0) -> 12604.5675 | L38: =IF(AND(A38<=$B$20,$S$18),$T$18,0) -> 12330.62417 | M38: 0 | N38: 0 | O38: 13088.47125 | P38: 13249.7725 | Q38: 13523.71583 | R38: 0 | S38: 0 | T38: 0 | U38: 0 | V38: 0 | W38: 0 | X38: 0 | Y38: 0
A39: 8 | B39: =OFFSET(InputPriceData!B$10,CalculationsAndCharts!$A39+$A$11,0,1,1) -> 2012-10-15 | C39: =OFFSET(InputPriceData!G$10,CalculationsAndCharts!$A39+$A$11,0,1,1) -> 114823445 | D39: =OFFSET(InputPriceData!C$10,CalculationsAndCharts!$A39+$A$11,0,1,1) -> 13329.54 | E39: =OFFSET(InputPriceData!D$10,CalculationsAndCharts!$A39+$A$11,0,1,1) -> 13437.66 | F39: =OFFSET(InputPriceData!E$10,CalculationsAndCharts!$A39+$A$11,0,1,1) -> 13325.93 | G39: =OFFSET(InputPriceData!F$10,CalculationsAndCharts!$A39+$A$11,0,1,1) -> 13424.23 | H39: =IF(AND(A39<=$B$20,$S$14),$T$14,0) -> 0 | I39: =IF(AND(A39<=$B$20,$S$15),$T$15,0) -> 0 | J39: =IF(AND(A39<=$B$20,$S$16),$T$16,0) -> 12765.86875 | K39: =IF(AND(A39<=$B$20,$S$17),$T$17,0) -> 12604.5675 | L39: =IF(AND(A39<=$B$20,$S$18),$T$18,0) -> 12330.62417 | M39: 0 | N39: 0 | O39: 13088.47125 | P39: 13249.7725 | Q39: 13523.71583 | R39: 0 | S39: 0 | T39: 0 | U39: 0 | V39: 0 | W39: 0 | X39: 0 | Y39: 0
A40: 9 | B40: =OFFSET(InputPriceData!B$10,CalculationsAndCharts!$A40+$A$11,0,1,1) -> 2012-10-12 | C40: =OFFSET(InputPriceData!G$10,CalculationsAndCharts!$A40+$A$11,0,1,1) -> 113188443 | D40: =OFFSET(InputPriceData!C$10,CalculationsAndCharts!$A40+$A$11,0,1,1) -> 13325.62 | E40: =OFFSET(InputPriceData!D$10,CalculationsAndCharts!$A40+$A$11,0,1,1) -> 13401.32 | F40: =OFFSET(InputPriceData!E$10,CalculationsAndCharts!$A40+$A$11,0,1,1) -> 13296.43 | G40: =OFFSET(InputPriceData!F$10,CalculationsAndCharts!$A40+$A$11,0,1,1) -> 13328.85 | H40: =IF(AND(A40<=$B$20,$S$14),$T$14,0) -> 0 | I40: =IF(AND(A40<=$B$20,$S$15),$T$15,0) -> 0 | J40: =IF(AND(A40<=$B$20,$S$16),$T$16,0) -> 12765.86875 | K40: =IF(AND(A40<=$B$20,$S$17),$T$17,0) -> 12604.5675 | L40: =IF(AND(A40<=$B$20,$S$18),$T$18,0) -> 12330.62417 | M40: 0 | N40: 0 | O40: 13088.47125 | P40: 13249.7725 | Q40: 13523.71583 | R40: 0 | S40: 0 | T40: 0 | U40: 0 | V40: 0 | W40: 0 | X40: 0 | Y40: 0
A41: 10 | B41: =OFFSET(InputPriceData!B$10,CalculationsAndCharts!$A41+$A$11,0,1,1) -> 2012-10-11 | C41: =OFFSET(InputPriceData!G$10,CalculationsAndCharts!$A41+$A$11,0,1,1) -> 86566812 | D41: =OFFSET(InputPriceData!C$10,CalculationsAndCharts!$A41+$A$11,0,1,1) -> 13346.28 | E41: =OFFSET(InputPriceData!D$10,CalculationsAndCharts!$A41+$A$11,0,1,1) -> 13428.49 | F41: =OFFSET(InputPriceData!E$10,CalculationsAndCharts!$A41+$A$11,0,1,1) -> 13326.12 | G41: =OFFSET(InputPriceData!F$10,CalculationsAndCharts!$A41+$A$11,0,1,1) -> 13326.39 | H41: =IF(AND(A41<=$B$20,$S$14),$T$14,0) -> 0 | I41: =IF(AND(A41<=$B$20,$S$15),$T$15,0) -> 0 | J41: =IF(AND(A41<=$B$20,$S$16),$T$16,0) -> 12765.86875 | K41: =IF(AND(A41<=$B$20,$S$17),$T$17,0) -> 12604.5675 | L41: =IF(AND(A41<=$B$20,$S$18),$T$18,0) -> 12330.62417 | M41: 0 | N41: 0 | O41: 13088.47125 | P41: 13249.7725 | Q41: 13523.71583 | R41: 0 | S41: 0 | T41: 0 | U41: 0 | V41: 0 | W41: 0 | X41: 0 | Y41: 0
A42: 11 | B42: =OFFSET(InputPriceData!B$10,CalculationsAndCharts!$A42+$A$11,0,1,1) -> 2012-10-10 | C42: =OFFSET(InputPriceData!G$10,CalculationsAndCharts!$A42+$A$11,0,1,1) -> 101115655 | D42: =OFFSET(InputPriceData!C$10,CalculationsAndCharts!$A42+$A$11,0,1,1) -> 13473.53 | E42: =OFFSET(InputPriceData!D$10,CalculationsAndCharts!$A42+$A$11,0,1,1) -> 13478.83 | F42: =OFFSET(InputPriceData!E$10,CalculationsAndCharts!$A42+$A$11,0,1,1) -> 13327.62 | G42: =OFFSET(InputPriceData!F$10,CalculationsAndCharts!$A42+$A$11,0,1,1) -> 13344.97 | H42: =IF(AND(A42<=$B$20,$S$14),$T$14,0) -> 0 | I42: =IF(AND(A42<=$B$20,$S$15),$T$15,0) -> 0 | J42: =IF(AND(A42<=$B$20,$S$16),$T$16,0) -> 12765.86875 | K42: =IF(AND(A42<=$B$20,$S$17),$T$17,0) -> 12604.5675 | L42: =IF(AND(A42<=$B$20,$S$18),$T$18,0) -> 12330.62417 | M42: 0 | N42: 0 | O42: 13088.47125 | P42: 13249.7725 | Q42: 13523.71583 | R42: 0 | S42: 0 | T42: 0 | U42: 0 | V42: 0 | W42: 0 | X42: 0 | Y42: 0
A43: 12 | B43: =OFFSET(InputPriceData!B$10,CalculationsAndCharts!$A43+$A$11,0,1,1) -> 2012-10-09 | C43: =OFFSET(InputPriceData!G$10,CalculationsAndCharts!$A43+$A$11,0,1,1) -> 103593902 | D43: =OFFSET(InputPriceData!C$10,CalculationsAndCharts!$A43+$A$11,0,1,1) -> 13582.88 | E43: =OFFSET(InputPriceData!D$10,CalculationsAndCharts!$A43+$A$11,0,1,1) -> 13592.33 | F43: =OFFSET(InputPriceData!E$10,CalculationsAndCharts!$A43+$A$11,0,1,1) -> 13473.31 | G43: =OFFSET(InputPriceData!F$10,CalculationsAndCharts!$A43+$A$11,0,1,1) -> 13473.53 | H43: =IF(AND(A43<=$B$20,$S$14),$T$14,0) -> 0 | I43: =IF(AND(A43<=$B$20,$S$15),$T$15,0) -> 0 | J43: =IF(AND(A43<=$B$20,$S$16),$T$16,0) -> 12765.86875 | K43: =IF(AND(A43<=$B$20,$S$17),$T$17,0) -> 12604.5675 | L43: =IF(AND(A43<=$B$20,$S$18),$T$18,0) -> 12330.62417 | M43: 0 | N43: 0 | O43: 13088.47125 | P43: 13249.7725 | Q43: 13523.71583 | R43: 0 | S43: 0 | T43: 0 | U43: 0 | V43: 0 | W43: 0 | X43: 0 | Y43: 0
A44: 13 | B44: =OFFSET(InputPriceData!B$10,CalculationsAndCharts!$A44+$A$11,0,1,1) -> 2012-10-08 | C44: =OFFSET(InputPriceData!G$10,CalculationsAndCharts!$A44+$A$11,0,1,1) -> 71181046 | D44: =OFFSET(InputPriceData!C$10,CalculationsAndCharts!$A44+$A$11,0,1,1) -> 13610.38 | E44: =OFFSET(InputPriceData!D$10,CalculationsAndCharts!$A44+$A$11,0,1,1) -> 13610.38 | F44: =OFFSET(InputPriceData!E$10,CalculationsAndCharts!$A44+$A$11,0,1,1) -> 13552.09 | G44: =OFFSET(InputPriceData!F$10,CalculationsAndCharts!$A44+$A$11,0,1,1) -> 13583.65 | H44: =IF(AND(A44<=$B$20,$S$14),$T$14,0) -> 0 | I44: =IF(AND(A44<=$B$20,$S$15),$T$15,0) -> 0 | J44: =IF(AND(A44<=$B$20,$S$16),$T$16,0) -> 12765.86875 | K44: =IF(AND(A44<=$B$20,$S$17),$T$17,0) -> 12604.5675 | L44: =IF(AND(A44<=$B$20,$S$18),$T$18,0) -> 12330.62417 | M44: 0 | N44: 0 | O44: 13088.47125 | P44: 13249.7725 | Q44: 13523.71583 | R44: 0 | S44: 0 | T44: 0 | U44: 0 | V44: 0 | W44: 0 | X44: 0 | Y44: 0
A45: 14 | B45: =OFFSET(InputPriceData!B$10,CalculationsAndCharts!$A45+$A$11,0,1,1) -> 2012-10-05 | C45: =OFFSET(InputPriceData!G$10,CalculationsAndCharts!$A45+$A$11,0,1,1) -> 115443521 | D45: =OFFSET(InputPriceData!C$10,CalculationsAndCharts!$A45+$A$11,0,1,1) -> 13569.18 | E45: =OFFSET(InputPriceData!D$10,CalculationsAndCharts!$A45+$A$11,0,1,1) -> 13661.87 | F45: =OFFSET(InputPriceData!E$10,CalculationsAndCharts!$A45+$A$11,0,1,1) -> 13568.75 | G45: =OFFSET(InputPriceData!F$10,CalculationsAndCharts!$A45+$A$11,0,1,1) -> 13610.15 | H45: =IF(AND(A45<=$B$20,$S$14),$T$14,0) -> 0 | I45: =IF(AND(A45<=$B$20,$S$15),$T$15,0) -> 0 | J45: =IF(AND(A45<=$B$20,$S$16),$T$16,0) -> 12765.86875 | K45: =IF(AND(A45<=$B$20,$S$17),$T$17,0) -> 12604.5675 | L45: =IF(AND(A45<=$B$20,$S$18),$T$18,0) -> 12330.62417 | M45: 0 | N45: 0 | O45: 13088.47125 | P45: 13249.7725 | Q45: 13523.71583 | R45: 0 | S45: 0 | T45: 0 | U45: 0 | V45: 0 | W45: 0 | X45: 0 | Y45: 0
A46: 15 | B46: =OFFSET(InputPriceData!B$10,CalculationsAndCharts!$A46+$A$11,0,1,1) -> 2012-10-04 | C46: =OFFSET(InputPriceData!G$10,CalculationsAndCharts!$A46+$A$11,0,1,1) -> 106377384 | D46: =OFFSET(InputPriceData!C$10,CalculationsAndCharts!$A46+$A$11,0,1,1) -> 13495.18 | E46: =OFFSET(InputPriceData!D$10,CalculationsAndCharts!$A46+$A$11,0,1,1) -> 13594.33 | F46: =OFFSET(InputPriceData!E$10,CalculationsAndCharts!$A46+$A$11,0,1,1) -> 13495.18 | G46: =OFFSET(InputPriceData!F$10,CalculationsAndCharts!$A46+$A$11,0,1,1) -> 13575.36 | H46: =IF(AND(A46<=$B$20,$S$14),$T$14,0) -> 0 | I46: =IF(AND(A46<=$B$20,$S$15),$T$15,0) -> 0 | J46: =IF(AND(A46<=$B$20,$S$16),$T$16,0) -> 12765.86875 | K46: =IF(AND(A46<=$B$20,$S$17),$T$17,0) -> 12604.5675 | L46: =IF(AND(A46<=$B$20,$S$18),$T$18,0) -> 12330.62417 | M46: 0 | N46: 0 | O46: 13088.47125 | P46: 13249.7725 | Q46: 13523.71583 | R46: 0 | S46: 0 | T46: 0 | U46: 0 | V46: 0 | W46: 0 | X46: 0 | Y46: 0
A47: 16 | B47: =OFFSET(InputPriceData!B$10,CalculationsAndCharts!$A47+$A$11,0,1,1) -> 2012-10-03 | C47: =OFFSET(InputPriceData!G$10,CalculationsAndCharts!$A47+$A$11,0,1,1) -> 103856537 | D47: =OFFSET(InputPriceData!C$10,CalculationsAndCharts!$A47+$A$11,0,1,1) -> 13479.21 | E47: =OFFSET(InputPriceData!D$10,CalculationsAndCharts!$A47+$A$11,0,1,1) -> 13536.27 | F47: =OFFSET(InputPriceData!E$10,CalculationsAndCharts!$A47+$A$11,0,1,1) -> 13439.12 | G47: =OFFSET(InputPriceData!F$10,CalculationsAndCharts!$A47+$A$11,0,1,1) -> 13494.61 | H47: =IF(AND(A47<=$B$20,$S$14),$T$14,0) -> 0 | I47: =IF(AND(A47<=$B$20,$S$15),$T$15,0) -> 0 | J47: =IF(AND(A47<=$B$20,$S$16),$T$16,0) -> 12765.86875 | K47: =IF(AND(A47<=$B$20,$S$17),$T$17,0) -> 12604.5675 | L47: =IF(AND(A47<=$B$20,$S$18),$T$18,0) -> 12330.62417 | M47: 0 | N47: 0 | O47: 13088.47125 | P47: 13249.7725 | Q47: 13523.71583 | R47: 0 | S47: 0 | T47: 0 | U47: 0 | V47: 0 | W47: 0 | X47: 0 | Y47: 0
A48: 17 | B48: =OFFSET(InputPriceData!B$10,CalculationsAndCharts!$A48+$A$11,0,1,1) -> 2012-10-02 | C48: =OFFSET(InputPriceData!G$10,CalculationsAndCharts!$A48+$A$11,0,1,1) -> 90703696 | D48: =OFFSET(InputPriceData!C$10,CalculationsAndCharts!$A48+$A$11,0,1,1) -> 13515.3 | E48: =OFFSET(InputPriceData!D$10,CalculationsAndCharts!$A48+$A$11,0,1,1) -> 13567.06 | F48: =OFFSET(InputPriceData!E$10,CalculationsAndCharts!$A48+$A$11,0,1,1) -> 13424.92 | G48: =OFFSET(InputPriceData!F$10,CalculationsAndCharts!$A48+$A$11,0,1,1) -> 13482.36 | H48: =IF(AND(A48<=$B$20,$S$14),$T$14,0) -> 0 | I48: =IF(AND(A48<=$B$20,$S$15),$T$15,0) -> 0 | J48: =IF(AND(A48<=$B$20,$S$16),$T$16,0) -> 12765.86875 | K48: =IF(AND(A48<=$B$20,$S$17),$T$17,0) -> 12604.5675 | L48: =IF(AND(A48<=$B$20,$S$18),$T$18,0) -> 12330.62417 | M48: 0 | N48: 0 | O48: 13088.47125 | P48: 13249.7725 | Q48: 13523.71583 | R48: 0 | S48: 0 | T48: 0 | U48: 0 | V48: 0 | W48: 0 | X48: 0 | Y48: 0
A49: 18 | B49: =OFFSET(InputPriceData!B$10,CalculationsAndCharts!$A49+$A$11,0,1,1) -> 2012-10-01 | C49: =OFFSET(InputPriceData!G$10,CalculationsAndCharts!$A49+$A$11,0,1,1) -> 106118869 | D49: =OFFSET(InputPriceData!C$10,CalculationsAndCharts!$A49+$A$11,0,1,1) -> 13437.66 | E49: =OFFSET(InputPriceData!D$10,CalculationsAndCharts!$A49+$A$11,0,1,1) -> 13598.25 | F49: =OFFSET(InputPriceData!E$10,CalculationsAndCharts!$A49+$A$11,0,1,1) -> 13437.66 | G49: =OFFSET(InputPriceData!F$10,CalculationsAndCharts!$A49+$A$11,0,1,1) -> 13515.11 | H49: =IF(AND(A49<=$B$20,$S$14),$T$14,0) -> 0 | I49: =IF(AND(A49<=$B$20,$S$15),$T$15,0) -> 0 | J49: =IF(AND(A49<=$B$20,$S$16),$T$16,0) -> 12765.86875 | K49: =IF(AND(A49<=$B$20,$S$17),$T$17,0) -> 12604.5675 | L49: =IF(AND(A49<=$B$20,$S$18),$T$18,0) -> 12330.62417 | M49: 0 | N49: 0 | O49: 13088.47125 | P49: 13249.7725 | Q49: 13523.71583 | R49: 0 | S49: 0 | T49: 0 | U49: 0 | V49: 0 | W49: 0 | X49: 0 | Y49: 0
A50: 19 | B50: =OFFSET(InputPriceData!B$10,CalculationsAndCharts!$A50+$A$11,0,1,1) -> 2012-09-28 | C50: =OFFSET(InputPriceData!G$10,CalculationsAndCharts!$A50+$A$11,0,1,1) -> 146737668 | D50: =OFFSET(InputPriceData!C$10,CalculationsAndCharts!$A50+$A$11,0,1,1) -> 13485.89 | E50: =OFFSET(InputPriceData!D$10,CalculationsAndCharts!$A50+$A$11,0,1,1) -> 13487.66 | F50: =OFFSET(InputPriceData!E$10,CalculationsAndCharts!$A50+$A$11,0,1,1) -> 13367.27 | G50: =OFFSET(InputPriceData!F$10,CalculationsAndCharts!$A50+$A$11,0,1,1) -> 13437.13 | H50: =IF(AND(A50<=$B$20,$S$14),$T$14,0) -> 0 | I50: =IF(AND(A50<=$B$20,$S$15),$T$15,0) -> 0 | J50: =IF(AND(A50<=$B$20,$S$16),$T$16,0) -> 12765.86875 | K50: =IF(AND(A50<=$B$20,$S$17),$T$17,0) -> 12604.5675 | L50: =IF(AND(A50<=$B$20,$S$18),$T$18,0) -> 12330.62417 | M50: 0 | N50: 0 | O50: 13088.47125 | P50: 13249.7725 | Q50: 13523.71583 | R50: 0 | S50: 0 | T50: 0 | U50: 0 | V50: 0 | W50: 0 | X50: 0 | Y50: 0
A51: 20 | B51: =OFFSET(InputPriceData!B$10,CalculationsAndCharts!$A51+$A$11,0,1,1) -> 2012-09-27 | C51: =OFFSET(InputPriceData!G$10,CalculationsAndCharts!$A51+$A$11,0,1,1) -> 113951488 | D51: =OFFSET(InputPriceData!C$10,CalculationsAndCharts!$A51+$A$11,0,1,1) -> 13413.47 | E51: =OFFSET(InputPriceData!D$10,CalculationsAndCharts!$A51+$A$11,0,1,1) -> 13522.83 | F51: =OFFSET(InputPriceData!E$10,CalculationsAndCharts!$A51+$A$11,0,1,1) -> 13413.47 | G51: =OFFSET(InputPriceData!F$10,CalculationsAndCharts!$A51+$A$11,0,1,1) -> 13485.97 | H51: =IF(AND(A51<=$B$20,$S$14),$T$14,0) -> 0 | I51: =IF(AND(A51<=$B$20,$S$15),$T$15,0) -> 0 | J51: =IF(AND(A51<=$B$20,$S$16),$T$16,0) -> 12765.86875 | K51: =IF(AND(A51<=$B$20,$S$17),$T$17,0) -> 12604.5675 | L51: =IF(AND(A51<=$B$20,$S$18),$T$18,0) -> 12330.62417 | M51: 0 | N51: 0 | O51: 13088.47125 | P51: 13249.7725 | Q51: 13523.71583 | R51: 0 | S51: 0 | T51: 0 | U51: 0 | V51: 0 | W51: 0 | X51: 0 | Y51: 0
A52: 21 | B52: =OFFSET(InputPriceData!B$10,CalculationsAndCharts!$A52+$A$11,0,1,1) -> 2012-09-26 | C52: =OFFSET(InputPriceData!G$10,CalculationsAndCharts!$A52+$A$11,0,1,1) -> 124334563 | D52: =OFFSET(InputPriceData!C$10,CalculationsAndCharts!$A52+$A$11,0,1,1) -> 13458.63 | E52: =OFFSET(InputPriceData!D$10,CalculationsAndCharts!$A52+$A$11,0,1,1) -> 13480.37 | F52: =OFFSET(InputPriceData!E$10,CalculationsAndCharts!$A52+$A$11,0,1,1) -> 13406.91 | G52: =OFFSET(InputPriceData!F$10,CalculationsAndCharts!$A52+$A$11,0,1,1) -> 13413.51 | H52: =IF(AND(A52<=$B$20,$S$14),$T$14,0) -> 0 | I52: =IF(AND(A52<=$B$20,$S$15),$T$15,0) -> 0 | J52: =IF(AND(A52<=$B$20,$S$16),$T$16,0) -> 12765.86875 | K52: =IF(AND(A52<=$B$20,$S$17),$T$17,0) -> 12604.5675 | L52: =IF(AND(A52<=$B$20,$S$18),$T$18,0) -> 12330.62417 | M52: 0 | N52: 0 | O52: 13088.47125 | P52: 13249.7725 | Q52: 13523.71583 | R52: 0 | S52: 0 | T52: 0 | U52: 0 | V52: 0 | W52: 0 | X52: 0 | Y52: 0
A53: 22 | B53: =OFFSET(InputPriceData!B$10,CalculationsAndCharts!$A53+$A$11,0,1,1) -> 2012-09-25 | C53: =OFFSET(InputPriceData!G$10,CalculationsAndCharts!$A53+$A$11,0,1,1) -> 138479667 | D53: =OFFSET(InputPriceData!C$10,CalculationsAndCharts!$A53+$A$11,0,1,1) -> 13559.92 | E53: =OFFSET(InputPriceData!D$10,CalculationsAndCharts!$A53+$A$11,0,1,1) -> 13620.21 | F53: =OFFSET(InputPriceData!E$10,CalculationsAndCharts!$A53+$A$11,0,1,1) -> 13457.25 | G53: =OFFSET(InputPriceData!F$10,CalculationsAndCharts!$A53+$A$11,0,1,1) -> 13457.55 | H53: =IF(AND(A53<=$B$20,$S$14),$T$14,0) -> 0 | I53: =IF(AND(A53<=$B$20,$S$15),$T$15,0) -> 0 | J53: =IF(AND(A53<=$B$20,$S$16),$T$16,0) -> 12765.86875 | K53: =IF(AND(A53<=$B$20,$S$17),$T$17,0) -> 12604.5675 | L53: =IF(AND(A53<=$B$20,$S$18),$T$18,0) -> 12330.62417 | M53: 0 | N53: 0 | O53: 13088.47125 | P53: 13249.7725 | Q53: 13523.71583 | R53: 0 | S53: 0 | T53: 0 | U53: 0 | V53: 0 | W53: 0 | X53: 0 | Y53: 0
A54: 23 | B54: =OFFSET(InputPriceData!B$10,CalculationsAndCharts!$A54+$A$11,0,1,1) -> 2012-09-24 | C54: =OFFSET(InputPriceData!G$10,CalculationsAndCharts!$A54+$A$11,0,1,1) -> 120328750 | D54: =OFFSET(InputPriceData!C$10,CalculationsAndCharts!$A54+$A$11,0,1,1) -> 13577.85 | E54: =OFFSET(InputPriceData!D$10,CalculationsAndCharts!$A54+$A$11,0,1,1) -> 13601.9 | F54: =OFFSET(InputPriceData!E$10,CalculationsAndCharts!$A54+$A$11,0,1,1) -> 13521.68 | G54: =OFFSET(InputPriceData!F$10,CalculationsAndCharts!$A54+$A$11,0,1,1) -> 13558.92 | H54: =IF(AND(A54<=$B$20,$S$14),$T$14,0) -> 0 | I54: =IF(AND(A54<=$B$20,$S$15),$T$15,0) -> 0 | J54: =IF(AND(A54<=$B$20,$S$16),$T$16,0) -> 12765.86875 | K54: =IF(AND(A54<=$B$20,$S$17),$T$17,0) -> 12604.5675 | L54: =IF(AND(A54<=$B$20,$S$18),$T$18,0) -> 12330.62417 | M54: 0 | N54: 0 | O54: 13088.47125 | P54: 13249.7725 | Q54: 13523.71583 | R54: 0 | S54: 0 | T54: 0 | U54: 0 | V54: 0 | W54: 0 | X54: 0 | Y54: 0
A55: 24 | B55: =OFFSET(InputPriceData!B$10,CalculationsAndCharts!$A55+$A$11,0,1,1) -> 2012-09-21 | C55: =OFFSET(InputPriceData!G$10,CalculationsAndCharts!$A55+$A$11,0,1,1) -> 429592201 | D55: =OFFSET(InputPriceData!C$10,CalculationsAndCharts!$A55+$A$11,0,1,1) -> 13597.24 | E55: =OFFSET(InputPriceData!D$10,CalculationsAndCharts!$A55+$A$11,0,1,1) -> 13647.1 | F55: =OFFSET(InputPriceData!E$10,CalculationsAndCharts!$A55+$A$11,0,1,1) -> 13571.53 | G55: =OFFSET(InputPriceData!F$10,CalculationsAndCharts!$A55+$A$11,0,1,1) -> 13579.47 | H55: =IF(AND(A55<=$B$20,$S$14),$T$14,0) -> 0 | I55: =IF(AND(A55<=$B$20,$S$15),$T$15,0) -> 0 | J55: =IF(AND(A55<=$B$20,$S$16),$T$16,0) -> 12765.86875 | K55: =IF(AND(A55<=$B$20,$S$17),$T$17,0) -> 12604.5675 | L55: =IF(AND(A55<=$B$20,$S$18),$T$18,0) -> 12330.62417 | M55: 0 | N55: 0 | O55: 13088.47125 | P55: 13249.7725 | Q55: 13523.71583 | R55: 0 | S55: 0 | T55: 0 | U55: 0 | V55: 0 | W55: 0 | X55: 0 | Y55: 0
A56: 25 | B56: =OFFSET(InputPriceData!B$10,CalculationsAndCharts!$A56+$A$11,0,1,1) -> 2012-09-20 | C56: =OFFSET(InputPriceData!G$10,CalculationsAndCharts!$A56+$A$11,0,1,1) -> 117899776 | D56: =OFFSET(InputPriceData!C$10,CalculationsAndCharts!$A56+$A$11,0,1,1) -> 13575.17 | E56: =OFFSET(InputPriceData!D$10,CalculationsAndCharts!$A56+$A$11,0,1,1) -> 13599.02 | F56: =OFFSET(InputPriceData!E$10,CalculationsAndCharts!$A56+$A$11,0,1,1) -> 13503 | G56: =OFFSET(InputPriceData!F$10,CalculationsAndCharts!$A56+$A$11,0,1,1) -> 13596.93 | H56: =IF(AND(A56<=$B$20,$S$14),$T$14,0) -> 0 | I56: =IF(AND(A56<=$B$20,$S$15),$T$15,0) -> 0 | J56: =IF(AND(A56<=$B$20,$S$16),$T$16,0) -> 12765.86875 | K56: =IF(AND(A56<=$B$20,$S$17),$T$17,0) -> 12604.5675 | L56: =IF(AND(A56<=$B$20,$S$18),$T$18,0) -> 12330.62417 | M56: 0 | N56: 0 | O56: 13088.47125 | P56: 13249.7725 | Q56: 13523.71583 | R56: 0 | S56: 0 | T56: 0 | U56: 0 | V56: 0 | W56: 0 | X56: 0 | Y56: 0
A57: 26 | B57: =OFFSET(InputPriceData!B$10,CalculationsAndCharts!$A57+$A$11,0,1,1) -> 2012-09-19 | C57: =OFFSET(InputPriceData!G$10,CalculationsAndCharts!$A57+$A$11,0,1,1) -> 116203041 | D57: =OFFSET(InputPriceData!C$10,CalculationsAndCharts!$A57+$A$11,0,1,1) -> 13565.41 | E57: =OFFSET(InputPriceData!D$10,CalculationsAndCharts!$A57+$A$11,0,1,1) -> 13626.48 | F57: =OFFSET(InputPriceData!E$10,CalculationsAndCharts!$A57+$A$11,0,1,1) -> 13556.74 | G57: =OFFSET(InputPriceData!F$10,CalculationsAndCharts!$A57+$A$11,0,1,1) -> 13577.96 | H57: =IF(AND(A57<=$B$20,$S$14),$T$14,0) -> 0 | I57: =IF(AND(A57<=$B$20,$S$15),$T$15,0) -> 0 | J57: =IF(AND(A57<=$B$20,$S$16),$T$16,0) -> 12765.86875 | K57: =IF(AND(A57<=$B$20,$S$17),$T$17,0) -> 12604.5675 | L57: =IF(AND(A57<=$B$20,$S$18),$T$18,0) -> 12330.62417 | M57: 0 | N57: 0 | O57: 13088.47125 | P57: 13249.7725 | Q57: 13523.71583 | R57: 0 | S57: 0 | T57: 0 | U57: 0 | V57: 0 | W57: 0 | X57: 0 | Y57: 0
A58: 27 | B58: =OFFSET(InputPriceData!B$10,CalculationsAndCharts!$A58+$A$11,0,1,1) -> 2012-09-18 | C58: =OFFSET(InputPriceData!G$10,CalculationsAndCharts!$A58+$A$11,0,1,1) -> 120527119 | D58: =OFFSET(InputPriceData!C$10,CalculationsAndCharts!$A58+$A$11,0,1,1) -> 13552.33 | E58: =OFFSET(InputPriceData!D$10,CalculationsAndCharts!$A58+$A$11,0,1,1) -> 13582.12 | F58: =OFFSET(InputPriceData!E$10,CalculationsAndCharts!$A58+$A$11,0,1,1) -> 13517.81 | G58: =OFFSET(InputPriceData!F$10,CalculationsAndCharts!$A58+$A$11,0,1,1) -> 13564.64 | H58: =IF(AND(A58<=$B$20,$S$14),$T$14,0) -> 0 | I58: =IF(AND(A58<=$B$20,$S$15),$T$15,0) -> 0 | J58: =IF(AND(A58<=$B$20,$S$16),$T$16,0) -> 12765.86875 | K58: =IF(AND(A58<=$B$20,$S$17),$T$17,0) -> 12604.5675 | L58: =IF(AND(A58<=$B$20,$S$18),$T$18,0) -> 12330.62417 | M58: 0 | N58: 0 | O58: 13088.47125 | P58: 13249.7725 | Q58: 13523.71583 | R58: 0 | S58: 0 | T58: 0 | U58: 0 | V58: 0 | W58: 0 | X58: 0 | Y58: 0
A59: 28 | B59: =OFFSET(InputPriceData!B$10,CalculationsAndCharts!$A59+$A$11,0,1,1) -> 2012-09-17 | C59: =OFFSET(InputPriceData!G$10,CalculationsAndCharts!$A59+$A$11,0,1,1) -> 128004490 | D59: =OFFSET(InputPriceData!C$10,CalculationsAndCharts!$A59+$A$11,0,1,1) -> 13588.57 | E59: =OFFSET(InputPriceData!D$10,CalculationsAndCharts!$A59+$A$11,0,1,1) -> 13593.15 | F59: =OFFSET(InputPriceData!E$10,CalculationsAndCharts!$A59+$A$11,0,1,1) -> 13526.67 | G59: =OFFSET(InputPriceData!F$10,CalculationsAndCharts!$A59+$A$11,0,1,1) -> 13553.1 | H59: =IF(AND(A59<=$B$20,$S$14),$T$14,0) -> 0 | I59: =IF(AND(A59<=$B$20,$S$15),$T$15,0) -> 0 | J59: =IF(AND(A59<=$B$20,$S$16),$T$16,0) -> 12765.86875 | K59: =IF(AND(A59<=$B$20,$S$17),$T$17,0) -> 12604.5675 | L59: =IF(AND(A59<=$B$20,$S$18),$T$18,0) -> 12330.62417 | M59: 0 | N59: 0 | O59: 13088.47125 | P59: 13249.7725 | Q59: 13523.71583 | R59: 0 | S59: 0 | T59: 0 | U59: 0 | V59: 0 | W59: 0 | X59: 0 | Y59: 0
A60: 29 | B60: =OFFSET(InputPriceData!B$10,CalculationsAndCharts!$A60+$A$11,0,1,1) -> 2012-09-14 | C60: =OFFSET(InputPriceData!G$10,CalculationsAndCharts!$A60+$A$11,0,1,1) -> 184571677 | D60: =OFFSET(InputPriceData!C$10,CalculationsAndCharts!$A60+$A$11,0,1,1) -> 13540.4 | E60: =OFFSET(InputPriceData!D$10,CalculationsAndCharts!$A60+$A$11,0,1,1) -> 13653.24 | F60: =OFFSET(InputPriceData!E$10,CalculationsAndCharts!$A60+$A$11,0,1,1) -> 13533.94 | G60: =OFFSET(InputPriceData!F$10,CalculationsAndCharts!$A60+$A$11,0,1,1) -> 13593.37 | H60: =IF(AND(A60<=$B$20,$S$14),$T$14,0) -> 0 | I60: =IF(AND(A60<=$B$20,$S$15),$T$15,0) -> 0 | J60: =IF(AND(A60<=$B$20,$S$16),$T$16,0) -> 12765.86875 | K60: =IF(AND(A60<=$B$20,$S$17),$T$17,0) -> 12604.5675 | L60: =IF(AND(A60<=$B$20,$S$18),$T$18,0) -> 12330.62417 | M60: 0 | N60: 0 | O60: 13088.47125 | P60: 13249.7725 | Q60: 13523.71583 | R60: 0 | S60: 0 | T60: 0 | U60: 0 | V60: 0 | W60: 0 | X60: 0 | Y60: 0
A61: 30 | B61: =OFFSET(InputPriceData!B$10,CalculationsAndCharts!$A61+$A$11,0,1,1) -> 2012-09-13 | C61: =OFFSET(InputPriceData!G$10,CalculationsAndCharts!$A61+$A$11,0,1,1) -> 151747046 | D61: =OFFSET(InputPriceData!C$10,CalculationsAndCharts!$A61+$A$11,0,1,1) -> 13329.71 | E61: =OFFSET(InputPriceData!D$10,CalculationsAndCharts!$A61+$A$11,0,1,1) -> 13573.33 | F61: =OFFSET(InputPriceData!E$10,CalculationsAndCharts!$A61+$A$11,0,1,1) -> 13325.11 | G61: =OFFSET(InputPriceData!F$10,CalculationsAndCharts!$A61+$A$11,0,1,1) -> 13539.86 | H61: =IF(AND(A61<=$B$20,$S$14),$T$14,0) -> 0 | I61: =IF(AND(A61<=$B$20,$S$15),$T$15,0) -> 0 | J61: =IF(AND(A61<=$B$20,$S$16),$T$16,0) -> 12765.86875 | K61: =IF(AND(A61<=$B$20,$S$17),$T$17,0) -> 12604.5675 | L61: =IF(AND(A61<=$B$20,$S$18),$T$18,0) -> 12330.62417 | M61: 0 | N61: 0 | O61: 13088.47125 | P61: 13249.7725 | Q61: 13523.71583 | R61: 0 | S61: 0 | T61: 0 | U61: 0 | V61: 0 | W61: 0 | X61: 0 | Y61: 0
A62: 31 | B62: =OFFSET(InputPriceData!B$10,CalculationsAndCharts!$A62+$A$11,0,1,1) -> 2012-09-12 | C62: =OFFSET(InputPriceData!G$10,CalculationsAndCharts!$A62+$A$11,0,1,1) -> 111090714 | D62: =OFFSET(InputPriceData!C$10,CalculationsAndCharts!$A62+$A$11,0,1,1) -> 13321.62 | E62: =OFFSET(InputPriceData!D$10,CalculationsAndCharts!$A62+$A$11,0,1,1) -> 13373.62 | F62: =OFFSET(InputPriceData!E$10,CalculationsAndCharts!$A62+$A$11,0,1,1) -> 13317.52 | G62: =OFFSET(InputPriceData!F$10,CalculationsAndCharts!$A62+$A$11,0,1,1) -> 13333.35 | H62: =IF(AND(A62<=$B$20,$S$14),$T$14,0) -> 0 | I62: =IF(AND(A62<=$B$20,$S$15),$T$15,0) -> 0 | J62: =IF(AND(A62<=$B$20,$S$16),$T$16,0) -> 12765.86875 | K62: =IF(AND(A62<=$B$20,$S$17),$T$17,0) -> 12604.5675 | L62: =IF(AND(A62<=$B$20,$S$18),$T$18,0) -> 12330.62417 | M62: 0 | N62: 0 | O62: 13088.47125 | P62: 13249.7725 | Q62: 13523.71583 | R62: 0 | S62: 0 | T62: 0 | U62: 0 | V62: 0 | W62: 0 | X62: 0 | Y62: 0
A63: 32 | B63: =OFFSET(InputPriceData!B$10,CalculationsAndCharts!$A63+$A$11,0,1,1) -> 2012-09-11 | C63: =OFFSET(InputPriceData!G$10,CalculationsAndCharts!$A63+$A$11,0,1,1) -> 104895689 | D63: =OFFSET(InputPriceData!C$10,CalculationsAndCharts!$A63+$A$11,0,1,1) -> 13254.6 | E63: =OFFSET(InputPriceData!D$10,CalculationsAndCharts!$A63+$A$11,0,1,1) -> 13354.34 | F63: =OFFSET(InputPriceData!E$10,CalculationsAndCharts!$A63+$A$11,0,1,1) -> 13253.21 | G63: =OFFSET(InputPriceData!F$10,CalculationsAndCharts!$A63+$A$11,0,1,1) -> 13323.36 | H63: =IF(AND(A63<=$B$20,$S$14),$T$14,0) -> 0 | I63: =IF(AND(A63<=$B$20,$S$15),$T$15,0) -> 0 | J63: =IF(AND(A63<=$B$20,$S$16),$T$16,0) -> 12765.86875 | K63: =IF(AND(A63<=$B$20,$S$17),$T$17,0) -> 12604.5675 | L63: =IF(AND(A63<=$B$20,$S$18),$T$18,0) -> 12330.62417 | M63: 0 | N63: 0 | O63: 13088.47125 | P63: 13249.7725 | Q63: 13523.71583 | R63: 0 | S63: 0 | T63: 0 | U63: 0 | V63: 0 | W63: 0 | X63: 0 | Y63: 0
A64: 33 | B64: =OFFSET(InputPriceData!B$10,CalculationsAndCharts!$A64+$A$11,0,1,1) -> 2012-09-10 | C64: =OFFSET(InputPriceData!G$10,CalculationsAndCharts!$A64+$A$11,0,1,1) -> 123781470 | D64: =OFFSET(InputPriceData!C$10,CalculationsAndCharts!$A64+$A$11,0,1,1) -> 13308.56 | E64: =OFFSET(InputPriceData!D$10,CalculationsAndCharts!$A64+$A$11,0,1,1) -> 13324.1 | F64: =OFFSET(InputPriceData!E$10,CalculationsAndCharts!$A64+$A$11,0,1,1) -> 13251.39 | G64: =OFFSET(InputPriceData!F$10,CalculationsAndCharts!$A64+$A$11,0,1,1) -> 13254.29 | H64: =IF(AND(A64<=$B$20,$S$14),$T$14,0) -> 0 | I64: =IF(AND(A64<=$B$20,$S$15),$T$15,0) -> 0 | J64: =IF(AND(A64<=$B$20,$S$16),$T$16,0) -> 12765.86875 | K64: =IF(AND(A64<=$B$20,$S$17),$T$17,0) -> 12604.5675 | L64: =IF(AND(A64<=$B$20,$S$18),$T$18,0) -> 12330.62417 | M64: 0 | N64: 0 | O64: 13088.47125 | P64: 13249.7725 | Q64: 13523.71583 | R64: 0 | S64: 0 | T64: 0 | U64: 0 | V64: 0 | W64: 0 | X64: 0 | Y64: 0
A65: 34 | B65: =OFFSET(InputPriceData!B$10,CalculationsAndCharts!$A65+$A$11,0,1,1) -> 2012-09-07 | C65: =OFFSET(InputPriceData!G$10,CalculationsAndCharts!$A65+$A$11,0,1,1) -> 140693615 | D65: =OFFSET(InputPriceData!C$10,CalculationsAndCharts!$A65+$A$11,0,1,1) -> 13289.53 | E65: =OFFSET(InputPriceData!D$10,CalculationsAndCharts!$A65+$A$11,0,1,1) -> 13320.27 | F65: =OFFSET(InputPriceData!E$10,CalculationsAndCharts!$A65+$A$11,0,1,1) -> 13266.22 | G65: =OFFSET(InputPriceData!F$10,CalculationsAndCharts!$A65+$A$11,0,1,1) -> 13306.64 | H65: =IF(AND(A65<=$B$20,$S$14),$T$14,0) -> 0 | I65: =IF(AND(A65<=$B$20,$S$15),$T$15,0) -> 0 | J65: =IF(AND(A65<=$B$20,$S$16),$T$16,0) -> 12765.86875 | K65: =IF(AND(A65<=$B$20,$S$17),$T$17,0) -> 12604.5675 | L65: =IF(AND(A65<=$B$20,$S$18),$T$18,0) -> 12330.62417 | M65: 0 | N65: 0 | O65: 13088.47125 | P65: 13249.7725 | Q65: 13523.71583 | R65: 0 | S65: 0 | T65: 0 | U65: 0 | V65: 0 | W65: 0 | X65: 0 | Y65: 0
A66: 35 | B66: =OFFSET(InputPriceData!B$10,CalculationsAndCharts!$A66+$A$11,0,1,1) -> 2012-09-06 | C66: =OFFSET(InputPriceData!G$10,CalculationsAndCharts!$A66+$A$11,0,1,1) -> 128623258 | D66: =OFFSET(InputPriceData!C$10,CalculationsAndCharts!$A66+$A$11,0,1,1) -> 13045.23 | E66: =OFFSET(InputPriceData!D$10,CalculationsAndCharts!$A66+$A$11,0,1,1) -> 13294.13 | F66: =OFFSET(InputPriceData!E$10,CalculationsAndCharts!$A66+$A$11,0,1,1) -> 13045.08 | G66: =OFFSET(InputPriceData!F$10,CalculationsAndCharts!$A66+$A$11,0,1,1) -> 13292 | H66: =IF(AND(A66<=$B$20,$S$14),$T$14,0) -> 0 | I66: =IF(AND(A66<=$B$20,$S$15),$T$15,0) -> 0 | J66: =IF(AND(A66<=$B$20,$S$16),$T$16,0) -> 12765.86875 | K66: =IF(AND(A66<=$B$20,$S$17),$T$17,0) -> 12604.5675 | L66: =IF(AND(A66<=$B$20,$S$18),$T$18,0) -> 12330.62417 | M66: 0 | N66: 0 | O66: 13088.47125 | P66: 13249.7725 | Q66: 13523.71583 | R66: 0 | S66: 0 | T66: 0 | U66: 0 | V66: 0 | W66: 0 | X66: 0 | Y66: 0
A67: 36 | B67: =OFFSET(InputPriceData!B$10,CalculationsAndCharts!$A67+$A$11,0,1,1) -> 2012-09-05 | C67: =OFFSET(InputPriceData!G$10,CalculationsAndCharts!$A67+$A$11,0,1,1) -> 92183235 | D67: =OFFSET(InputPriceData!C$10,CalculationsAndCharts!$A67+$A$11,0,1,1) -> 13036.09 | E67: =OFFSET(InputPriceData!D$10,CalculationsAndCharts!$A67+$A$11,0,1,1) -> 13095.91 | F67: =OFFSET(InputPriceData!E$10,CalculationsAndCharts!$A67+$A$11,0,1,1) -> 13018.74 | G67: =OFFSET(InputPriceData!F$10,CalculationsAndCharts!$A67+$A$11,0,1,1) -> 13047.48 | H67: =IF(AND(A67<=$B$20,$S$14),$T$14,0) -> 0 | I67: =IF(AND(A67<=$B$20,$S$15),$T$15,0) -> 0 | J67: =IF(AND(A67<=$B$20,$S$16),$T$16,0) -> 12765.86875 | K67: =IF(AND(A67<=$B$20,$S$17),$T$17,0) -> 12604.5675 | L67: =IF(AND(A67<=$B$20,$S$18),$T$18,0) -> 12330.62417 | M67: 0 | N67: 0 | O67: 13088.47125 | P67: 13249.7725 | Q67: 13523.71583 | R67: 0 | S67: 0 | T67: 0 | U67: 0 | V67: 0 | W67: 0 | X67: 0 | Y67: 0
A68: 37 | B68: =OFFSET(InputPriceData!B$10,CalculationsAndCharts!$A68+$A$11,0,1,1) -> 2012-09-04 | C68: =OFFSET(InputPriceData!G$10,CalculationsAndCharts!$A68+$A$11,0,1,1) -> 103900590 | D68: =OFFSET(InputPriceData!C$10,CalculationsAndCharts!$A68+$A$11,0,1,1) -> 13092.15 | E68: =OFFSET(InputPriceData!D$10,CalculationsAndCharts!$A68+$A$11,0,1,1) -> 13092.39 | F68: =OFFSET(InputPriceData!E$10,CalculationsAndCharts!$A68+$A$11,0,1,1) -> 12977.09 | G68: =OFFSET(InputPriceData!F$10,CalculationsAndCharts!$A68+$A$11,0,1,1) -> 13035.94 | H68: =IF(AND(A68<=$B$20,$S$14),$T$14,0) -> 0 | I68: =IF(AND(A68<=$B$20,$S$15),$T$15,0) -> 0 | J68: =IF(AND(A68<=$B$20,$S$16),$T$16,0) -> 12765.86875 | K68: =IF(AND(A68<=$B$20,$S$17),$T$17,0) -> 12604.5675 | L68: =IF(AND(A68<=$B$20,$S$18),$T$18,0) -> 12330.62417 | M68: 0 | N68: 0 | O68: 13088.47125 | P68: 13249.7725 | Q68: 13523.71583 | R68: 0 | S68: 0 | T68: 0 | U68: 0 | V68: 0 | W68: 0 | X68: 0 | Y68: 0
A69: 38 | B69: =OFFSET(InputPriceData!B$10,CalculationsAndCharts!$A69+$A$11,0,1,1) -> 2012-08-31 | C69: =OFFSET(InputPriceData!G$10,CalculationsAndCharts!$A69+$A$11,0,1,1) -> 119752154 | D69: =OFFSET(InputPriceData!C$10,CalculationsAndCharts!$A69+$A$11,0,1,1) -> 13002.72 | E69: =OFFSET(InputPriceData!D$10,CalculationsAndCharts!$A69+$A$11,0,1,1) -> 13151.87 | F69: =OFFSET(InputPriceData!E$10,CalculationsAndCharts!$A69+$A$11,0,1,1) -> 13002.64 | G69: =OFFSET(InputPriceData!F$10,CalculationsAndCharts!$A69+$A$11,0,1,1) -> 13090.84 | H69: =IF(AND(A69<=$B$20,$S$14),$T$14,0) -> 0 | I69: =IF(AND(A69<=$B$20,$S$15),$T$15,0) -> 0 | J69: =IF(AND(A69<=$B$20,$S$16),$T$16,0) -> 12765.86875 | K69: =IF(AND(A69<=$B$20,$S$17),$T$17,0) -> 12604.5675 | L69: =IF(AND(A69<=$B$20,$S$18),$T$18,0) -> 12330.62417 | M69: 0 | N69: 0 | O69: 13088.47125 | P69: 13249.7725 | Q69: 13523.71583 | R69: 0 | S69: 0 | T69: 0 | U69: 0 | V69: 0 | W69: 0 | X69: 0 | Y69: 0
A70: 39 | B70: =OFFSET(InputPriceData!B$10,CalculationsAndCharts!$A70+$A$11,0,1,1) -> 2012-08-30 | C70: =OFFSET(InputPriceData!G$10,CalculationsAndCharts!$A70+$A$11,0,1,1) -> 89963994 | D70: =OFFSET(InputPriceData!C$10,CalculationsAndCharts!$A70+$A$11,0,1,1) -> 13101.29 | E70: =OFFSET(InputPriceData!D$10,CalculationsAndCharts!$A70+$A$11,0,1,1) -> 13101.37 | F70: =OFFSET(InputPriceData!E$10,CalculationsAndCharts!$A70+$A$11,0,1,1) -> 12978.91 | G70: =OFFSET(InputPriceData!F$10,CalculationsAndCharts!$A70+$A$11,0,1,1) -> 13000.71 | H70: =IF(AND(A70<=$B$20,$S$14),$T$14,0) -> 0 | I70: =IF(AND(A70<=$B$20,$S$15),$T$15,0) -> 0 | J70: =IF(AND(A70<=$B$20,$S$16),$T$16,0) -> 12765.86875 | K70: =IF(AND(A70<=$B$20,$S$17),$T$17,0) -> 12604.5675 | L70: =IF(AND(A70<=$B$20,$S$18),$T$18,0) -> 12330.62417 | M70: 0 | N70: 0 | O70: 13088.47125 | P70: 13249.7725 | Q70: 13523.71583 | R70: 0 | S70: 0 | T70: 0 | U70: 0 | V70: 0 | W70: 0 | X70: 0 | Y70: 0
A71: 40 | B71: =OFFSET(InputPriceData!B$10,CalculationsAndCharts!$A71+$A$11,0,1,1) -> 2012-08-29 | C71: =OFFSET(InputPriceData!G$10,CalculationsAndCharts!$A71+$A$11,0,1,1) -> 89892260 | D71: =OFFSET(InputPriceData!C$10,CalculationsAndCharts!$A71+$A$11,0,1,1) -> 13103.46 | E71: =OFFSET(InputPriceData!D$10,CalculationsAndCharts!$A71+$A$11,0,1,1) -> 13144.81 | F71: =OFFSET(InputPriceData!E$10,CalculationsAndCharts!$A71+$A$11,0,1,1) -> 13081.27 | G71: =OFFSET(InputPriceData!F$10,CalculationsAndCharts!$A71+$A$11,0,1,1) -> 13107.48 | H71: =IF(AND(A71<=$B$20,$S$14),$T$14,0) -> 0 | I71: =IF(AND(A71<=$B$20,$S$15),$T$15,0) -> 0 | J71: =IF(AND(A71<=$B$20,$S$16),$T$16,0) -> 12765.86875 | K71: =IF(AND(A71<=$B$20,$S$17),$T$17,0) -> 12604.5675 | L71: =IF(AND(A71<=$B$20,$S$18),$T$18,0) -> 12330.62417 | M71: 0 | N71: 0 | O71: 13088.47125 | P71: 13249.7725 | Q71: 13523.71583 | R71: 0 | S71: 0 | T71: 0 | U71: 0 | V71: 0 | W71: 0 | X71: 0 | Y71: 0
A72: 41 | B72: =OFFSET(InputPriceData!B$10,CalculationsAndCharts!$A72+$A$11,0,1,1) -> 2012-08-28 | C72: =OFFSET(InputPriceData!G$10,CalculationsAndCharts!$A72+$A$11,0,1,1) -> 81625855 | D72: =OFFSET(InputPriceData!C$10,CalculationsAndCharts!$A72+$A$11,0,1,1) -> 13122.74 | E72: =OFFSET(InputPriceData!D$10,CalculationsAndCharts!$A72+$A$11,0,1,1) -> 13147.32 | F72: =OFFSET(InputPriceData!E$10,CalculationsAndCharts!$A72+$A$11,0,1,1) -> 13081.12 | G72: =OFFSET(InputPriceData!F$10,CalculationsAndCharts!$A72+$A$11,0,1,1) -> 13102.99 | H72: =IF(AND(A72<=$B$20,$S$14),$T$14,0) -> 0 | I72: =IF(AND(A72<=$B$20,$S$15),$T$15,0) -> 0 | J72: =IF(AND(A72<=$B$20,$S$16),$T$16,0) -> 12765.86875 | K72: =IF(AND(A72<=$B$20,$S$17),$T$17,0) -> 12604.5675 | L72: =IF(AND(A72<=$B$20,$S$18),$T$18,0) -> 12330.62417 | M72: 0 | N72: 0 | O72: 13088.47125 | P72: 13249.7725 | Q72: 13523.71583 | R72: 0 | S72: 0 | T72: 0 | U72: 0 | V72: 0 | W72: 0 | X72: 0 | Y72: 0
A73: 42 | B73: =OFFSET(InputPriceData!B$10,CalculationsAndCharts!$A73+$A$11,0,1,1) -> 2012-08-27 | C73: =OFFSET(InputPriceData!G$10,CalculationsAndCharts!$A73+$A$11,0,1,1) -> 96068237 | D73: =OFFSET(InputPriceData!C$10,CalculationsAndCharts!$A73+$A$11,0,1,1) -> 13157.74 | E73: =OFFSET(InputPriceData!D$10,CalculationsAndCharts!$A73+$A$11,0,1,1) -> 13176.17 | F73: =OFFSET(InputPriceData!E$10,CalculationsAndCharts!$A73+$A$11,0,1,1) -> 13115.46 | G73: =OFFSET(InputPriceData!F$10,CalculationsAndCharts!$A73+$A$11,0,1,1) -> 13124.67 | H73: =IF(AND(A73<=$B$20,$S$14),$T$14,0) -> 0 | I73: =IF(AND(A73<=$B$20,$S$15),$T$15,0) -> 0 | J73: =IF(AND(A73<=$B$20,$S$16),$T$16,0) -> 12765.86875 | K73: =IF(AND(A73<=$B$20,$S$17),$T$17,0) -> 12604.5675 | L73: =IF(AND(A73<=$B$20,$S$18),$T$18,0) -> 12330.62417 | M73: 0 | N73: 0 | O73: 13088.47125 | P73: 13249.7725 | Q73: 13523.71583 | R73: 0 | S73: 0 | T73: 0 | U73: 0 | V73: 0 | W73: 0 | X73: 0 | Y73: 0
A74: 43 | B74: =OFFSET(InputPriceData!B$10,CalculationsAndCharts!$A74+$A$11,0,1,1) -> 2012-08-24 | C74: =OFFSET(InputPriceData!G$10,CalculationsAndCharts!$A74+$A$11,0,1,1) -> 86772375 | D74: =OFFSET(InputPriceData!C$10,CalculationsAndCharts!$A74+$A$11,0,1,1) -> 13052.82 | E74: =OFFSET(InputPriceData!D$10,CalculationsAndCharts!$A74+$A$11,0,1,1) -> 13175.51 | F74: =OFFSET(InputPriceData!E$10,CalculationsAndCharts!$A74+$A$11,0,1,1) -> 13027.2 | G74: =OFFSET(InputPriceData!F$10,CalculationsAndCharts!$A74+$A$11,0,1,1) -> 13157.97 | H74: =IF(AND(A74<=$B$20,$S$14),$T$14,0) -> 0 | I74: =IF(AND(A74<=$B$20,$S$15),$T$15,0) -> 0 | J74: =IF(AND(A74<=$B$20,$S$16),$T$16,0) -> 12765.86875 | K74: =IF(AND(A74<=$B$20,$S$17),$T$17,0) -> 12604.5675 | L74: =IF(AND(A74<=$B$20,$S$18),$T$18,0) -> 12330.62417 | M74: 0 | N74: 0 | O74: 13088.47125 | P74: 13249.7725 | Q74: 13523.71583 | R74: 0 | S74: 0 | T74: 0 | U74: 0 | V74: 0 | W74: 0 | X74: 0 | Y74: 0
A75: 44 | B75: =OFFSET(InputPriceData!B$10,CalculationsAndCharts!$A75+$A$11,0,1,1) -> 2012-08-23 | C75: =OFFSET(InputPriceData!G$10,CalculationsAndCharts!$A75+$A$11,0,1,1) -> 101411074 | D75: =OFFSET(InputPriceData!C$10,CalculationsAndCharts!$A75+$A$11,0,1,1) -> 13171.37 | E75: =OFFSET(InputPriceData!D$10,CalculationsAndCharts!$A75+$A$11,0,1,1) -> 13171.37 | F75: =OFFSET(InputPriceData!E$10,CalculationsAndCharts!$A75+$A$11,0,1,1) -> 13046.46 | G75: =OFFSET(InputPriceData!F$10,CalculationsAndCharts!$A75+$A$11,0,1,1) -> 13057.46 | H75: =IF(AND(A75<=$B$20,$S$14),$T$14,0) -> 0 | I75: =IF(AND(A75<=$B$20,$S$15),$T$15,0) -> 0 | J75: =IF(AND(A75<=$B$20,$S$16),$T$16,0) -> 12765.86875 | K75: =IF(AND(A75<=$B$20,$S$17),$T$17,0) -> 12604.5675 | L75: =IF(AND(A75<=$B$20,$S$18),$T$18,0) -> 12330.62417 | M75: 0 | N75: 0 | O75: 13088.47125 | P75: 13249.7725 | Q75: 13523.71583 | R75: 0 | S75: 0 | T75: 0 | U75: 0 | V75: 0 | W75: 0 | X75: 0 | Y75: 0
A76: 45 | B76: =OFFSET(InputPriceData!B$10,CalculationsAndCharts!$A76+$A$11,0,1,1) -> 2012-08-22 | C76: =OFFSET(InputPriceData!G$10,CalculationsAndCharts!$A76+$A$11,0,1,1) -> 111213843 | D76: =OFFSET(InputPriceData!C$10,CalculationsAndCharts!$A76+$A$11,0,1,1) -> 13198.31 | E76: =OFFSET(InputPriceData!D$10,CalculationsAndCharts!$A76+$A$11,0,1,1) -> 13205.06 | F76: =OFFSET(InputPriceData!E$10,CalculationsAndCharts!$A76+$A$11,0,1,1) -> 13120.34 | G76: =OFFSET(InputPriceData!F$10,CalculationsAndCharts!$A76+$A$11,0,1,1) -> 13172.76 | H76: =IF(AND(A76<=$B$20,$S$14),$T$14,0) -> 0 | I76: =IF(AND(A76<=$B$20,$S$15),$T$15,0) -> 0 | J76: =IF(AND(A76<=$B$20,$S$16),$T$16,0) -> 12765.86875 | K76: =IF(AND(A76<=$B$20,$S$17),$T$17,0) -> 12604.5675 | L76: =IF(AND(A76<=$B$20,$S$18),$T$18,0) -> 12330.62417 | M76: 0 | N76: 0 | O76: 13088.47125 | P76: 13249.7725 | Q76: 13523.71583 | R76: 0 | S76: 0 | T76: 0 | U76: 0 | V76: 0 | W76: 0 | X76: 0 | Y76: 0
A77: 46 | B77: =OFFSET(InputPriceData!B$10,CalculationsAndCharts!$A77+$A$11,0,1,1) -> 2012-08-21 | C77: =OFFSET(InputPriceData!G$10,CalculationsAndCharts!$A77+$A$11,0,1,1) -> 117004724 | D77: =OFFSET(InputPriceData!C$10,CalculationsAndCharts!$A77+$A$11,0,1,1) -> 13272.1 | E77: =OFFSET(InputPriceData!D$10,CalculationsAndCharts!$A77+$A$11,0,1,1) -> 13330.76 | F77: =OFFSET(InputPriceData!E$10,CalculationsAndCharts!$A77+$A$11,0,1,1) -> 13186.6 | G77: =OFFSET(InputPriceData!F$10,CalculationsAndCharts!$A77+$A$11,0,1,1) -> 13203.58 | H77: =IF(AND(A77<=$B$20,$S$14),$T$14,0) -> 0 | I77: =IF(AND(A77<=$B$20,$S$15),$T$15,0) -> 0 | J77: =IF(AND(A77<=$B$20,$S$16),$T$16,0) -> 12765.86875 | K77: =IF(AND(A77<=$B$20,$S$17),$T$17,0) -> 12604.5675 | L77: =IF(AND(A77<=$B$20,$S$18),$T$18,0) -> 12330.62417 | M77: 0 | N77: 0 | O77: 13088.47125 | P77: 13249.7725 | Q77: 13523.71583 | R77: 0 | S77: 0 | T77: 0 | U77: 0 | V77: 0 | W77: 0 | X77: 0 | Y77: 0
A78: 47 | B78: =OFFSET(InputPriceData!B$10,CalculationsAndCharts!$A78+$A$11,0,1,1) -> 2012-08-20 | C78: =OFFSET(InputPriceData!G$10,CalculationsAndCharts!$A78+$A$11,0,1,1) -> 87534968 | D78: =OFFSET(InputPriceData!C$10,CalculationsAndCharts!$A78+$A$11,0,1,1) -> 13274.58 | E78: =OFFSET(InputPriceData!D$10,CalculationsAndCharts!$A78+$A$11,0,1,1) -> 13276.15 | F78: =OFFSET(InputPriceData!E$10,CalculationsAndCharts!$A78+$A$11,0,1,1) -> 13230.06 | G78: =OFFSET(InputPriceData!F$10,CalculationsAndCharts!$A78+$A$11,0,1,1) -> 13271.64 | H78: =IF(AND(A78<=$B$20,$S$14),$T$14,0) -> 0 | I78: =IF(AND(A78<=$B$20,$S$15),$T$15,0) -> 0 | J78: =IF(AND(A78<=$B$20,$S$16),$T$16,0) -> 12765.86875 | K78: =IF(AND(A78<=$B$20,$S$17),$T$17,0) -> 12604.5675 | L78: =IF(AND(A78<=$B$20,$S$18),$T$18,0) -> 12330.62417 | M78: 0 | N78: 0 | O78: 13088.47125 | P78: 13249.7725 | Q78: 13523.71583 | R78: 0 | S78: 0 | T78: 0 | U78: 0 | V78: 0 | W78: 0 | X78: 0 | Y78: 0
A79: 48 | B79: =OFFSET(InputPriceData!B$10,CalculationsAndCharts!$A79+$A$11,0,1,1) -> 2012-08-17 | C79: =OFFSET(InputPriceData!G$10,CalculationsAndCharts!$A79+$A$11,0,1,1) -> 138020795 | D79: =OFFSET(InputPriceData!C$10,CalculationsAndCharts!$A79+$A$11,0,1,1) -> 13251.2 | E79: =OFFSET(InputPriceData!D$10,CalculationsAndCharts!$A79+$A$11,0,1,1) -> 13281.32 | F79: =OFFSET(InputPriceData!E$10,CalculationsAndCharts!$A79+$A$11,0,1,1) -> 13244.85 | G79: =OFFSET(InputPriceData!F$10,CalculationsAndCharts!$A79+$A$11,0,1,1) -> 13275.2 | H79: =IF(AND(A79<=$B$20,$S$14),$T$14,0) -> 0 | I79: =IF(AND(A79<=$B$20,$S$15),$T$15,0) -> 0 | J79: =IF(AND(A79<=$B$20,$S$16),$T$16,0) -> 12765.86875 | K79: =IF(AND(A79<=$B$20,$S$17),$T$17,0) -> 12604.5675 | L79: =IF(AND(A79<=$B$20,$S$18),$T$18,0) -> 12330.62417 | M79: 0 | N79: 0 | O79: 13088.47125 | P79: 13249.7725 | Q79: 13523.71583 | R79: 0 | S79: 0 | T79: 0 | U79: 0 | V79: 0 | W79: 0 | X79: 0 | Y79: 0
A80: 49 | B80: =OFFSET(InputPriceData!B$10,CalculationsAndCharts!$A80+$A$11,0,1,1) -> 2012-08-16 | C80: =OFFSET(InputPriceData!G$10,CalculationsAndCharts!$A80+$A$11,0,1,1) -> 114562583 | D80: =OFFSET(InputPriceData!C$10,CalculationsAndCharts!$A80+$A$11,0,1,1) -> 13163.24 | E80: =OFFSET(InputPriceData!D$10,CalculationsAndCharts!$A80+$A$11,0,1,1) -> 13269.35 | F80: =OFFSET(InputPriceData!E$10,CalculationsAndCharts!$A80+$A$11,0,1,1) -> 13145.85 | G80: =OFFSET(InputPriceData!F$10,CalculationsAndCharts!$A80+$A$11,0,1,1) -> 13250.11 | H80: =IF(AND(A80<=$B$20,$S$14),$T$14,0) -> 0 | I80: =IF(AND(A80<=$B$20,$S$15),$T$15,0) -> 0 | J80: =IF(AND(A80<=$B$20,$S$16),$T$16,0) -> 12765.86875 | K80: =IF(AND(A80<=$B$20,$S$17),$T$17,0) -> 12604.5675 | L80: =IF(AND(A80<=$B$20,$S$18),$T$18,0) -> 12330.62417 | M80: 0 | N80: 0 | O80: 13088.47125 | P80: 13249.7725 | Q80: 13523.71583 | R80: 0 | S80: 0 | T80: 0 | U80: 0 | V80: 0 | W80: 0 | X80: 0 | Y80: 0
A81: 50 | B81: =OFFSET(InputPriceData!B$10,CalculationsAndCharts!$A81+$A$11,0,1,1) -> 2012-08-15 | C81: =OFFSET(InputPriceData!G$10,CalculationsAndCharts!$A81+$A$11,0,1,1) -> 74845587 | D81: =OFFSET(InputPriceData!C$10,CalculationsAndCharts!$A81+$A$11,0,1,1) -> 13157.47 | E81: =OFFSET(InputPriceData!D$10,CalculationsAndCharts!$A81+$A$11,0,1,1) -> 13192.89 | F81: =OFFSET(InputPriceData!E$10,CalculationsAndCharts!$A81+$A$11,0,1,1) -> 13138.23 | G81: =OFFSET(InputPriceData!F$10,CalculationsAndCharts!$A81+$A$11,0,1,1) -> 13164.78 | H81: =IF(AND(A81<=$B$20,$S$14),$T$14,0) -> 0 | I81: =IF(AND(A81<=$B$20,$S$15),$T$15,0) -> 0 | J81: =IF(AND(A81<=$B$20,$S$16),$T$16,0) -> 12765.86875 | K81: =IF(AND(A81<=$B$20,$S$17),$T$17,0) -> 12604.5675 | L81: =IF(AND(A81<=$B$20,$S$18),$T$18,0) -> 12330.62417 | M81: 0 | N81: 0 | O81: 13088.47125 | P81: 13249.7725 | Q81: 13523.71583 | R81: 0 | S81: 0 | T81: 0 | U81: 0 | V81: 0 | W81: 0 | X81: 0 | Y81: 0
A82: 51 | B82: =OFFSET(InputPriceData!B$10,CalculationsAndCharts!$A82+$A$11,0,1,1) -> 2012-08-14 | C82: =OFFSET(InputPriceData!G$10,CalculationsAndCharts!$A82+$A$11,0,1,1) -> 84392838 | D82: =OFFSET(InputPriceData!C$10,CalculationsAndCharts!$A82+$A$11,0,1,1) -> 13168.11 | E82: =OFFSET(InputPriceData!D$10,CalculationsAndCharts!$A82+$A$11,0,1,1) -> 13223.01 | F82: =OFFSET(InputPriceData!E$10,CalculationsAndCharts!$A82+$A$11,0,1,1) -> 13142.1 | G82: =OFFSET(InputPriceData!F$10,CalculationsAndCharts!$A82+$A$11,0,1,1) -> 13172.14 | H82: =IF(AND(A82<=$B$20,$S$14),$T$14,0) -> 0 | I82: =IF(AND(A82<=$B$20,$S$15),$T$15,0) -> 0 | J82: =IF(AND(A82<=$B$20,$S$16),$T$16,0) -> 12765.86875 | K82: =IF(AND(A82<=$B$20,$S$17),$T$17,0) -> 12604.5675 | L82: =IF(AND(A82<=$B$20,$S$18),$T$18,0) -> 12330.62417 | M82: 0 | N82: 0 | O82: 13088.47125 | P82: 13249.7725 | Q82: 13523.71583 | R82: 0 | S82: 0 | T82: 0 | U82: 0 | V82: 0 | W82: 0 | X82: 0 | Y82: 0
A83: 52 | B83: =OFFSET(InputPriceData!B$10,CalculationsAndCharts!$A83+$A$11,0,1,1) -> 2012-08-13 | C83: =OFFSET(InputPriceData!G$10,CalculationsAndCharts!$A83+$A$11,0,1,1) -> 67537123 | D83: =OFFSET(InputPriceData!C$10,CalculationsAndCharts!$A83+$A$11,0,1,1) -> 13204.93 | E83: =OFFSET(InputPriceData!D$10,CalculationsAndCharts!$A83+$A$11,0,1,1) -> 13205.01 | F83: =OFFSET(InputPriceData!E$10,CalculationsAndCharts!$A83+$A$11,0,1,1) -> 13112.94 | G83: =OFFSET(InputPriceData!F$10,CalculationsAndCharts!$A83+$A$11,0,1,1) -> 13169.43 | H83: =IF(AND(A83<=$B$20,$S$14),$T$14,0) -> 0 | I83: =IF(AND(A83<=$B$20,$S$15),$T$15,0) -> 0 | J83: =IF(AND(A83<=$B$20,$S$16),$T$16,0) -> 12765.86875 | K83: =IF(AND(A83<=$B$20,$S$17),$T$17,0) -> 12604.5675 | L83: =IF(AND(A83<=$B$20,$S$18),$T$18,0) -> 12330.62417 | M83: 0 | N83: 0 | O83: 13088.47125 | P83: 13249.7725 | Q83: 13523.71583 | R83: 0 | S83: 0 | T83: 0 | U83: 0 | V83: 0 | W83: 0 | X83: 0 | Y83: 0
A84: 53 | B84: =OFFSET(InputPriceData!B$10,CalculationsAndCharts!$A84+$A$11,0,1,1) -> 2012-08-10 | C84: =OFFSET(InputPriceData!G$10,CalculationsAndCharts!$A84+$A$11,0,1,1) -> 86625628 | D84: =OFFSET(InputPriceData!C$10,CalculationsAndCharts!$A84+$A$11,0,1,1) -> 13163.15 | E84: =OFFSET(InputPriceData!D$10,CalculationsAndCharts!$A84+$A$11,0,1,1) -> 13208.22 | F84: =OFFSET(InputPriceData!E$10,CalculationsAndCharts!$A84+$A$11,0,1,1) -> 13094.96 | G84: =OFFSET(InputPriceData!F$10,CalculationsAndCharts!$A84+$A$11,0,1,1) -> 13207.95 | H84: =IF(AND(A84<=$B$20,$S$14),$T$14,0) -> 0 | I84: =IF(AND(A84<=$B$20,$S$15),$T$15,0) -> 0 | J84: =IF(AND(A84<=$B$20,$S$16),$T$16,0) -> 12765.86875 | K84: =IF(AND(A84<=$B$20,$S$17),$T$17,0) -> 12604.5675 | L84: =IF(AND(A84<=$B$20,$S$18),$T$18,0) -> 12330.62417 | M84: 0 | N84: 0 | O84: 13088.47125 | P84: 13249.7725 | Q84: 13523.71583 | R84: 0 | S84: 0 | T84: 0 | U84: 0 | V84: 0 | W84: 0 | X84: 0 | Y84: 0
A85: 54 | B85: =OFFSET(InputPriceData!B$10,CalculationsAndCharts!$A85+$A$11,0,1,1) -> 2012-08-09 | C85: =OFFSET(InputPriceData!G$10,CalculationsAndCharts!$A85+$A$11,0,1,1) -> 83547970 | D85: =OFFSET(InputPriceData!C$10,CalculationsAndCharts!$A85+$A$11,0,1,1) -> 13174.73 | E85: =OFFSET(InputPriceData!D$10,CalculationsAndCharts!$A85+$A$11,0,1,1) -> 13200.23 | F85: =OFFSET(InputPriceData!E$10,CalculationsAndCharts!$A85+$A$11,0,1,1) -> 13125.09 | G85: =OFFSET(InputPriceData!F$10,CalculationsAndCharts!$A85+$A$11,0,1,1) -> 13165.19 | H85: =IF(AND(A85<=$B$20,$S$14),$T$14,0) -> 0 | I85: =IF(AND(A85<=$B$20,$S$15),$T$15,0) -> 0 | J85: =IF(AND(A85<=$B$20,$S$16),$T$16,0) -> 12765.86875 | K85: =IF(AND(A85<=$B$20,$S$17),$T$17,0) -> 12604.5675 | L85: =IF(AND(A85<=$B$20,$S$18),$T$18,0) -> 12330.62417 | M85: 0 | N85: 0 | O85: 13088.47125 | P85: 13249.7725 | Q85: 13523.71583 | R85: 0 | S85: 0 | T85: 0 | U85: 0 | V85: 0 | W85: 0 | X85: 0 | Y85: 0
A86: 55 | B86: =OFFSET(InputPriceData!B$10,CalculationsAndCharts!$A86+$A$11,0,1,1) -> 2012-08-08 | C86: =OFFSET(InputPriceData!G$10,CalculationsAndCharts!$A86+$A$11,0,1,1) -> 84882333 | D86: =OFFSET(InputPriceData!C$10,CalculationsAndCharts!$A86+$A$11,0,1,1) -> 13158.1 | E86: =OFFSET(InputPriceData!D$10,CalculationsAndCharts!$A86+$A$11,0,1,1) -> 13202.65 | F86: =OFFSET(InputPriceData!E$10,CalculationsAndCharts!$A86+$A$11,0,1,1) -> 13115.24 | G86: =OFFSET(InputPriceData!F$10,CalculationsAndCharts!$A86+$A$11,0,1,1) -> 13175.64 | H86: =IF(AND(A86<=$B$20,$S$14),$T$14,0) -> 0 | I86: =IF(AND(A86<=$B$20,$S$15),$T$15,0) -> 0 | J86: =IF(AND(A86<=$B$20,$S$16),$T$16,0) -> 12765.86875 | K86: =IF(AND(A86<=$B$20,$S$17),$T$17,0) -> 12604.5675 | L86: =IF(AND(A86<=$B$20,$S$18),$T$18,0) -> 12330.62417 | M86: 0 | N86: 0 | O86: 13088.47125 | P86: 13249.7725 | Q86: 13523.71583 | R86: 0 | S86: 0 | T86: 0 | U86: 0 | V86: 0 | W86: 0 | X86: 0 | Y86: 0
A87: 56 | B87: =OFFSET(InputPriceData!B$10,CalculationsAndCharts!$A87+$A$11,0,1,1) -> 2012-08-07 | C87: =OFFSET(InputPriceData!G$10,CalculationsAndCharts!$A87+$A$11,0,1,1) -> 95241397 | D87: =OFFSET(InputPriceData!C$10,CalculationsAndCharts!$A87+$A$11,0,1,1) -> 13118.65 | E87: =OFFSET(InputPriceData!D$10,CalculationsAndCharts!$A87+$A$11,0,1,1) -> 13215.97 | F87: =OFFSET(InputPriceData!E$10,CalculationsAndCharts!$A87+$A$11,0,1,1) -> 13118.42 | G87: =OFFSET(InputPriceData!F$10,CalculationsAndCharts!$A87+$A$11,0,1,1) -> 13168.6 | H87: =IF(AND(A87<=$B$20,$S$14),$T$14,0) -> 0 | I87: =IF(AND(A87<=$B$20,$S$15),$T$15,0) -> 0 | J87: =IF(AND(A87<=$B$20,$S$16),$T$16,0) -> 12765.86875 | K87: =IF(AND(A87<=$B$20,$S$17),$T$17,0) -> 12604.5675 | L87: =IF(AND(A87<=$B$20,$S$18),$T$18,0) -> 12330.62417 | M87: 0 | N87: 0 | O87: 13088.47125 | P87: 13249.7725 | Q87: 13523.71583 | R87: 0 | S87: 0 | T87: 0 | U87: 0 | V87: 0 | W87: 0 | X87: 0 | Y87: 0
A88: 57 | B88: =OFFSET(InputPriceData!B$10,CalculationsAndCharts!$A88+$A$11,0,1,1) -> 2012-08-06 | C88: =OFFSET(InputPriceData!G$10,CalculationsAndCharts!$A88+$A$11,0,1,1) -> 84256674 | D88: =OFFSET(InputPriceData!C$10,CalculationsAndCharts!$A88+$A$11,0,1,1) -> 13099.88 | E88: =OFFSET(InputPriceData!D$10,CalculationsAndCharts!$A88+$A$11,0,1,1) -> 13187.28 | F88: =OFFSET(InputPriceData!E$10,CalculationsAndCharts!$A88+$A$11,0,1,1) -> 13099.72 | G88: =OFFSET(InputPriceData!F$10,CalculationsAndCharts!$A88+$A$11,0,1,1) -> 13117.51 | H88: =IF(AND(A88<=$B$20,$S$14),$T$14,0) -> 0 | I88: =IF(AND(A88<=$B$20,$S$15),$T$15,0) -> 0 | J88: =IF(AND(A88<=$B$20,$S$16),$T$16,0) -> 12765.86875 | K88: =IF(AND(A88<=$B$20,$S$17),$T$17,0) -> 12604.5675 | L88: =IF(AND(A88<=$B$20,$S$18),$T$18,0) -> 12330.62417 | M88: 0 | N88: 0 | O88: 13088.47125 | P88: 13249.7725 | Q88: 13523.71583 | R88: 0 | S88: 0 | T88: 0 | U88: 0 | V88: 0 | W88: 0 | X88: 0 | Y88: 0
A89: 58 | B89: =OFFSET(InputPriceData!B$10,CalculationsAndCharts!$A89+$A$11,0,1,1) -> 2012-08-03 | C89: =OFFSET(InputPriceData!G$10,CalculationsAndCharts!$A89+$A$11,0,1,1) -> 112391986 | D89: =OFFSET(InputPriceData!C$10,CalculationsAndCharts!$A89+$A$11,0,1,1) -> 12884.82 | E89: =OFFSET(InputPriceData!D$10,CalculationsAndCharts!$A89+$A$11,0,1,1) -> 13133.18 | F89: =OFFSET(InputPriceData!E$10,CalculationsAndCharts!$A89+$A$11,0,1,1) -> 12884.82 | G89: =OFFSET(InputPriceData!F$10,CalculationsAndCharts!$A89+$A$11,0,1,1) -> 13096.17 | H89: =IF(AND(A89<=$B$20,$S$14),$T$14,0) -> 0 | I89: =IF(AND(A89<=$B$20,$S$15),$T$15,0) -> 0 | J89: =IF(AND(A89<=$B$20,$S$16),$T$16,0) -> 12765.86875 | K89: =IF(AND(A89<=$B$20,$S$17),$T$17,0) -> 12604.5675 | L89: =IF(AND(A89<=$B$20,$S$18),$T$18,0) -> 12330.62417 | M89: 0 | N89: 0 | O89: 13088.47125 | P89: 13249.7725 | Q89: 13523.71583 | R89: 0 | S89: 0 | T89: 0 | U89: 0 | V89: 0 | W89: 0 | X89: 0 | Y89: 0
A90: 59 | B90: =OFFSET(InputPriceData!B$10,CalculationsAndCharts!$A90+$A$11,0,1,1) -> 2012-08-02 | C90: =OFFSET(InputPriceData!G$10,CalculationsAndCharts!$A90+$A$11,0,1,1) -> 112724676 | D90: =OFFSET(InputPriceData!C$10,CalculationsAndCharts!$A90+$A$11,0,1,1) -> 12969.7 | E90: =OFFSET(InputPriceData!D$10,CalculationsAndCharts!$A90+$A$11,0,1,1) -> 12969.85 | F90: =OFFSET(InputPriceData!E$10,CalculationsAndCharts!$A90+$A$11,0,1,1) -> 12778.9 | G90: =OFFSET(InputPriceData!F$10,CalculationsAndCharts!$A90+$A$11,0,1,1) -> 12878.88 | H90: =IF(AND(A90<=$B$20,$S$14),$T$14,0) -> 0 | I90: =IF(AND(A90<=$B$20,$S$15),$T$15,0) -> 0 | J90: =IF(AND(A90<=$B$20,$S$16),$T$16,0) -> 12765.86875 | K90: =IF(AND(A90<=$B$20,$S$17),$T$17,0) -> 12604.5675 | L90: =IF(AND(A90<=$B$20,$S$18),$T$18,0) -> 12330.62417 | M90: 0 | N90: 0 | O90: 13088.47125 | P90: 13249.7725 | Q90: 13523.71583 | R90: 0 | S90: 0 | T90: 0 | U90: 0 | V90: 0 | W90: 0 | X90: 0 | Y90: 0
A91: 60 | B91: =OFFSET(InputPriceData!B$10,CalculationsAndCharts!$A91+$A$11,0,1,1) -> 2012-08-01 | C91: =OFFSET(InputPriceData!G$10,CalculationsAndCharts!$A91+$A$11,0,1,1) -> 132781673 | D91: =OFFSET(InputPriceData!C$10,CalculationsAndCharts!$A91+$A$11,0,1,1) -> 13007.47 | E91: =OFFSET(InputPriceData!D$10,CalculationsAndCharts!$A91+$A$11,0,1,1) -> 13074.83 | F91: =OFFSET(InputPriceData!E$10,CalculationsAndCharts!$A91+$A$11,0,1,1) -> 12951.16 | G91: =OFFSET(InputPriceData!F$10,CalculationsAndCharts!$A91+$A$11,0,1,1) -> 12971.06 | H91: =IF(AND(A91<=$B$20,$S$14),$T$14,0) -> 0 | I91: =IF(AND(A91<=$B$20,$S$15),$T$15,0) -> 0 | J91: =IF(AND(A91<=$B$20,$S$16),$T$16,0) -> 12765.86875 | K91: =IF(AND(A91<=$B$20,$S$17),$T$17,0) -> 12604.5675 | L91: =IF(AND(A91<=$B$20,$S$18),$T$18,0) -> 12330.62417 | M91: 0 | N91: 0 | O91: 13088.47125 | P91: 13249.7725 | Q91: 13523.71583 | R91: 0 | S91: 0 | T91: 0 | U91: 0 | V91: 0 | W91: 0 | X91: 0 | Y91: 0
A92: 61 | B92: =OFFSET(InputPriceData!B$10,CalculationsAndCharts!$A92+$A$11,0,1,1) -> 2012-07-31 | C92: =OFFSET(InputPriceData!G$10,CalculationsAndCharts!$A92+$A$11,0,1,1) -> 125597835 | D92: =OFFSET(InputPriceData!C$10,CalculationsAndCharts!$A92+$A$11,0,1,1) -> 13071.72 | E92: =OFFSET(InputPriceData!D$10,CalculationsAndCharts!$A92+$A$11,0,1,1) -> 13082.66 | F92: =OFFSET(InputPriceData!E$10,CalculationsAndCharts!$A92+$A$11,0,1,1) -> 13006.48 | G92: =OFFSET(InputPriceData!F$10,CalculationsAndCharts!$A92+$A$11,0,1,1) -> 13008.68 | H92: =IF(AND(A92<=$B$20,$S$14),$T$14,0) -> 0 | I92: =IF(AND(A92<=$B$20,$S$15),$T$15,0) -> 0 | J92: =IF(AND(A92<=$B$20,$S$16),$T$16,0) -> 12765.86875 | K92: =IF(AND(A92<=$B$20,$S$17),$T$17,0) -> 12604.5675 | L92: =IF(AND(A92<=$B$20,$S$18),$T$18,0) -> 12330.62417 | M92: 0 | N92: 0 | O92: 13088.47125 | P92: 13249.7725 | Q92: 13523.71583 | R92: 0 | S92: 0 | T92: 0 | U92: 0 | V92: 0 | W92: 0 | X92: 0 | Y92: 0
A93: 62 | B93: =OFFSET(InputPriceData!B$10,CalculationsAndCharts!$A93+$A$11,0,1,1) -> 2012-07-30 | C93: =OFFSET(InputPriceData!G$10,CalculationsAndCharts!$A93+$A$11,0,1,1) -> 91574327 | D93: =OFFSET(InputPriceData!C$10,CalculationsAndCharts!$A93+$A$11,0,1,1) -> 13075.35 | E93: =OFFSET(InputPriceData!D$10,CalculationsAndCharts!$A93+$A$11,0,1,1) -> 13128.64 | F93: =OFFSET(InputPriceData!E$10,CalculationsAndCharts!$A93+$A$11,0,1,1) -> 13042.85 | G93: =OFFSET(InputPriceData!F$10,CalculationsAndCharts!$A93+$A$11,0,1,1) -> 13073.01 | H93: =IF(AND(A93<=$B$20,$S$14),$T$14,0) -> 0 | I93: =IF(AND(A93<=$B$20,$S$15),$T$15,0) -> 0 | J93: =IF(AND(A93<=$B$20,$S$16),$T$16,0) -> 12765.86875 | K93: =IF(AND(A93<=$B$20,$S$17),$T$17,0) -> 12604.5675 | L93: =IF(AND(A93<=$B$20,$S$18),$T$18,0) -> 12330.62417 | M93: 0 | N93: 0 | O93: 13088.47125 | P93: 13249.7725 | Q93: 13523.71583 | R93: 0 | S93: 0 | T93: 0 | U93: 0 | V93: 0 | W93: 0 | X93: 0 | Y93: 0
A94: 63 | B94: =OFFSET(InputPriceData!B$10,CalculationsAndCharts!$A94+$A$11,0,1,1) -> 2012-07-27 | C94: =OFFSET(InputPriceData!G$10,CalculationsAndCharts!$A94+$A$11,0,1,1) -> 161495423 | D94: =OFFSET(InputPriceData!C$10,CalculationsAndCharts!$A94+$A$11,0,1,1) -> 12888.91 | E94: =OFFSET(InputPriceData!D$10,CalculationsAndCharts!$A94+$A$11,0,1,1) -> 13117.74 | F94: =OFFSET(InputPriceData!E$10,CalculationsAndCharts!$A94+$A$11,0,1,1) -> 12888.53 | G94: =OFFSET(InputPriceData!F$10,CalculationsAndCharts!$A94+$A$11,0,1,1) -> 13075.66 | H94: =IF(AND(A94<=$B$20,$S$14),$T$14,0) -> 0 | I94: =IF(AND(A94<=$B$20,$S$15),$T$15,0) -> 0 | J94: =IF(AND(A94<=$B$20,$S$16),$T$16,0) -> 12765.86875 | K94: =IF(AND(A94<=$B$20,$S$17),$T$17,0) -> 12604.5675 | L94: =IF(AND(A94<=$B$20,$S$18),$T$18,0) -> 12330.62417 | M94: 0 | N94: 0 | O94: 13088.47125 | P94: 13249.7725 | Q94: 13523.71583 | R94: 0 | S94: 0 | T94: 0 | U94: 0 | V94: 0 | W94: 0 | X94: 0 | Y94: 0
A95: 64 | B95: =OFFSET(InputPriceData!B$10,CalculationsAndCharts!$A95+$A$11,0,1,1) -> 2012-07-26 | C95: =OFFSET(InputPriceData!G$10,CalculationsAndCharts!$A95+$A$11,0,1,1) -> 133605095 | D95: =OFFSET(InputPriceData!C$10,CalculationsAndCharts!$A95+$A$11,0,1,1) -> 12680.59 | E95: =OFFSET(InputPriceData!D$10,CalculationsAndCharts!$A95+$A$11,0,1,1) -> 12931.22 | F95: =OFFSET(InputPriceData!E$10,CalculationsAndCharts!$A95+$A$11,0,1,1) -> 12680.59 | G95: =OFFSET(InputPriceData!F$10,CalculationsAndCharts!$A95+$A$11,0,1,1) -> 12887.93 | H95: =IF(AND(A95<=$B$20,$S$14),$T$14,0) -> 0 | I95: =IF(AND(A95<=$B$20,$S$15),$T$15,0) -> 0 | J95: =IF(AND(A95<=$B$20,$S$16),$T$16,0) -> 12765.86875 | K95: =IF(AND(A95<=$B$20,$S$17),$T$17,0) -> 12604.5675 | L95: =IF(AND(A95<=$B$20,$S$18),$T$18,0) -> 12330.62417 | M95: 0 | N95: 0 | O95: 13088.47125 | P95: 13249.7725 | Q95: 13523.71583 | R95: 0 | S95: 0 | T95: 0 | U95: 0 | V95: 0 | W95: 0 | X95: 0 | Y95: 0
A96: 65 | B96: =OFFSET(InputPriceData!B$10,CalculationsAndCharts!$A96+$A$11,0,1,1) -> 2012-07-25 | C96: =OFFSET(InputPriceData!G$10,CalculationsAndCharts!$A96+$A$11,0,1,1) -> 126984523 | D96: =OFFSET(InputPriceData!C$10,CalculationsAndCharts!$A96+$A$11,0,1,1) -> 12617.77 | E96: =OFFSET(InputPriceData!D$10,CalculationsAndCharts!$A96+$A$11,0,1,1) -> 12732.77 | F96: =OFFSET(InputPriceData!E$10,CalculationsAndCharts!$A96+$A$11,0,1,1) -> 12617.62 | G96: =OFFSET(InputPriceData!F$10,CalculationsAndCharts!$A96+$A$11,0,1,1) -> 12676.05 | H96: =IF(AND(A96<=$B$20,$S$14),$T$14,0) -> 0 | I96: =IF(AND(A96<=$B$20,$S$15),$T$15,0) -> 0 | J96: =IF(AND(A96<=$B$20,$S$16),$T$16,0) -> 12765.86875 | K96: =IF(AND(A96<=$B$20,$S$17),$T$17,0) -> 12604.5675 | L96: =IF(AND(A96<=$B$20,$S$18),$T$18,0) -> 12330.62417 | M96: 0 | N96: 0 | O96: 13088.47125 | P96: 13249.7725 | Q96: 13523.71583 | R96: 0 | S96: =IF($A96=$B$28,S$31,0) -> 0 | T96: 0 | U96: 0 | V96: 0 | W96: 0 | X96: 0 | Y96: 0
A97: 66 | B97: =OFFSET(InputPriceData!B$10,CalculationsAndCharts!$A97+$A$11,0,1,1) -> 2012-07-24 | C97: =OFFSET(InputPriceData!G$10,CalculationsAndCharts!$A97+$A$11,0,1,1) -> 131409746 | D97: =OFFSET(InputPriceData!C$10,CalculationsAndCharts!$A97+$A$11,0,1,1) -> 12720.93 | E97: =OFFSET(InputPriceData!D$10,CalculationsAndCharts!$A97+$A$11,0,1,1) -> 12730.09 | F97: =OFFSET(InputPriceData!E$10,CalculationsAndCharts!$A97+$A$11,0,1,1) -> 12521.84 | G97: =OFFSET(InputPriceData!F$10,CalculationsAndCharts!$A97+$A$11,0,1,1) -> 12617.32 | H97: =IF(AND(A97<=$B$20,$S$14),$T$14,0) -> 0 | I97: =IF(AND(A97<=$B$20,$S$15),$T$15,0) -> 0 | J97: =IF(AND(A97<=$B$20,$S$16),$T$16,0) -> 12765.86875 | K97: =IF(AND(A97<=$B$20,$S$17),$T$17,0) -> 12604.5675 | L97: =IF(AND(A97<=$B$20,$S$18),$T$18,0) -> 12330.62417 | M97: =IF(AND(A97<=$B$20,$S$8),$T$8,0) -> 0 | N97: =IF(AND(A97<=$B$20,$S$7),$T$7,0) -> 0 | O97: =IF(AND(A97<=$B$20,$S$6),$T$6,0) -> 13088.47125 | P97: =IF(AND(A97<=$B$20,$S$5),$T$5,0) -> 13249.7725 | Q97: =IF(AND(A97<=$B$20,$S$4),$T$4,0) -> 13523.71583 | R97: =IF(AND(A97>$B$20,A97<=($B$20+$C$18)),$T$10-Y97,0) -> 0 | S97: 0 | T97: =IF($A97=$B$27,S$31,0) -> 0 | U97: =IF(AND(A97<=$B$20,A97>($B$20-$C$18)),$F$11,0) -> 0 | V97: =IF(AND($S$10,A97>$B$20,A97<=($B$20+$C$18)),$T$10,0) -> 0 | W97: =IF(AND($S$11,A97>$B$20,A97<=($B$20+$C$18)),$T$11,0) -> 0 | X97: =IF(AND($S$12,A97>$B$20,A97<=($B$20+$C$18)),$T$12,0) -> 0 | Y97: =IF(AND(A97>$B$20,A97<=($B$20+$C$18)),$T$12,0) -> 0
A98: 67 | B98: =OFFSET(InputPriceData!B$10,CalculationsAndCharts!$A98+$A$11,0,1,1) -> 2012-07-23 | C98: =OFFSET(InputPriceData!G$10,CalculationsAndCharts!$A98+$A$11,0,1,1) -> 137759645 | D98: =OFFSET(InputPriceData!C$10,CalculationsAndCharts!$A98+$A$11,0,1,1) -> 12820.45 | E98: =OFFSET(InputPriceData!D$10,CalculationsAndCharts!$A98+$A$11,0,1,1) -> 12820.45 | F98: =OFFSET(InputPriceData!E$10,CalculationsAndCharts!$A98+$A$11,0,1,1) -> 12583.41 | G98: =OFFSET(InputPriceData!F$10,CalculationsAndCharts!$A98+$A$11,0,1,1) -> 12721.46 | H98: =IF(AND(A98<=$B$20,$S$14),$T$14,0) -> 0 | I98: =IF(AND(A98<=$B$20,$S$15),$T$15,0) -> 0 | J98: =IF(AND(A98<=$B$20,$S$16),$T$16,0) -> 12765.86875 | K98: =IF(AND(A98<=$B$20,$S$17),$T$17,0) -> 12604.5675 | L98: =IF(AND(A98<=$B$20,$S$18),$T$18,0) -> 12330.62417 | M98: 0 | N98: 0 | O98: 13088.47125 | P98: 13249.7725 | Q98: 13523.71583 | R98: 0 | S98: 0 | T98: 0 | U98: 0 | V98: 0 | W98: 0 | X98: 0 | Y98: 0
A99: 68 | B99: =OFFSET(InputPriceData!B$10,CalculationsAndCharts!$A99+$A$11,0,1,1) -> 2012-07-20 | C99: =OFFSET(InputPriceData!G$10,CalculationsAndCharts!$A99+$A$11,0,1,1) -> 210735664 | D99: =OFFSET(InputPriceData!C$10,CalculationsAndCharts!$A99+$A$11,0,1,1) -> 12942.68 | E99: =OFFSET(InputPriceData!D$10,CalculationsAndCharts!$A99+$A$11,0,1,1) -> 12942.83 | F99: =OFFSET(InputPriceData!E$10,CalculationsAndCharts!$A99+$A$11,0,1,1) -> 12810.35 | G99: =OFFSET(InputPriceData!F$10,CalculationsAndCharts!$A99+$A$11,0,1,1) -> 12822.57 | H99: =IF(AND(A99<=$B$20,$S$14),$T$14,0) -> 0 | I99: =IF(AND(A99<=$B$20,$S$15),$T$15,0) -> 0 | J99: =IF(AND(A99<=$B$20,$S$16),$T$16,0) -> 12765.86875 | K99: =IF(AND(A99<=$B$20,$S$17),$T$17,0) -> 12604.5675 | L99: =IF(AND(A99<=$B$20,$S$18),$T$18,0) -> 12330.62417 | M99: 0 | N99: 0 | O99: 13088.47125 | P99: 13249.7725 | Q99: 13523.71583 | R99: 0 | S99: 0 | T99: 0 | U99: 0 | V99: 0 | W99: 0 | X99: 0 | Y99: 0
A100: 69 | B100: =OFFSET(InputPriceData!B$10,CalculationsAndCharts!$A100+$A$11,0,1,1) -> 2012-07-19 | C100: =OFFSET(InputPriceData!G$10,CalculationsAndCharts!$A100+$A$11,0,1,1) -> 137874680 | D100: =OFFSET(InputPriceData!C$10,CalculationsAndCharts!$A100+$A$11,0,1,1) -> 12909.61 | E100: =OFFSET(InputPriceData!D$10,CalculationsAndCharts!$A100+$A$11,0,1,1) -> 12977.57 | F100: =OFFSET(InputPriceData!E$10,CalculationsAndCharts!$A100+$A$11,0,1,1) -> 12889.93 | G100: =OFFSET(InputPriceData!F$10,CalculationsAndCharts!$A100+$A$11,0,1,1) -> 12943.36 | H100: =IF(AND(A100<=$B$20,$S$14),$T$14,0) -> 0 | I100: =IF(AND(A100<=$B$20,$S$15),$T$15,0) -> 0 | J100: =IF(AND(A100<=$B$20,$S$16),$T$16,0) -> 12765.86875 | K100: =IF(AND(A100<=$B$20,$S$17),$T$17,0) -> 12604.5675 | L100: =IF(AND(A100<=$B$20,$S$18),$T$18,0) -> 12330.62417 | M100: 0 | N100: 0 | O100: 13088.47125 | P100: 13249.7725 | Q100: 13523.71583 | R100: 0 | S100: 0 | T100: 0 | U100: 0 | V100: 0 | W100: 0 | X100: 0 | Y100: 0
A101: 70 | B101: =OFFSET(InputPriceData!B$10,CalculationsAndCharts!$A101+$A$11,0,1,1) -> 2012-07-18 | C101: =OFFSET(InputPriceData!G$10,CalculationsAndCharts!$A101+$A$11,0,1,1) -> 130059770 | D101: =OFFSET(InputPriceData!C$10,CalculationsAndCharts!$A101+$A$11,0,1,1) -> 12796.98 | E101: =OFFSET(InputPriceData!D$10,CalculationsAndCharts!$A101+$A$11,0,1,1) -> 12921.94 | F101: =OFFSET(InputPriceData!E$10,CalculationsAndCharts!$A101+$A$11,0,1,1) -> 12754.61 | G101: =OFFSET(InputPriceData!F$10,CalculationsAndCharts!$A101+$A$11,0,1,1) -> 12908.7 | H101: =IF(AND(A101<=$B$20,$S$14),$T$14,0) -> 0 | I101: =IF(AND(A101<=$B$20,$S$15),$T$15,0) -> 0 | J101: =IF(AND(A101<=$B$20,$S$16),$T$16,0) -> 12765.86875 | K101: =IF(AND(A101<=$B$20,$S$17),$T$17,0) -> 12604.5675 | L101: =IF(AND(A101<=$B$20,$S$18),$T$18,0) -> 12330.62417 | M101: 0 | N101: 0 | O101: 13088.47125 | P101: 13249.7725 | Q101: 13523.71583 | R101: 0 | S101: 0 | T101: 0 | U101: 0 | V101: 0 | W101: 0 | X101: 0 | Y101: 0
A102: 71 | B102: =OFFSET(InputPriceData!B$10,CalculationsAndCharts!$A102+$A$11,0,1,1) -> 2012-07-17 | C102: =OFFSET(InputPriceData!G$10,CalculationsAndCharts!$A102+$A$11,0,1,1) -> 119000691 | D102: =OFFSET(InputPriceData!C$10,CalculationsAndCharts!$A102+$A$11,0,1,1) -> 12728.73 | E102: =OFFSET(InputPriceData!D$10,CalculationsAndCharts!$A102+$A$11,0,1,1) -> 12829.23 | F102: =OFFSET(InputPriceData!E$10,CalculationsAndCharts!$A102+$A$11,0,1,1) -> 12645.1 | G102: =OFFSET(InputPriceData!F$10,CalculationsAndCharts!$A102+$A$11,0,1,1) -> 12805.54 | H102: =IF(AND(A102<=$B$20,$S$14),$T$14,0) -> 0 | I102: =IF(AND(A102<=$B$20,$S$15),$T$15,0) -> 0 | J102: =IF(AND(A102<=$B$20,$S$16),$T$16,0) -> 12765.86875 | K102: =IF(AND(A102<=$B$20,$S$17),$T$17,0) -> 12604.5675 | L102: =IF(AND(A102<=$B$20,$S$18),$T$18,0) -> 12330.62417 | M102: 0 | N102: 0 | O102: 13088.47125 | P102: 13249.7725 | Q102: 13523.71583 | R102: 0 | S102: 0 | T102: 0 | U102: 0 | V102: 0 | W102: 0 | X102: 0 | Y102: 0
A103: 72 | B103: =OFFSET(InputPriceData!B$10,CalculationsAndCharts!$A103+$A$11,0,1,1) -> 2012-07-16 | C103: =OFFSET(InputPriceData!G$10,CalculationsAndCharts!$A103+$A$11,0,1,1) -> 93493918 | D103: =OFFSET(InputPriceData!C$10,CalculationsAndCharts!$A103+$A$11,0,1,1) -> 12776.33 | E103: =OFFSET(InputPriceData!D$10,CalculationsAndCharts!$A103+$A$11,0,1,1) -> 12779.58 | F103: =OFFSET(InputPriceData!E$10,CalculationsAndCharts!$A103+$A$11,0,1,1) -> 12690.05 | G103: =OFFSET(InputPriceData!F$10,CalculationsAndCharts!$A103+$A$11,0,1,1) -> 12727.21 | H103: =IF(AND(A103<=$B$20,$S$14),$T$14,0) -> 0 | I103: =IF(AND(A103<=$B$20,$S$15),$T$15,0) -> 0 | J103: =IF(AND(A103<=$B$20,$S$16),$T$16,0) -> 12765.86875 | K103: =IF(AND(A103<=$B$20,$S$17),$T$17,0) -> 12604.5675 | L103: =IF(AND(A103<=$B$20,$S$18),$T$18,0) -> 12330.62417 | M103: 0 | N103: 0 | O103: 13088.47125 | P103: 13249.7725 | Q103: 13523.71583 | R103: 0 | S103: 0 | T103: 0 | U103: 0 | V103: 0 | W103: 0 | X103: 0 | Y103: 0
A104: 73 | B104: =OFFSET(InputPriceData!B$10,CalculationsAndCharts!$A104+$A$11,0,1,1) -> 2012-07-13 | C104: =OFFSET(InputPriceData!G$10,CalculationsAndCharts!$A104+$A$11,0,1,1) -> 121079336 | D104: =OFFSET(InputPriceData!C$10,CalculationsAndCharts!$A104+$A$11,0,1,1) -> 12573.73 | E104: =OFFSET(InputPriceData!D$10,CalculationsAndCharts!$A104+$A$11,0,1,1) -> 12784.73 | F104: =OFFSET(InputPriceData!E$10,CalculationsAndCharts!$A104+$A$11,0,1,1) -> 12573.04 | G104: =OFFSET(InputPriceData!F$10,CalculationsAndCharts!$A104+$A$11,0,1,1) -> 12777.09 | H104: =IF(AND(A104<=$B$20,$S$14),$T$14,0) -> 0 | I104: =IF(AND(A104<=$B$20,$S$15),$T$15,0) -> 0 | J104: =IF(AND(A104<=$B$20,$S$16),$T$16,0) -> 12765.86875 | K104: =IF(AND(A104<=$B$20,$S$17),$T$17,0) -> 12604.5675 | L104: =IF(AND(A104<=$B$20,$S$18),$T$18,0) -> 12330.62417 | M104: 0 | N104: 0 | O104: 13088.47125 | P104: 13249.7725 | Q104: 13523.71583 | R104: 0 | S104: 0 | T104: 0 | U104: 0 | V104: 0 | W104: 0 | X104: 0 | Y104: 0
A105: 74 | B105: =OFFSET(InputPriceData!B$10,CalculationsAndCharts!$A105+$A$11,0,1,1) -> 2012-07-12 | C105: =OFFSET(InputPriceData!G$10,CalculationsAndCharts!$A105+$A$11,0,1,1) -> 142570033 | D105: =OFFSET(InputPriceData!C$10,CalculationsAndCharts!$A105+$A$11,0,1,1) -> 12602.71 | E105: =OFFSET(InputPriceData!D$10,CalculationsAndCharts!$A105+$A$11,0,1,1) -> 12630.64 | F105: =OFFSET(InputPriceData!E$10,CalculationsAndCharts!$A105+$A$11,0,1,1) -> 12492.25 | G105: =OFFSET(InputPriceData!F$10,CalculationsAndCharts!$A105+$A$11,0,1,1) -> 12573.27 | H105: =IF(AND(A105<=$B$20,$S$14),$T$14,0) -> 0 | I105: =IF(AND(A105<=$B$20,$S$15),$T$15,0) -> 0 | J105: =IF(AND(A105<=$B$20,$S$16),$T$16,0) -> 12765.86875 | K105: =IF(AND(A105<=$B$20,$S$17),$T$17,0) -> 12604.5675 | L105: =IF(AND(A105<=$B$20,$S$18),$T$18,0) -> 12330.62417 | M105: 0 | N105: 0 | O105: 13088.47125 | P105: 13249.7725 | Q105: 13523.71583 | R105: 0 | S105: 0 | T105: 0 | U105: 0 | V105: 0 | W105: 0 | X105: 0 | Y105: 0
A106: 75 | B106: =OFFSET(InputPriceData!B$10,CalculationsAndCharts!$A106+$A$11,0,1,1) -> 2012-07-11 | C106: =OFFSET(InputPriceData!G$10,CalculationsAndCharts!$A106+$A$11,0,1,1) -> 128422157 | D106: =OFFSET(InputPriceData!C$10,CalculationsAndCharts!$A106+$A$11,0,1,1) -> 12653.04 | E106: =OFFSET(InputPriceData!D$10,CalculationsAndCharts!$A106+$A$11,0,1,1) -> 12661.97 | F106: =OFFSET(InputPriceData!E$10,CalculationsAndCharts!$A106+$A$11,0,1,1) -> 12534.33 | G106: =OFFSET(InputPriceData!F$10,CalculationsAndCharts!$A106+$A$11,0,1,1) -> 12604.53 | H106: =IF(AND(A106<=$B$20,$S$14),$T$14,0) -> 0 | I106: =IF(AND(A106<=$B$20,$S$15),$T$15,0) -> 0 | J106: =IF(AND(A106<=$B$20,$S$16),$T$16,0) -> 12765.86875 | K106: =IF(AND(A106<=$B$20,$S$17),$T$17,0) -> 12604.5675 | L106: =IF(AND(A106<=$B$20,$S$18),$T$18,0) -> 12330.62417 | M106: 0 | N106: 0 | O106: 13088.47125 | P106: 13249.7725 | Q106: 13523.71583 | R106: 0 | S106: 0 | T106: 0 | U106: 0 | V106: 0 | W106: 0 | X106: 0 | Y106: 0
A107: 76 | B107: =OFFSET(InputPriceData!B$10,CalculationsAndCharts!$A107+$A$11,0,1,1) -> 2012-07-10 | C107: =OFFSET(InputPriceData!G$10,CalculationsAndCharts!$A107+$A$11,0,1,1) -> 114500727 | D107: =OFFSET(InputPriceData!C$10,CalculationsAndCharts!$A107+$A$11,0,1,1) -> 12733.87 | E107: =OFFSET(InputPriceData!D$10,CalculationsAndCharts!$A107+$A$11,0,1,1) -> 12830.29 | F107: =OFFSET(InputPriceData!E$10,CalculationsAndCharts!$A107+$A$11,0,1,1) -> 12606.91 | G107: =OFFSET(InputPriceData!F$10,CalculationsAndCharts!$A107+$A$11,0,1,1) -> 12653.12 | H107: =IF(AND(A107<=$B$20,$S$14),$T$14,0) -> 0 | I107: =IF(AND(A107<=$B$20,$S$15),$T$15,0) -> 0 | J107: =IF(AND(A107<=$B$20,$S$16),$T$16,0) -> 12765.86875 | K107: =IF(AND(A107<=$B$20,$S$17),$T$17,0) -> 12604.5675 | L107: =IF(AND(A107<=$B$20,$S$18),$T$18,0) -> 12330.62417 | M107: 0 | N107: 0 | O107: 13088.47125 | P107: 13249.7725 | Q107: 13523.71583 | R107: 0 | S107: 0 | T107: 0 | U107: 0 | V107: 0 | W107: 0 | X107: 0 | Y107: 0
A108: 77 | B108: =OFFSET(InputPriceData!B$10,CalculationsAndCharts!$A108+$A$11,0,1,1) -> 2012-07-09 | C108: =OFFSET(InputPriceData!G$10,CalculationsAndCharts!$A108+$A$11,0,1,1) -> 98674148 | D108: =OFFSET(InputPriceData!C$10,CalculationsAndCharts!$A108+$A$11,0,1,1) -> 12772.02 | E108: =OFFSET(InputPriceData!D$10,CalculationsAndCharts!$A108+$A$11,0,1,1) -> 12772.02 | F108: =OFFSET(InputPriceData!E$10,CalculationsAndCharts!$A108+$A$11,0,1,1) -> 12686.57 | G108: =OFFSET(InputPriceData!F$10,CalculationsAndCharts!$A108+$A$11,0,1,1) -> 12736.29 | H108: =IF(AND(A108<=$B$20,$S$14),$T$14,0) -> 0 | I108: =IF(AND(A108<=$B$20,$S$15),$T$15,0) -> 0 | J108: =IF(AND(A108<=$B$20,$S$16),$T$16,0) -> 12765.86875 | K108: =IF(AND(A108<=$B$20,$S$17),$T$17,0) -> 12604.5675 | L108: =IF(AND(A108<=$B$20,$S$18),$T$18,0) -> 12330.62417 | M108: 0 | N108: 0 | O108: 13088.47125 | P108: 13249.7725 | Q108: 13523.71583 | R108: 0 | S108: 0 | T108: 0 | U108: 0 | V108: 0 | W108: 0 | X108: 0 | Y108: 0
A109: 78 | B109: =OFFSET(InputPriceData!B$10,CalculationsAndCharts!$A109+$A$11,0,1,1) -> 2012-07-06 | C109: =OFFSET(InputPriceData!G$10,CalculationsAndCharts!$A109+$A$11,0,1,1) -> 96277887 | D109: =OFFSET(InputPriceData!C$10,CalculationsAndCharts!$A109+$A$11,0,1,1) -> 12889.4 | E109: =OFFSET(InputPriceData!D$10,CalculationsAndCharts!$A109+$A$11,0,1,1) -> 12889.4 | F109: =OFFSET(InputPriceData!E$10,CalculationsAndCharts!$A109+$A$11,0,1,1) -> 12702.99 | G109: =OFFSET(InputPriceData!F$10,CalculationsAndCharts!$A109+$A$11,0,1,1) -> 12772.47 | H109: =IF(AND(A109<=$B$20,$S$14),$T$14,0) -> 0 | I109: =IF(AND(A109<=$B$20,$S$15),$T$15,0) -> 0 | J109: =IF(AND(A109<=$B$20,$S$16),$T$16,0) -> 12765.86875 | K109: =IF(AND(A109<=$B$20,$S$17),$T$17,0) -> 12604.5675 | L109: =IF(AND(A109<=$B$20,$S$18),$T$18,0) -> 12330.62417 | M109: 0 | N109: 0 | O109: 13088.47125 | P109: 13249.7725 | Q109: 13523.71583 | R109: 0 | S109: 0 | T109: 0 | U109: 0 | V109: 0 | W109: 0 | X109: 0 | Y109: 0
A110: 79 | B110: =OFFSET(InputPriceData!B$10,CalculationsAndCharts!$A110+$A$11,0,1,1) -> 2012-07-05 | C110: =OFFSET(InputPriceData!G$10,CalculationsAndCharts!$A110+$A$11,0,1,1) -> 97418925 | D110: =OFFSET(InputPriceData!C$10,CalculationsAndCharts!$A110+$A$11,0,1,1) -> 12941.85 | E110: =OFFSET(InputPriceData!D$10,CalculationsAndCharts!$A110+$A$11,0,1,1) -> 12961.3 | F110: =OFFSET(InputPriceData!E$10,CalculationsAndCharts!$A110+$A$11,0,1,1) -> 12852.24 | G110: =OFFSET(InputPriceData!F$10,CalculationsAndCharts!$A110+$A$11,0,1,1) -> 12896.67 | H110: =IF(AND(A110<=$B$20,$S$14),$T$14,0) -> 0 | I110: =IF(AND(A110<=$B$20,$S$15),$T$15,0) -> 0 | J110: =IF(AND(A110<=$B$20,$S$16),$T$16,0) -> 12765.86875 | K110: =IF(AND(A110<=$B$20,$S$17),$T$17,0) -> 12604.5675 | L110: =IF(AND(A110<=$B$20,$S$18),$T$18,0) -> 12330.62417 | M110: 0 | N110: 0 | O110: 13088.47125 | P110: 13249.7725 | Q110: 13523.71583 | R110: 0 | S110: 0 | T110: 0 | U110: 0 | V110: 0 | W110: 0 | X110: 0 | Y110: 0
A111: 80 | B111: =OFFSET(InputPriceData!B$10,CalculationsAndCharts!$A111+$A$11,0,1,1) -> 2012-07-03 | C111: =OFFSET(InputPriceData!G$10,CalculationsAndCharts!$A111+$A$11,0,1,1) -> 63833360 | D111: =OFFSET(InputPriceData!C$10,CalculationsAndCharts!$A111+$A$11,0,1,1) -> 12868.06 | E111: =OFFSET(InputPriceData!D$10,CalculationsAndCharts!$A111+$A$11,0,1,1) -> 12946.2 | F111: =OFFSET(InputPriceData!E$10,CalculationsAndCharts!$A111+$A$11,0,1,1) -> 12845.28 | G111: =OFFSET(InputPriceData!F$10,CalculationsAndCharts!$A111+$A$11,0,1,1) -> 12943.82 | H111: =IF(AND(A111<=$B$20,$S$14),$T$14,0) -> 0 | I111: =IF(AND(A111<=$B$20,$S$15),$T$15,0) -> 0 | J111: =IF(AND(A111<=$B$20,$S$16),$T$16,0) -> 12765.86875 | K111: =IF(AND(A111<=$B$20,$S$17),$T$17,0) -> 12604.5675 | L111: =IF(AND(A111<=$B$20,$S$18),$T$18,0) -> 12330.62417 | M111: 0 | N111: 0 | O111: 13088.47125 | P111: 13249.7725 | Q111: 13523.71583 | R111: 0 | S111: 0 | T111: 0 | U111: 0 | V111: 0 | W111: 0 | X111: 0 | Y111: 0
A112: 81 | B112: =OFFSET(InputPriceData!B$10,CalculationsAndCharts!$A112+$A$11,0,1,1) -> 2012-07-02 | C112: =OFFSET(InputPriceData!G$10,CalculationsAndCharts!$A112+$A$11,0,1,1) -> 109134047 | D112: =OFFSET(InputPriceData!C$10,CalculationsAndCharts!$A112+$A$11,0,1,1) -> 12879.71 | E112: =OFFSET(InputPriceData!D$10,CalculationsAndCharts!$A112+$A$11,0,1,1) -> 12902.12 | F112: =OFFSET(InputPriceData!E$10,CalculationsAndCharts!$A112+$A$11,0,1,1) -> 12795.48 | G112: =OFFSET(InputPriceData!F$10,CalculationsAndCharts!$A112+$A$11,0,1,1) -> 12871.39 | H112: =IF(AND(A112<=$B$20,$S$14),$T$14,0) -> 0 | I112: =IF(AND(A112<=$B$20,$S$15),$T$15,0) -> 0 | J112: =IF(AND(A112<=$B$20,$S$16),$T$16,0) -> 12765.86875 | K112: =IF(AND(A112<=$B$20,$S$17),$T$17,0) -> 12604.5675 | L112: =IF(AND(A112<=$B$20,$S$18),$T$18,0) -> 12330.62417 | M112: 0 | N112: 0 | O112: 13088.47125 | P112: 13249.7725 | Q112: 13523.71583 | R112: 0 | S112: 0 | T112: 0 | U112: 0 | V112: 0 | W112: 0 | X112: 0 | Y112: 0
A113: 82 | B113: =OFFSET(InputPriceData!B$10,CalculationsAndCharts!$A113+$A$11,0,1,1) -> 2012-06-29 | C113: =OFFSET(InputPriceData!G$10,CalculationsAndCharts!$A113+$A$11,0,1,1) -> 191566814 | D113: =OFFSET(InputPriceData!C$10,CalculationsAndCharts!$A113+$A$11,0,1,1) -> 12604.6 | E113: =OFFSET(InputPriceData!D$10,CalculationsAndCharts!$A113+$A$11,0,1,1) -> 12880.39 | F113: =OFFSET(InputPriceData!E$10,CalculationsAndCharts!$A113+$A$11,0,1,1) -> 12604.53 | G113: =OFFSET(InputPriceData!F$10,CalculationsAndCharts!$A113+$A$11,0,1,1) -> 12880.09 | H113: =IF(AND(A113<=$B$20,$S$14),$T$14,0) -> 0 | I113: =IF(AND(A113<=$B$20,$S$15),$T$15,0) -> 0 | J113: =IF(AND(A113<=$B$20,$S$16),$T$16,0) -> 12765.86875 | K113: =IF(AND(A113<=$B$20,$S$17),$T$17,0) -> 12604.5675 | L113: =IF(AND(A113<=$B$20,$S$18),$T$18,0) -> 12330.62417 | M113: 0 | N113: 0 | O113: 13088.47125 | P113: 13249.7725 | Q113: 13523.71583 | R113: 0 | S113: 0 | T113: 0 | U113: 0 | V113: 0 | W113: 0 | X113: 0 | Y113: 0
A114: 83 | B114: =OFFSET(InputPriceData!B$10,CalculationsAndCharts!$A114+$A$11,0,1,1) -> 2012-06-28 | C114: =OFFSET(InputPriceData!G$10,CalculationsAndCharts!$A114+$A$11,0,1,1) -> 125864695 | D114: =OFFSET(InputPriceData!C$10,CalculationsAndCharts!$A114+$A$11,0,1,1) -> 12626.25 | E114: =OFFSET(InputPriceData!D$10,CalculationsAndCharts!$A114+$A$11,0,1,1) -> 12626.25 | F114: =OFFSET(InputPriceData!E$10,CalculationsAndCharts!$A114+$A$11,0,1,1) -> 12450.17 | G114: =OFFSET(InputPriceData!F$10,CalculationsAndCharts!$A114+$A$11,0,1,1) -> 12602.26 | H114: =IF(AND(A114<=$B$20,$S$14),$T$14,0) -> 0 | I114: =IF(AND(A114<=$B$20,$S$15),$T$15,0) -> 0 | J114: =IF(AND(A114<=$B$20,$S$16),$T$16,0) -> 12765.86875 | K114: =IF(AND(A114<=$B$20,$S$17),$T$17,0) -> 12604.5675 | L114: =IF(AND(A114<=$B$20,$S$18),$T$18,0) -> 12330.62417 | M114: 0 | N114: 0 | O114: 13088.47125 | P114: 13249.7725 | Q114: 13523.71583 | R114: 0 | S114: 0 | T114: 0 | U114: 0 | V114: 0 | W114: 0 | X114: 0 | Y114: 0
A115: 84 | B115: =OFFSET(InputPriceData!B$10,CalculationsAndCharts!$A115+$A$11,0,1,1) -> 2012-06-27 | C115: =OFFSET(InputPriceData!G$10,CalculationsAndCharts!$A115+$A$11,0,1,1) -> 97933787 | D115: =OFFSET(InputPriceData!C$10,CalculationsAndCharts!$A115+$A$11,0,1,1) -> 12532.93 | E115: =OFFSET(InputPriceData!D$10,CalculationsAndCharts!$A115+$A$11,0,1,1) -> 12646.87 | F115: =OFFSET(InputPriceData!E$10,CalculationsAndCharts!$A115+$A$11,0,1,1) -> 12532.71 | G115: =OFFSET(InputPriceData!F$10,CalculationsAndCharts!$A115+$A$11,0,1,1) -> 12627.01 | H115: =IF(AND(A115<=$B$20,$S$14),$T$14,0) -> 0 | I115: =IF(AND(A115<=$B$20,$S$15),$T$15,0) -> 0 | J115: =IF(AND(A115<=$B$20,$S$16),$T$16,0) -> 12765.86875 | K115: =IF(AND(A115<=$B$20,$S$17),$T$17,0) -> 12604.5675 | L115: =IF(AND(A115<=$B$20,$S$18),$T$18,0) -> 12330.62417 | M115: 0 | N115: 0 | O115: 13088.47125 | P115: 13249.7725 | Q115: 13523.71583 | R115: 0 | S115: 0 | T115: 0 | U115: 0 | V115: 0 | W115: 0 | X115: 0 | Y115: 0
A116: 85 | B116: =OFFSET(InputPriceData!B$10,CalculationsAndCharts!$A116+$A$11,0,1,1) -> 2012-06-26 | C116: =OFFSET(InputPriceData!G$10,CalculationsAndCharts!$A116+$A$11,0,1,1) -> 109263881 | D116: =OFFSET(InputPriceData!C$10,CalculationsAndCharts!$A116+$A$11,0,1,1) -> 12503.57 | E116: =OFFSET(InputPriceData!D$10,CalculationsAndCharts!$A116+$A$11,0,1,1) -> 12576.41 | F116: =OFFSET(InputPriceData!E$10,CalculationsAndCharts!$A116+$A$11,0,1,1) -> 12452.03 | G116: =OFFSET(InputPriceData!F$10,CalculationsAndCharts!$A116+$A$11,0,1,1) -> 12534.67 | H116: =IF(AND(A116<=$B$20,$S$14),$T$14,0) -> 0 | I116: =IF(AND(A116<=$B$20,$S$15),$T$15,0) -> 0 | J116: =IF(AND(A116<=$B$20,$S$16),$T$16,0) -> 12765.86875 | K116: =IF(AND(A116<=$B$20,$S$17),$T$17,0) -> 12604.5675 | L116: =IF(AND(A116<=$B$20,$S$18),$T$18,0) -> 12330.62417 | M116: 0 | N116: 0 | O116: 13088.47125 | P116: 13249.7725 | Q116: 13523.71583 | R116: 0 | S116: 0 | T116: 0 | U116: 0 | V116: 0 | W116: 0 | X116: 0 | Y116: 0
A117: 86 | B117: =OFFSET(InputPriceData!B$10,CalculationsAndCharts!$A117+$A$11,0,1,1) -> 2012-06-25 | C117: =OFFSET(InputPriceData!G$10,CalculationsAndCharts!$A117+$A$11,0,1,1) -> 134067966 | D117: =OFFSET(InputPriceData!C$10,CalculationsAndCharts!$A117+$A$11,0,1,1) -> 12639.8 | E117: =OFFSET(InputPriceData!D$10,CalculationsAndCharts!$A117+$A$11,0,1,1) -> 12639.87 | F117: =OFFSET(InputPriceData!E$10,CalculationsAndCharts!$A117+$A$11,0,1,1) -> 12458.01 | G117: =OFFSET(InputPriceData!F$10,CalculationsAndCharts!$A117+$A$11,0,1,1) -> 12502.66 | H117: =IF(AND(A117<=$B$20,$S$14),$T$14,0) -> 0 | I117: =IF(AND(A117<=$B$20,$S$15),$T$15,0) -> 0 | J117: =IF(AND(A117<=$B$20,$S$16),$T$16,0) -> 12765.86875 | K117: =IF(AND(A117<=$B$20,$S$17),$T$17,0) -> 12604.5675 | L117: =IF(AND(A117<=$B$20,$S$18),$T$18,0) -> 12330.62417 | M117: 0 | N117: 0 | O117: 13088.47125 | P117: 13249.7725 | Q117: 13523.71583 | R117: 0 | S117: 0 | T117: 0 | U117: 0 | V117: 0 | W117: 0 | X117: 0 | Y117: 0
A118: 87 | B118: =OFFSET(InputPriceData!B$10,CalculationsAndCharts!$A118+$A$11,0,1,1) -> 2012-06-22 | C118: =OFFSET(InputPriceData!G$10,CalculationsAndCharts!$A118+$A$11,0,1,1) -> 209984909 | D118: =OFFSET(InputPriceData!C$10,CalculationsAndCharts!$A118+$A$11,0,1,1) -> 12574.82 | E118: =OFFSET(InputPriceData!D$10,CalculationsAndCharts!$A118+$A$11,0,1,1) -> 12674.08 | F118: =OFFSET(InputPriceData!E$10,CalculationsAndCharts!$A118+$A$11,0,1,1) -> 12574.67 | G118: =OFFSET(InputPriceData!F$10,CalculationsAndCharts!$A118+$A$11,0,1,1) -> 12640.78 | H118: =IF(AND(A118<=$B$20,$S$14),$T$14,0) -> 0 | I118: =IF(AND(A118<=$B$20,$S$15),$T$15,0) -> 0 | J118: =IF(AND(A118<=$B$20,$S$16),$T$16,0) -> 12765.86875 | K118: =IF(AND(A118<=$B$20,$S$17),$T$17,0) -> 12604.5675 | L118: =IF(AND(A118<=$B$20,$S$18),$T$18,0) -> 12330.62417 | M118: 0 | N118: 0 | O118: 13088.47125 | P118: 13249.7725 | Q118: 13523.71583 | R118: 0 | S118: 0 | T118: 0 | U118: 0 | V118: 0 | W118: 0 | X118: 0 | Y118: 0
A119: 88 | B119: =OFFSET(InputPriceData!B$10,CalculationsAndCharts!$A119+$A$11,0,1,1) -> 2012-06-21 | C119: =OFFSET(InputPriceData!G$10,CalculationsAndCharts!$A119+$A$11,0,1,1) -> 146742705 | D119: =OFFSET(InputPriceData!C$10,CalculationsAndCharts!$A119+$A$11,0,1,1) -> 12823.1 | E119: =OFFSET(InputPriceData!D$10,CalculationsAndCharts!$A119+$A$11,0,1,1) -> 12857.39 | F119: =OFFSET(InputPriceData!E$10,CalculationsAndCharts!$A119+$A$11,0,1,1) -> 12561.46 | G119: =OFFSET(InputPriceData!F$10,CalculationsAndCharts!$A119+$A$11,0,1,1) -> 12573.57 | H119: =IF(AND(A119<=$B$20,$S$14),$T$14,0) -> 0 | I119: =IF(AND(A119<=$B$20,$S$15),$T$15,0) -> 0 | J119: =IF(AND(A119<=$B$20,$S$16),$T$16,0) -> 12765.86875 | K119: =IF(AND(A119<=$B$20,$S$17),$T$17,0) -> 12604.5675 | L119: =IF(AND(A119<=$B$20,$S$18),$T$18,0) -> 12330.62417 | M119: 0 | N119: 0 | O119: 13088.47125 | P119: 13249.7725 | Q119: 13523.71583 | R119: 0 | S119: 0 | T119: 0 | U119: 0 | V119: 0 | W119: 0 | X119: 0 | Y119: 0
A120: 89 | B120: =OFFSET(InputPriceData!B$10,CalculationsAndCharts!$A120+$A$11,0,1,1) -> 2012-06-20 | C120: =OFFSET(InputPriceData!G$10,CalculationsAndCharts!$A120+$A$11,0,1,1) -> 119073026 | D120: =OFFSET(InputPriceData!C$10,CalculationsAndCharts!$A120+$A$11,0,1,1) -> 12837.1 | E120: =OFFSET(InputPriceData!D$10,CalculationsAndCharts!$A120+$A$11,0,1,1) -> 12877.18 | F120: =OFFSET(InputPriceData!E$10,CalculationsAndCharts!$A120+$A$11,0,1,1) -> 12744.92 | G120: =OFFSET(InputPriceData!F$10,CalculationsAndCharts!$A120+$A$11,0,1,1) -> 12824.39 | H120: =IF(AND(A120<=$B$20,$S$14),$T$14,0) -> 0 | I120: =IF(AND(A120<=$B$20,$S$15),$T$15,0) -> 0 | J120: =IF(AND(A120<=$B$20,$S$16),$T$16,0) -> 12765.86875 | K120: =IF(AND(A120<=$B$20,$S$17),$T$17,0) -> 12604.5675 | L120: =IF(AND(A120<=$B$20,$S$18),$T$18,0) -> 12330.62417 | M120: 0 | N120: 0 | O120: 13088.47125 | P120: 13249.7725 | Q120: 13523.71583 | R120: 0 | S120: 0 | T120: 0 | U120: 0 | V120: 0 | W120: 0 | X120: 0 | Y120: 0
A121: 90 | B121: =OFFSET(InputPriceData!B$10,CalculationsAndCharts!$A121+$A$11,0,1,1) -> 2012-06-19 | C121: =OFFSET(InputPriceData!G$10,CalculationsAndCharts!$A121+$A$11,0,1,1) -> 125122945 | D121: =OFFSET(InputPriceData!C$10,CalculationsAndCharts!$A121+$A$11,0,1,1) -> 12744.62 | E121: =OFFSET(InputPriceData!D$10,CalculationsAndCharts!$A121+$A$11,0,1,1) -> 12898.94 | F121: =OFFSET(InputPriceData!E$10,CalculationsAndCharts!$A121+$A$11,0,1,1) -> 12744.47 | G121: =OFFSET(InputPriceData!F$10,CalculationsAndCharts!$A121+$A$11,0,1,1) -> 12837.33 | H121: =IF(AND(A121<=$B$20,$S$14),$T$14,0) -> 0 | I121: =IF(AND(A121<=$B$20,$S$15),$T$15,0) -> 0 | J121: =IF(AND(A121<=$B$20,$S$16),$T$16,0) -> 12765.86875 | K121: =IF(AND(A121<=$B$20,$S$17),$T$17,0) -> 12604.5675 | L121: =IF(AND(A121<=$B$20,$S$18),$T$18,0) -> 12330.62417 | M121: 0 | N121: 0 | O121: 13088.47125 | P121: 13249.7725 | Q121: 13523.71583 | R121: 0 | S121: 13727 | T121: 0 | U121: 0 | V121: 0 | W121: 0 | X121: 0 | Y121: 0
A122: 91 | B122: =OFFSET(InputPriceData!B$10,CalculationsAndCharts!$A122+$A$11,0,1,1) -> 2012-06-18 | C122: =OFFSET(InputPriceData!G$10,CalculationsAndCharts!$A122+$A$11,0,1,1) -> 111268385 | D122: =OFFSET(InputPriceData!C$10,CalculationsAndCharts!$A122+$A$11,0,1,1) -> 12767.02 | E122: =OFFSET(InputPriceData!D$10,CalculationsAndCharts!$A122+$A$11,0,1,1) -> 12781.93 | F122: =OFFSET(InputPriceData!E$10,CalculationsAndCharts!$A122+$A$11,0,1,1) -> 12696.18 | G122: =OFFSET(InputPriceData!F$10,CalculationsAndCharts!$A122+$A$11,0,1,1) -> 12741.82 | H122: =IF(AND(A122<=$B$20,$S$14),$T$14,0) -> 0 | I122: =IF(AND(A122<=$B$20,$S$15),$T$15,0) -> 0 | J122: =IF(AND(A122<=$B$20,$S$16),$T$16,0) -> 12765.86875 | K122: =IF(AND(A122<=$B$20,$S$17),$T$17,0) -> 12604.5675 | L122: =IF(AND(A122<=$B$20,$S$18),$T$18,0) -> 12330.62417 | M122: 0 | N122: 0 | O122: 13088.47125 | P122: 13249.7725 | Q122: 13523.71583 | R122: 0 | S122: 0 | T122: 0 | U122: 0 | V122: 0 | W122: 0 | X122: 0 | Y122: 0
A123: 92 | B123: =OFFSET(InputPriceData!B$10,CalculationsAndCharts!$A123+$A$11,0,1,1) -> 2012-06-15 | C123: =OFFSET(InputPriceData!G$10,CalculationsAndCharts!$A123+$A$11,0,1,1) -> 281556832 | D123: =OFFSET(InputPriceData!C$10,CalculationsAndCharts!$A123+$A$11,0,1,1) -> 12652.21 | E123: =OFFSET(InputPriceData!D$10,CalculationsAndCharts!$A123+$A$11,0,1,1) -> 12774.7 | F123: =OFFSET(InputPriceData!E$10,CalculationsAndCharts!$A123+$A$11,0,1,1) -> 12651.38 | G123: =OFFSET(InputPriceData!F$10,CalculationsAndCharts!$A123+$A$11,0,1,1) -> 12767.17 | H123: =IF(AND(A123<=$B$20,$S$14),$T$14,0) -> 0 | I123: =IF(AND(A123<=$B$20,$S$15),$T$15,0) -> 0 | J123: =IF(AND(A123<=$B$20,$S$16),$T$16,0) -> 12765.86875 | K123: =IF(AND(A123<=$B$20,$S$17),$T$17,0) -> 12604.5675 | L123: =IF(AND(A123<=$B$20,$S$18),$T$18,0) -> 12330.62417 | M123: 0 | N123: 0 | O123: 13088.47125 | P123: 13249.7725 | Q123: 13523.71583 | R123: 0 | S123: 0 | T123: 0 | U123: 0 | V123: 0 | W123: 0 | X123: 0 | Y123: 0
A124: 93 | B124: =OFFSET(InputPriceData!B$10,CalculationsAndCharts!$A124+$A$11,0,1,1) -> 2012-06-14 | C124: =OFFSET(InputPriceData!G$10,CalculationsAndCharts!$A124+$A$11,0,1,1) -> 128635556 | D124: =OFFSET(InputPriceData!C$10,CalculationsAndCharts!$A124+$A$11,0,1,1) -> 12497.89 | E124: =OFFSET(InputPriceData!D$10,CalculationsAndCharts!$A124+$A$11,0,1,1) -> 12698.68 | F124: =OFFSET(InputPriceData!E$10,CalculationsAndCharts!$A124+$A$11,0,1,1) -> 12497.66 | G124: =OFFSET(InputPriceData!F$10,CalculationsAndCharts!$A124+$A$11,0,1,1) -> 12651.91 | H124: =IF(AND(A124<=$B$20,$S$14),$T$14,0) -> 0 | I124: =IF(AND(A124<=$B$20,$S$15),$T$15,0) -> 0 | J124: =IF(AND(A124<=$B$20,$S$16),$T$16,0) -> 12765.86875 | K124: =IF(AND(A124<=$B$20,$S$17),$T$17,0) -> 12604.5675 | L124: =IF(AND(A124<=$B$20,$S$18),$T$18,0) -> 12330.62417 | M124: 0 | N124: 0 | O124: 13088.47125 | P124: 13249.7725 | Q124: 13523.71583 | R124: 0 | S124: 0 | T124: 0 | U124: 0 | V124: 0 | W124: 0 | X124: 0 | Y124: 0
A125: 94 | B125: =OFFSET(InputPriceData!B$10,CalculationsAndCharts!$A125+$A$11,0,1,1) -> 2012-06-13 | C125: =OFFSET(InputPriceData!G$10,CalculationsAndCharts!$A125+$A$11,0,1,1) -> 125772145 | D125: =OFFSET(InputPriceData!C$10,CalculationsAndCharts!$A125+$A$11,0,1,1) -> 12566.38 | E125: =OFFSET(InputPriceData!D$10,CalculationsAndCharts!$A125+$A$11,0,1,1) -> 12598.25 | F125: =OFFSET(InputPriceData!E$10,CalculationsAndCharts!$A125+$A$11,0,1,1) -> 12453.69 | G125: =OFFSET(InputPriceData!F$10,CalculationsAndCharts!$A125+$A$11,0,1,1) -> 12496.38 | H125: =IF(AND(A125<=$B$20,$S$14),$T$14,0) -> 0 | I125: =IF(AND(A125<=$B$20,$S$15),$T$15,0) -> 0 | J125: =IF(AND(A125<=$B$20,$S$16),$T$16,0) -> 12765.86875 | K125: =IF(AND(A125<=$B$20,$S$17),$T$17,0) -> 12604.5675 | L125: =IF(AND(A125<=$B$20,$S$18),$T$18,0) -> 12330.62417 | M125: 0 | N125: 0 | O125: 13088.47125 | P125: 13249.7725 | Q125: 13523.71583 | R125: 0 | S125: 0 | T125: 0 | U125: 0 | V125: 0 | W125: 0 | X125: 0 | Y125: 0
A126: 95 | B126: =OFFSET(InputPriceData!B$10,CalculationsAndCharts!$A126+$A$11,0,1,1) -> 2012-06-12 | C126: =OFFSET(InputPriceData!G$10,CalculationsAndCharts!$A126+$A$11,0,1,1) -> 110883749 | D126: =OFFSET(InputPriceData!C$10,CalculationsAndCharts!$A126+$A$11,0,1,1) -> 12412.07 | E126: =OFFSET(InputPriceData!D$10,CalculationsAndCharts!$A126+$A$11,0,1,1) -> 12577.02 | F126: =OFFSET(InputPriceData!E$10,CalculationsAndCharts!$A126+$A$11,0,1,1) -> 12411.91 | G126: =OFFSET(InputPriceData!F$10,CalculationsAndCharts!$A126+$A$11,0,1,1) -> 12573.8 | H126: =IF(AND(A126<=$B$20,$S$14),$T$14,0) -> 0 | I126: =IF(AND(A126<=$B$20,$S$15),$T$15,0) -> 0 | J126: =IF(AND(A126<=$B$20,$S$16),$T$16,0) -> 12765.86875 | K126: =IF(AND(A126<=$B$20,$S$17),$T$17,0) -> 12604.5675 | L126: =IF(AND(A126<=$B$20,$S$18),$T$18,0) -> 12330.62417 | M126: 0 | N126: 0 | O126: 13088.47125 | P126: 13249.7725 | Q126: 13523.71583 | R126: 0 | S126: 0 | T126: 0 | U126: 0 | V126: 0 | W126: 0 | X126: 0 | Y126: 0
A127: 96 | B127: =OFFSET(InputPriceData!B$10,CalculationsAndCharts!$A127+$A$11,0,1,1) -> 2012-06-11 | C127: =OFFSET(InputPriceData!G$10,CalculationsAndCharts!$A127+$A$11,0,1,1) -> 121032997 | D127: =OFFSET(InputPriceData!C$10,CalculationsAndCharts!$A127+$A$11,0,1,1) -> 12553.81 | E127: =OFFSET(InputPriceData!D$10,CalculationsAndCharts!$A127+$A$11,0,1,1) -> 12650.47 | F127: =OFFSET(InputPriceData!E$10,CalculationsAndCharts!$A127+$A$11,0,1,1) -> 12398.48 | G127: =OFFSET(InputPriceData!F$10,CalculationsAndCharts!$A127+$A$11,0,1,1) -> 12411.23 | H127: =IF(AND(A127<=$B$20,$S$14),$T$14,0) -> 0 | I127: =IF(AND(A127<=$B$20,$S$15),$T$15,0) -> 0 | J127: =IF(AND(A127<=$B$20,$S$16),$T$16,0) -> 12765.86875 | K127: =IF(AND(A127<=$B$20,$S$17),$T$17,0) -> 12604.5675 | L127: =IF(AND(A127<=$B$20,$S$18),$T$18,0) -> 12330.62417 | M127: 0 | N127: 0 | O127: 13088.47125 | P127: 13249.7725 | Q127: 13523.71583 | R127: 0 | S127: 0 | T127: 0 | U127: 0 | V127: 0 | W127: 0 | X127: 0 | Y127: 0
A128: 97 | B128: =OFFSET(InputPriceData!B$10,CalculationsAndCharts!$A128+$A$11,0,1,1) -> 2012-06-08 | C128: =OFFSET(InputPriceData!G$10,CalculationsAndCharts!$A128+$A$11,0,1,1) -> 110998035 | D128: =OFFSET(InputPriceData!C$10,CalculationsAndCharts!$A128+$A$11,0,1,1) -> 12460.81 | E128: =OFFSET(InputPriceData!D$10,CalculationsAndCharts!$A128+$A$11,0,1,1) -> 12554.2 | F128: =OFFSET(InputPriceData!E$10,CalculationsAndCharts!$A128+$A$11,0,1,1) -> 12398.44 | G128: =OFFSET(InputPriceData!F$10,CalculationsAndCharts!$A128+$A$11,0,1,1) -> 12554.2 | H128: =IF(AND(A128<=$B$20,$S$14),$T$14,0) -> 0 | I128: =IF(AND(A128<=$B$20,$S$15),$T$15,0) -> 0 | J128: =IF(AND(A128<=$B$20,$S$16),$T$16,0) -> 12765.86875 | K128: =IF(AND(A128<=$B$20,$S$17),$T$17,0) -> 12604.5675 | L128: =IF(AND(A128<=$B$20,$S$18),$T$18,0) -> 12330.62417 | M128: 0 | N128: 0 | O128: 13088.47125 | P128: 13249.7725 | Q128: 13523.71583 | R128: 0 | S128: 0 | T128: 0 | U128: 0 | V128: 0 | W128: 0 | X128: 0 | Y128: 0
A129: 98 | B129: =OFFSET(InputPriceData!B$10,CalculationsAndCharts!$A129+$A$11,0,1,1) -> 2012-06-07 | C129: =OFFSET(InputPriceData!G$10,CalculationsAndCharts!$A129+$A$11,0,1,1) -> 130686683 | D129: =OFFSET(InputPriceData!C$10,CalculationsAndCharts!$A129+$A$11,0,1,1) -> 12416.53 | E129: =OFFSET(InputPriceData!D$10,CalculationsAndCharts!$A129+$A$11,0,1,1) -> 12555.26 | F129: =OFFSET(InputPriceData!E$10,CalculationsAndCharts!$A129+$A$11,0,1,1) -> 12416.53 | G129: =OFFSET(InputPriceData!F$10,CalculationsAndCharts!$A129+$A$11,0,1,1) -> 12460.96 | H129: =IF(AND(A129<=$B$20,$S$14),$T$14,0) -> 0 | I129: =IF(AND(A129<=$B$20,$S$15),$T$15,0) -> 0 | J129: =IF(AND(A129<=$B$20,$S$16),$T$16,0) -> 12765.86875 | K129: =IF(AND(A129<=$B$20,$S$17),$T$17,0) -> 12604.5675 | L129: =IF(AND(A129<=$B$20,$S$18),$T$18,0) -> 12330.62417 | M129: 0 | N129: 0 | O129: 13088.47125 | P129: 13249.7725 | Q129: 13523.71583 | R129: 0 | S129: 0 | T129: 0 | U129: 0 | V129: 0 | W129: 0 | X129: 0 | Y129: 0
A130: 99 | B130: =OFFSET(InputPriceData!B$10,CalculationsAndCharts!$A130+$A$11,0,1,1) -> 2012-06-06 | C130: =OFFSET(InputPriceData!G$10,CalculationsAndCharts!$A130+$A$11,0,1,1) -> 140068330 | D130: =OFFSET(InputPriceData!C$10,CalculationsAndCharts!$A130+$A$11,0,1,1) -> 12125 | E130: =OFFSET(InputPriceData!D$10,CalculationsAndCharts!$A130+$A$11,0,1,1) -> 12414.79 | F130: =OFFSET(InputPriceData!E$10,CalculationsAndCharts!$A130+$A$11,0,1,1) -> 12125 | G130: =OFFSET(InputPriceData!F$10,CalculationsAndCharts!$A130+$A$11,0,1,1) -> 12414.79 | H130: =IF(AND(A130<=$B$20,$S$14),$T$14,0) -> 0 | I130: =IF(AND(A130<=$B$20,$S$15),$T$15,0) -> 0 | J130: =IF(AND(A130<=$B$20,$S$16),$T$16,0) -> 12765.86875 | K130: =IF(AND(A130<=$B$20,$S$17),$T$17,0) -> 12604.5675 | L130: =IF(AND(A130<=$B$20,$S$18),$T$18,0) -> 12330.62417 | M130: 0 | N130: 0 | O130: 13088.47125 | P130: 13249.7725 | Q130: 13523.71583 | R130: 0 | S130: 0 | T130: 0 | U130: 0 | V130: 0 | W130: 0 | X130: 0 | Y130: 0
A131: 100 | B131: =OFFSET(InputPriceData!B$10,CalculationsAndCharts!$A131+$A$11,0,1,1) -> 2012-06-05 | C131: =OFFSET(InputPriceData!G$10,CalculationsAndCharts!$A131+$A$11,0,1,1) -> 108935725 | D131: =OFFSET(InputPriceData!C$10,CalculationsAndCharts!$A131+$A$11,0,1,1) -> 12101.08 | E131: =OFFSET(InputPriceData!D$10,CalculationsAndCharts!$A131+$A$11,0,1,1) -> 12147.55 | F131: =OFFSET(InputPriceData!E$10,CalculationsAndCharts!$A131+$A$11,0,1,1) -> 12072.17 | G131: =OFFSET(InputPriceData!F$10,CalculationsAndCharts!$A131+$A$11,0,1,1) -> 12127.95 | H131: =IF(AND(A131<=$B$20,$S$14),$T$14,0) -> 0 | I131: =IF(AND(A131<=$B$20,$S$15),$T$15,0) -> 0 | J131: =IF(AND(A131<=$B$20,$S$16),$T$16,0) -> 12765.86875 | K131: =IF(AND(A131<=$B$20,$S$17),$T$17,0) -> 12604.5675 | L131: =IF(AND(A131<=$B$20,$S$18),$T$18,0) -> 12330.62417 | M131: 0 | N131: 0 | O131: 13088.47125 | P131: 13249.7725 | Q131: 13523.71583 | R131: 0 | S131: 0 | T131: 0 | U131: 0 | V131: 0 | W131: 0 | X131: 0 | Y131: 0
A132: 101 | B132: =OFFSET(InputPriceData!B$10,CalculationsAndCharts!$A132+$A$11,0,1,1) -> 2012-06-04 | C132: =OFFSET(InputPriceData!G$10,CalculationsAndCharts!$A132+$A$11,0,1,1) -> 126436971 | D132: =OFFSET(InputPriceData!C$10,CalculationsAndCharts!$A132+$A$11,0,1,1) -> 12119.85 | E132: =OFFSET(InputPriceData!D$10,CalculationsAndCharts!$A132+$A$11,0,1,1) -> 12143.69 | F132: =OFFSET(InputPriceData!E$10,CalculationsAndCharts!$A132+$A$11,0,1,1) -> 12035.09 | G132: =OFFSET(InputPriceData!F$10,CalculationsAndCharts!$A132+$A$11,0,1,1) -> 12101.46 | H132: =IF(AND(A132<=$B$20,$S$14),$T$14,0) -> 0 | I132: =IF(AND(A132<=$B$20,$S$15),$T$15,0) -> 0 | J132: =IF(AND(A132<=$B$20,$S$16),$T$16,0) -> 12765.86875 | K132: =IF(AND(A132<=$B$20,$S$17),$T$17,0) -> 12604.5675 | L132: =IF(AND(A132<=$B$20,$S$18),$T$18,0) -> 12330.62417 | M132: 0 | N132: 0 | O132: 13088.47125 | P132: 13249.7725 | Q132: 13523.71583 | R132: 0 | S132: 0 | T132: 0 | U132: 0 | V132: 0 | W132: 0 | X132: 0 | Y132: 0
A133: 102 | B133: =OFFSET(InputPriceData!B$10,CalculationsAndCharts!$A133+$A$11,0,1,1) -> 2012-06-01 | C133: =OFFSET(InputPriceData!G$10,CalculationsAndCharts!$A133+$A$11,0,1,1) -> 162644992 | D133: =OFFSET(InputPriceData!C$10,CalculationsAndCharts!$A133+$A$11,0,1,1) -> 12391.56 | E133: =OFFSET(InputPriceData!D$10,CalculationsAndCharts!$A133+$A$11,0,1,1) -> 12391.63 | F133: =OFFSET(InputPriceData!E$10,CalculationsAndCharts!$A133+$A$11,0,1,1) -> 12107.48 | G133: =OFFSET(InputPriceData!F$10,CalculationsAndCharts!$A133+$A$11,0,1,1) -> 12118.57 | H133: =IF(AND(A133<=$B$20,$S$14),$T$14,0) -> 0 | I133: =IF(AND(A133<=$B$20,$S$15),$T$15,0) -> 0 | J133: =IF(AND(A133<=$B$20,$S$16),$T$16,0) -> 12765.86875 | K133: =IF(AND(A133<=$B$20,$S$17),$T$17,0) -> 12604.5675 | L133: =IF(AND(A133<=$B$20,$S$18),$T$18,0) -> 12330.62417 | M133: 0 | N133: 0 | O133: 13088.47125 | P133: 13249.7725 | Q133: 13523.71583 | R133: 0 | S133: 0 | T133: 0 | U133: 0 | V133: 0 | W133: 0 | X133: 0 | Y133: 0
A134: 103 | B134: =OFFSET(InputPriceData!B$10,CalculationsAndCharts!$A134+$A$11,0,1,1) -> 2012-05-31 | C134: =OFFSET(InputPriceData!G$10,CalculationsAndCharts!$A134+$A$11,0,1,1) -> 200423290 | D134: =OFFSET(InputPriceData!C$10,CalculationsAndCharts!$A134+$A$11,0,1,1) -> 12414.41 | E134: =OFFSET(InputPriceData!D$10,CalculationsAndCharts!$A134+$A$11,0,1,1) -> 12489.87 | F134: =OFFSET(InputPriceData!E$10,CalculationsAndCharts!$A134+$A$11,0,1,1) -> 12316.48 | G134: =OFFSET(InputPriceData!F$10,CalculationsAndCharts!$A134+$A$11,0,1,1) -> 12393.45 | H134: =IF(AND(A134<=$B$20,$S$14),$T$14,0) -> 0 | I134: =IF(AND(A134<=$B$20,$S$15),$T$15,0) -> 0 | J134: =IF(AND(A134<=$B$20,$S$16),$T$16,0) -> 12765.86875 | K134: =IF(AND(A134<=$B$20,$S$17),$T$17,0) -> 12604.5675 | L134: =IF(AND(A134<=$B$20,$S$18),$T$18,0) -> 12330.62417 | M134: 0 | N134: 0 | O134: 13088.47125 | P134: 13249.7725 | Q134: 13523.71583 | R134: 0 | S134: 0 | T134: 0 | U134: 0 | V134: 0 | W134: 0 | X134: 0 | Y134: 0
A135: 104 | B135: =OFFSET(InputPriceData!B$10,CalculationsAndCharts!$A135+$A$11,0,1,1) -> 2012-05-30 | C135: =OFFSET(InputPriceData!G$10,CalculationsAndCharts!$A135+$A$11,0,1,1) -> 122819241 | D135: =OFFSET(InputPriceData!C$10,CalculationsAndCharts!$A135+$A$11,0,1,1) -> 12579.02 | E135: =OFFSET(InputPriceData!D$10,CalculationsAndCharts!$A135+$A$11,0,1,1) -> 12579.1 | F135: =OFFSET(InputPriceData!E$10,CalculationsAndCharts!$A135+$A$11,0,1,1) -> 12396.4 | G135: =OFFSET(InputPriceData!F$10,CalculationsAndCharts!$A135+$A$11,0,1,1) -> 12419.86 | H135: =IF(AND(A135<=$B$20,$S$14),$T$14,0) -> 0 | I135: =IF(AND(A135<=$B$20,$S$15),$T$15,0) -> 0 | J135: =IF(AND(A135<=$B$20,$S$16),$T$16,0) -> 12765.86875 | K135: =IF(AND(A135<=$B$20,$S$17),$T$17,0) -> 12604.5675 | L135: =IF(AND(A135<=$B$20,$S$18),$T$18,0) -> 12330.62417 | M135: 0 | N135: 0 | O135: 13088.47125 | P135: 13249.7725 | Q135: 13523.71583 | R135: 0 | S135: 0 | T135: 0 | U135: 0 | V135: 0 | W135: 0 | X135: 0 | Y135: 0
A136: 105 | B136: =OFFSET(InputPriceData!B$10,CalculationsAndCharts!$A136+$A$11,0,1,1) -> 2012-05-29 | C136: =OFFSET(InputPriceData!G$10,CalculationsAndCharts!$A136+$A$11,0,1,1) -> 107482485 | D136: =OFFSET(InputPriceData!C$10,CalculationsAndCharts!$A136+$A$11,0,1,1) -> 12454.83 | E136: =OFFSET(InputPriceData!D$10,CalculationsAndCharts!$A136+$A$11,0,1,1) -> 12611.61 | F136: =OFFSET(InputPriceData!E$10,CalculationsAndCharts!$A136+$A$11,0,1,1) -> 12454.6 | G136: =OFFSET(InputPriceData!F$10,CalculationsAndCharts!$A136+$A$11,0,1,1) -> 12580.69 | H136: =IF(AND(A136<=$B$20,$S$14),$T$14,0) -> 0 | I136: =IF(AND(A136<=$B$20,$S$15),$T$15,0) -> 0 | J136: =IF(AND(A136<=$B$20,$S$16),$T$16,0) -> 12765.86875 | K136: =IF(AND(A136<=$B$20,$S$17),$T$17,0) -> 12604.5675 | L136: =IF(AND(A136<=$B$20,$S$18),$T$18,0) -> 12330.62417 | M136: 0 | N136: 0 | O136: 13088.47125 | P136: 13249.7725 | Q136: 13523.71583 | R136: 0 | S136: 0 | T136: 0 | U136: 13727 | V136: 0 | W136: 0 | X136: 0 | Y136: 0
A137: 106 | B137: =OFFSET(InputPriceData!B$10,CalculationsAndCharts!$A137+$A$11,0,1,1) -> 2012-05-25 | C137: =OFFSET(InputPriceData!G$10,CalculationsAndCharts!$A137+$A$11,0,1,1) -> 92314513 | D137: =OFFSET(InputPriceData!C$10,CalculationsAndCharts!$A137+$A$11,0,1,1) -> 12530.74 | E137: =OFFSET(InputPriceData!D$10,CalculationsAndCharts!$A137+$A$11,0,1,1) -> 12533.12 | F137: =OFFSET(InputPriceData!E$10,CalculationsAndCharts!$A137+$A$11,0,1,1) -> 12421.53 | G137: =OFFSET(InputPriceData!F$10,CalculationsAndCharts!$A137+$A$11,0,1,1) -> 12454.83 | H137: =IF(AND(A137<=$B$20,$S$14),$T$14,0) -> 0 | I137: =IF(AND(A137<=$B$20,$S$15),$T$15,0) -> 0 | J137: =IF(AND(A137<=$B$20,$S$16),$T$16,0) -> 12765.86875 | K137: =IF(AND(A137<=$B$20,$S$17),$T$17,0) -> 12604.5675 | L137: =IF(AND(A137<=$B$20,$S$18),$T$18,0) -> 12330.62417 | M137: 0 | N137: 0 | O137: 13088.47125 | P137: 13249.7725 | Q137: 13523.71583 | R137: 0 | S137: 0 | T137: 0 | U137: 13727 | V137: 0 | W137: 0 | X137: 0 | Y137: 0
A138: 107 | B138: =OFFSET(InputPriceData!B$10,CalculationsAndCharts!$A138+$A$11,0,1,1) -> 2012-05-24 | C138: =OFFSET(InputPriceData!G$10,CalculationsAndCharts!$A138+$A$11,0,1,1) -> 126800577 | D138: =OFFSET(InputPriceData!C$10,CalculationsAndCharts!$A138+$A$11,0,1,1) -> 12491.91 | E138: =OFFSET(InputPriceData!D$10,CalculationsAndCharts!$A138+$A$11,0,1,1) -> 12539.59 | F138: =OFFSET(InputPriceData!E$10,CalculationsAndCharts!$A138+$A$11,0,1,1) -> 12419.63 | G138: =OFFSET(InputPriceData!F$10,CalculationsAndCharts!$A138+$A$11,0,1,1) -> 12529.75 | H138: =IF(AND(A138<=$B$20,$S$14),$T$14,0) -> 0 | I138: =IF(AND(A138<=$B$20,$S$15),$T$15,0) -> 0 | J138: =IF(AND(A138<=$B$20,$S$16),$T$16,0) -> 12765.86875 | K138: =IF(AND(A138<=$B$20,$S$17),$T$17,0) -> 12604.5675 | L138: =IF(AND(A138<=$B$20,$S$18),$T$18,0) -> 12330.62417 | M138: 0 | N138: 0 | O138: 13088.47125 | P138: 13249.7725 | Q138: 13523.71583 | R138: 0 | S138: 0 | T138: 0 | U138: 13727 | V138: 0 | W138: 0 | X138: 0 | Y138: 0
A139: 108 | B139: =OFFSET(InputPriceData!B$10,CalculationsAndCharts!$A139+$A$11,0,1,1) -> 2012-05-23 | C139: =OFFSET(InputPriceData!G$10,CalculationsAndCharts!$A139+$A$11,0,1,1) -> 147829671 | D139: =OFFSET(InputPriceData!C$10,CalculationsAndCharts!$A139+$A$11,0,1,1) -> 12501.52 | E139: =OFFSET(InputPriceData!D$10,CalculationsAndCharts!$A139+$A$11,0,1,1) -> 12508.3 | F139: =OFFSET(InputPriceData!E$10,CalculationsAndCharts!$A139+$A$11,0,1,1) -> 12311.56 | G139: =OFFSET(InputPriceData!F$10,CalculationsAndCharts!$A139+$A$11,0,1,1) -> 12496.15 | H139: =IF(AND(A139<=$B$20,$S$14),$T$14,0) -> 0 | I139: =IF(AND(A139<=$B$20,$S$15),$T$15,0) -> 0 | J139: =IF(AND(A139<=$B$20,$S$16),$T$16,0) -> 12765.86875 | K139: =IF(AND(A139<=$B$20,$S$17),$T$17,0) -> 12604.5675 | L139: =IF(AND(A139<=$B$20,$S$18),$T$18,0) -> 12330.62417 | M139: 0 | N139: 0 | O139: 13088.47125 | P139: 13249.7725 | Q139: 13523.71583 | R139: 0 | S139: 0 | T139: 0 | U139: 13727 | V139: 0 | W139: 0 | X139: 0 | Y139: 0
A140: 109 | B140: =OFFSET(InputPriceData!B$10,CalculationsAndCharts!$A140+$A$11,0,1,1) -> 2012-05-22 | C140: =OFFSET(InputPriceData!G$10,CalculationsAndCharts!$A140+$A$11,0,1,1) -> 133599677 | D140: =OFFSET(InputPriceData!C$10,CalculationsAndCharts!$A140+$A$11,0,1,1) -> 12505.38 | E140: =OFFSET(InputPriceData!D$10,CalculationsAndCharts!$A140+$A$11,0,1,1) -> 12575.96 | F140: =OFFSET(InputPriceData!E$10,CalculationsAndCharts!$A140+$A$11,0,1,1) -> 12447.33 | G140: =OFFSET(InputPriceData!F$10,CalculationsAndCharts!$A140+$A$11,0,1,1) -> 12502.81 | H140: =IF(AND(A140<=$B$20,$S$14),$T$14,0) -> 0 | I140: =IF(AND(A140<=$B$20,$S$15),$T$15,0) -> 0 | J140: =IF(AND(A140<=$B$20,$S$16),$T$16,0) -> 12765.86875 | K140: =IF(AND(A140<=$B$20,$S$17),$T$17,0) -> 12604.5675 | L140: =IF(AND(A140<=$B$20,$S$18),$T$18,0) -> 12330.62417 | M140: 0 | N140: 0 | O140: 13088.47125 | P140: 13249.7725 | Q140: 13523.71583 | R140: 0 | S140: 0 | T140: 0 | U140: 13727 | V140: 0 | W140: 0 | X140: 0 | Y140: 0
A141: 110 | B141: =OFFSET(InputPriceData!B$10,CalculationsAndCharts!$A141+$A$11,0,1,1) -> 2012-05-21 | C141: =OFFSET(InputPriceData!G$10,CalculationsAndCharts!$A141+$A$11,0,1,1) -> 141624733 | D141: =OFFSET(InputPriceData!C$10,CalculationsAndCharts!$A141+$A$11,0,1,1) -> 12369.15 | E141: =OFFSET(InputPriceData!D$10,CalculationsAndCharts!$A141+$A$11,0,1,1) -> 12508.11 | F141: =OFFSET(InputPriceData!E$10,CalculationsAndCharts!$A141+$A$11,0,1,1) -> 12367.72 | G141: =OFFSET(InputPriceData!F$10,CalculationsAndCharts!$A141+$A$11,0,1,1) -> 12504.48 | H141: =IF(AND(A141<=$B$20,$S$14),$T$14,0) -> 0 | I141: =IF(AND(A141<=$B$20,$S$15),$T$15,0) -> 0 | J141: =IF(AND(A141<=$B$20,$S$16),$T$16,0) -> 12765.86875 | K141: =IF(AND(A141<=$B$20,$S$17),$T$17,0) -> 12604.5675 | L141: =IF(AND(A141<=$B$20,$S$18),$T$18,0) -> 12330.62417 | M141: 0 | N141: 0 | O141: 13088.47125 | P141: 13249.7725 | Q141: 13523.71583 | R141: 0 | S141: 0 | T141: 0 | U141: 13727 | V141: 0 | W141: 0 | X141: 0 | Y141: 0
A142: 111 | B142: =OFFSET(InputPriceData!B$10,CalculationsAndCharts!$A142+$A$11,0,1,1) -> 2012-05-18 | C142: =OFFSET(InputPriceData!G$10,CalculationsAndCharts!$A142+$A$11,0,1,1) -> 240509807 | D142: =OFFSET(InputPriceData!C$10,CalculationsAndCharts!$A142+$A$11,0,1,1) -> 12443.02 | E142: =OFFSET(InputPriceData!D$10,CalculationsAndCharts!$A142+$A$11,0,1,1) -> 12492.97 | F142: =OFFSET(InputPriceData!E$10,CalculationsAndCharts!$A142+$A$11,0,1,1) -> 12336.76 | G142: =OFFSET(InputPriceData!F$10,CalculationsAndCharts!$A142+$A$11,0,1,1) -> 12369.38 | H142: =IF(AND(A142<=$B$20,$S$14),$T$14,0) -> 0 | I142: =IF(AND(A142<=$B$20,$S$15),$T$15,0) -> 0 | J142: =IF(AND(A142<=$B$20,$S$16),$T$16,0) -> 12765.86875 | K142: =IF(AND(A142<=$B$20,$S$17),$T$17,0) -> 12604.5675 | L142: =IF(AND(A142<=$B$20,$S$18),$T$18,0) -> 12330.62417 | M142: 0 | N142: 0 | O142: 13088.47125 | P142: 13249.7725 | Q142: 13523.71583 | R142: 0 | S142: 0 | T142: 0 | U142: 13727 | V142: 0 | W142: 0 | X142: 0 | Y142: 0
A143: 112 | B143: =OFFSET(InputPriceData!B$10,CalculationsAndCharts!$A143+$A$11,0,1,1) -> 2012-05-17 | C143: =OFFSET(InputPriceData!G$10,CalculationsAndCharts!$A143+$A$11,0,1,1) -> 147332828 | D143: =OFFSET(InputPriceData!C$10,CalculationsAndCharts!$A143+$A$11,0,1,1) -> 12598.32 | E143: =OFFSET(InputPriceData!D$10,CalculationsAndCharts!$A143+$A$11,0,1,1) -> 12611.42 | F143: =OFFSET(InputPriceData!E$10,CalculationsAndCharts!$A143+$A$11,0,1,1) -> 12440.52 | G143: =OFFSET(InputPriceData!F$10,CalculationsAndCharts!$A143+$A$11,0,1,1) -> 12442.49 | H143: =IF(AND(A143<=$B$20,$S$14),$T$14,0) -> 0 | I143: =IF(AND(A143<=$B$20,$S$15),$T$15,0) -> 0 | J143: =IF(AND(A143<=$B$20,$S$16),$T$16,0) -> 12765.86875 | K143: =IF(AND(A143<=$B$20,$S$17),$T$17,0) -> 12604.5675 | L143: =IF(AND(A143<=$B$20,$S$18),$T$18,0) -> 12330.62417 | M143: 0 | N143: 0 | O143: 13088.47125 | P143: 13249.7725 | Q143: 13523.71583 | R143: 0 | S143: 0 | T143: 0 | U143: 13727 | V143: 0 | W143: 0 | X143: 0 | Y143: 0
A144: 113 | B144: =OFFSET(InputPriceData!B$10,CalculationsAndCharts!$A144+$A$11,0,1,1) -> 2012-05-16 | C144: =OFFSET(InputPriceData!G$10,CalculationsAndCharts!$A144+$A$11,0,1,1) -> 143125503 | D144: =OFFSET(InputPriceData!C$10,CalculationsAndCharts!$A144+$A$11,0,1,1) -> 12617.32 | E144: =OFFSET(InputPriceData!D$10,CalculationsAndCharts!$A144+$A$11,0,1,1) -> 12722.63 | F144: =OFFSET(InputPriceData!E$10,CalculationsAndCharts!$A144+$A$11,0,1,1) -> 12597.34 | G144: =OFFSET(InputPriceData!F$10,CalculationsAndCharts!$A144+$A$11,0,1,1) -> 12598.55 | H144: =IF(AND(A144<=$B$20,$S$14),$T$14,0) -> 0 | I144: =IF(AND(A144<=$B$20,$S$15),$T$15,0) -> 0 | J144: =IF(AND(A144<=$B$20,$S$16),$T$16,0) -> 12765.86875 | K144: =IF(AND(A144<=$B$20,$S$17),$T$17,0) -> 12604.5675 | L144: =IF(AND(A144<=$B$20,$S$18),$T$18,0) -> 12330.62417 | M144: 0 | N144: 0 | O144: 13088.47125 | P144: 13249.7725 | Q144: 13523.71583 | R144: 0 | S144: 0 | T144: 0 | U144: 13727 | V144: 0 | W144: 0 | X144: 0 | Y144: 0
A145: 114 | B145: =OFFSET(InputPriceData!B$10,CalculationsAndCharts!$A145+$A$11,0,1,1) -> 2012-05-15 | C145: =OFFSET(InputPriceData!G$10,CalculationsAndCharts!$A145+$A$11,0,1,1) -> 155996865 | D145: =OFFSET(InputPriceData!C$10,CalculationsAndCharts!$A145+$A$11,0,1,1) -> 12695.05 | E145: =OFFSET(InputPriceData!D$10,CalculationsAndCharts!$A145+$A$11,0,1,1) -> 12758.43 | F145: =OFFSET(InputPriceData!E$10,CalculationsAndCharts!$A145+$A$11,0,1,1) -> 12608.16 | G145: =OFFSET(InputPriceData!F$10,CalculationsAndCharts!$A145+$A$11,0,1,1) -> 12632 | H145: =IF(AND(A145<=$B$20,$S$14),$T$14,0) -> 0 | I145: =IF(AND(A145<=$B$20,$S$15),$T$15,0) -> 0 | J145: =IF(AND(A145<=$B$20,$S$16),$T$16,0) -> 12765.86875 | K145: =IF(AND(A145<=$B$20,$S$17),$T$17,0) -> 12604.5675 | L145: =IF(AND(A145<=$B$20,$S$18),$T$18,0) -> 12330.62417 | M145: 0 | N145: 0 | O145: 13088.47125 | P145: 13249.7725 | Q145: 13523.71583 | R145: 0 | S145: 0 | T145: 0 | U145: 13727 | V145: 0 | W145: 0 | X145: 0 | Y145: 0
A146: 115 | B146: =OFFSET(InputPriceData!B$10,CalculationsAndCharts!$A146+$A$11,0,1,1) -> 2012-05-14 | C146: =OFFSET(InputPriceData!G$10,CalculationsAndCharts!$A146+$A$11,0,1,1) -> 143168951 | D146: =OFFSET(InputPriceData!C$10,CalculationsAndCharts!$A146+$A$11,0,1,1) -> 12818.49 | E146: =OFFSET(InputPriceData!D$10,CalculationsAndCharts!$A146+$A$11,0,1,1) -> 12818.86 | F146: =OFFSET(InputPriceData!E$10,CalculationsAndCharts!$A146+$A$11,0,1,1) -> 12661.48 | G146: =OFFSET(InputPriceData!F$10,CalculationsAndCharts!$A146+$A$11,0,1,1) -> 12695.35 | H146: =IF(AND(A146<=$B$20,$S$14),$T$14,0) -> 0 | I146: =IF(AND(A146<=$B$20,$S$15),$T$15,0) -> 0 | J146: =IF(AND(A146<=$B$20,$S$16),$T$16,0) -> 12765.86875 | K146: =IF(AND(A146<=$B$20,$S$17),$T$17,0) -> 12604.5675 | L146: =IF(AND(A146<=$B$20,$S$18),$T$18,0) -> 12330.62417 | M146: 0 | N146: 0 | O146: 13088.47125 | P146: 13249.7725 | Q146: 13523.71583 | R146: 0 | S146: 0 | T146: 0 | U146: 13727 | V146: 0 | W146: 0 | X146: 0 | Y146: 0
A147: 116 | B147: =OFFSET(InputPriceData!B$10,CalculationsAndCharts!$A147+$A$11,0,1,1) -> 2012-05-11 | C147: =OFFSET(InputPriceData!G$10,CalculationsAndCharts!$A147+$A$11,0,1,1) -> 148347480 | D147: =OFFSET(InputPriceData!C$10,CalculationsAndCharts!$A147+$A$11,0,1,1) -> 12851.79 | E147: =OFFSET(InputPriceData!D$10,CalculationsAndCharts!$A147+$A$11,0,1,1) -> 12918.01 | F147: =OFFSET(InputPriceData!E$10,CalculationsAndCharts!$A147+$A$11,0,1,1) -> 12779.28 | G147: =OFFSET(InputPriceData!F$10,CalculationsAndCharts!$A147+$A$11,0,1,1) -> 12820.6 | H147: =IF(AND(A147<=$B$20,$S$14),$T$14,0) -> 0 | I147: =IF(AND(A147<=$B$20,$S$15),$T$15,0) -> 0 | J147: =IF(AND(A147<=$B$20,$S$16),$T$16,0) -> 12765.86875 | K147: =IF(AND(A147<=$B$20,$S$17),$T$17,0) -> 12604.5675 | L147: =IF(AND(A147<=$B$20,$S$18),$T$18,0) -> 12330.62417 | M147: 0 | N147: 0 | O147: 13088.47125 | P147: 13249.7725 | Q147: 13523.71583 | R147: 0 | S147: 0 | T147: 0 | U147: 13727 | V147: 0 | W147: 0 | X147: 0 | Y147: 0
A148: 117 | B148: =OFFSET(InputPriceData!B$10,CalculationsAndCharts!$A148+$A$11,0,1,1) -> 2012-05-10 | C148: =OFFSET(InputPriceData!G$10,CalculationsAndCharts!$A148+$A$11,0,1,1) -> 151572422 | D148: =OFFSET(InputPriceData!C$10,CalculationsAndCharts!$A148+$A$11,0,1,1) -> 12831.58 | E148: =OFFSET(InputPriceData!D$10,CalculationsAndCharts!$A148+$A$11,0,1,1) -> 12931.71 | F148: =OFFSET(InputPriceData!E$10,CalculationsAndCharts!$A148+$A$11,0,1,1) -> 12820.3 | G148: =OFFSET(InputPriceData!F$10,CalculationsAndCharts!$A148+$A$11,0,1,1) -> 12855.04 | H148: =IF(AND(A148<=$B$20,$S$14),$T$14,0) -> 0 | I148: =IF(AND(A148<=$B$20,$S$15),$T$15,0) -> 0 | J148: =IF(AND(A148<=$B$20,$S$16),$T$16,0) -> 12765.86875 | K148: =IF(AND(A148<=$B$20,$S$17),$T$17,0) -> 12604.5675 | L148: =IF(AND(A148<=$B$20,$S$18),$T$18,0) -> 12330.62417 | M148: 0 | N148: 0 | O148: 13088.47125 | P148: 13249.7725 | Q148: 13523.71583 | R148: 0 | S148: 0 | T148: 0 | U148: 13727 | V148: 0 | W148: 0 | X148: 0 | Y148: 0
A149: 118 | B149: =OFFSET(InputPriceData!B$10,CalculationsAndCharts!$A149+$A$11,0,1,1) -> 2012-05-09 | C149: =OFFSET(InputPriceData!G$10,CalculationsAndCharts!$A149+$A$11,0,1,1) -> 146364865 | D149: =OFFSET(InputPriceData!C$10,CalculationsAndCharts!$A149+$A$11,0,1,1) -> 12921.81 | E149: =OFFSET(InputPriceData!D$10,CalculationsAndCharts!$A149+$A$11,0,1,1) -> 12921.81 | F149: =OFFSET(InputPriceData!E$10,CalculationsAndCharts!$A149+$A$11,0,1,1) -> 12748.48 | G149: =OFFSET(InputPriceData!F$10,CalculationsAndCharts!$A149+$A$11,0,1,1) -> 12835.06 | H149: =IF(AND(A149<=$B$20,$S$14),$T$14,0) -> 0 | I149: =IF(AND(A149<=$B$20,$S$15),$T$15,0) -> 0 | J149: =IF(AND(A149<=$B$20,$S$16),$T$16,0) -> 12765.86875 | K149: =IF(AND(A149<=$B$20,$S$17),$T$17,0) -> 12604.5675 | L149: =IF(AND(A149<=$B$20,$S$18),$T$18,0) -> 12330.62417 | M149: 0 | N149: 0 | O149: 13088.47125 | P149: 13249.7725 | Q149: 13523.71583 | R149: 0 | S149: 0 | T149: 0 | U149: 13727 | V149: 0 | W149: 0 | X149: 0 | Y149: 0
A150: 119 | B150: =OFFSET(InputPriceData!B$10,CalculationsAndCharts!$A150+$A$11,0,1,1) -> 2012-05-08 | C150: =OFFSET(InputPriceData!G$10,CalculationsAndCharts!$A150+$A$11,0,1,1) -> 138603459 | D150: =OFFSET(InputPriceData!C$10,CalculationsAndCharts!$A150+$A$11,0,1,1) -> 13000.73 | E150: =OFFSET(InputPriceData!D$10,CalculationsAndCharts!$A150+$A$11,0,1,1) -> 13000.73 | F150: =OFFSET(InputPriceData!E$10,CalculationsAndCharts!$A150+$A$11,0,1,1) -> 12810.39 | G150: =OFFSET(InputPriceData!F$10,CalculationsAndCharts!$A150+$A$11,0,1,1) -> 12932.09 | H150: =IF(AND(A150<=$B$20,$S$14),$T$14,0) -> 0 | I150: =IF(AND(A150<=$B$20,$S$15),$T$15,0) -> 0 | J150: =IF(AND(A150<=$B$20,$S$16),$T$16,0) -> 12765.86875 | K150: =IF(AND(A150<=$B$20,$S$17),$T$17,0) -> 12604.5675 | L150: =IF(AND(A150<=$B$20,$S$18),$T$18,0) -> 12330.62417 | M150: 0 | N150: 0 | O150: 13088.47125 | P150: 13249.7725 | Q150: 13523.71583 | R150: 0 | S150: 0 | T150: 0 | U150: 13727 | V150: 0 | W150: 0 | X150: 0 | Y150: 0
A151: 120 | B151: =OFFSET(InputPriceData!B$10,CalculationsAndCharts!$A151+$A$11,0,1,1) -> 2012-05-07 | C151: =OFFSET(InputPriceData!G$10,CalculationsAndCharts!$A151+$A$11,0,1,1) -> 110066364 | D151: =OFFSET(InputPriceData!C$10,CalculationsAndCharts!$A151+$A$11,0,1,1) -> 13035.85 | E151: =OFFSET(InputPriceData!D$10,CalculationsAndCharts!$A151+$A$11,0,1,1) -> 13049.09 | F151: =OFFSET(InputPriceData!E$10,CalculationsAndCharts!$A151+$A$11,0,1,1) -> 12970 | G151: =OFFSET(InputPriceData!F$10,CalculationsAndCharts!$A151+$A$11,0,1,1) -> 13008.53 | H151: =IF(AND(A151<=$B$20,$S$14),$T$14,0) -> 0 | I151: =IF(AND(A151<=$B$20,$S$15),$T$15,0) -> 0 | J151: =IF(AND(A151<=$B$20,$S$16),$T$16,0) -> 12765.86875 | K151: =IF(AND(A151<=$B$20,$S$17),$T$17,0) -> 12604.5675 | L151: =IF(AND(A151<=$B$20,$S$18),$T$18,0) -> 12330.62417 | M151: 0 | N151: 0 | O151: 13088.47125 | P151: 13249.7725 | Q151: 13523.71583 | R151: 0 | S151: 0 | T151: 0 | U151: 13727 | V151: 0 | W151: 0 | X151: 0 | Y151: 0
A152: 121 | B152: =OFFSET(InputPriceData!B$10,CalculationsAndCharts!$A152+$A$11,0,1,1) -> 2012-05-04 | C152: =OFFSET(InputPriceData!G$10,CalculationsAndCharts!$A152+$A$11,0,1,1) -> 113750576 | D152: =OFFSET(InputPriceData!C$10,CalculationsAndCharts!$A152+$A$11,0,1,1) -> 13204.62 | E152: =OFFSET(InputPriceData!D$10,CalculationsAndCharts!$A152+$A$11,0,1,1) -> 13205 | F152: =OFFSET(InputPriceData!E$10,CalculationsAndCharts!$A152+$A$11,0,1,1) -> 13022.34 | G152: =OFFSET(InputPriceData!F$10,CalculationsAndCharts!$A152+$A$11,0,1,1) -> 13038.27 | H152: =IF(AND(A152<=$B$20,$S$14),$T$14,0) -> 0 | I152: =IF(AND(A152<=$B$20,$S$15),$T$15,0) -> 0 | J152: =IF(AND(A152<=$B$20,$S$16),$T$16,0) -> 12765.86875 | K152: =IF(AND(A152<=$B$20,$S$17),$T$17,0) -> 12604.5675 | L152: =IF(AND(A152<=$B$20,$S$18),$T$18,0) -> 12330.62417 | M152: 0 | N152: 0 | O152: 13088.47125 | P152: 13249.7725 | Q152: 13523.71583 | R152: 0 | S152: 0 | T152: 0 | U152: 13727 | V152: 0 | W152: 0 | X152: 0 | Y152: 0
A153: 122 | B153: =OFFSET(InputPriceData!B$10,CalculationsAndCharts!$A153+$A$11,0,1,1) -> 2012-05-03 | C153: =OFFSET(InputPriceData!G$10,CalculationsAndCharts!$A153+$A$11,0,1,1) -> 102062921 | D153: =OFFSET(InputPriceData!C$10,CalculationsAndCharts!$A153+$A$11,0,1,1) -> 13267.59 | E153: =OFFSET(InputPriceData!D$10,CalculationsAndCharts!$A153+$A$11,0,1,1) -> 13284.09 | F153: =OFFSET(InputPriceData!E$10,CalculationsAndCharts!$A153+$A$11,0,1,1) -> 13175.64 | G153: =OFFSET(InputPriceData!F$10,CalculationsAndCharts!$A153+$A$11,0,1,1) -> 13206.59 | H153: =IF(AND(A153<=$B$20,$S$14),$T$14,0) -> 0 | I153: =IF(AND(A153<=$B$20,$S$15),$T$15,0) -> 0 | J153: =IF(AND(A153<=$B$20,$S$16),$T$16,0) -> 12765.86875 | K153: =IF(AND(A153<=$B$20,$S$17),$T$17,0) -> 12604.5675 | L153: =IF(AND(A153<=$B$20,$S$18),$T$18,0) -> 12330.62417 | M153: 0 | N153: 0 | O153: 13088.47125 | P153: 13249.7725 | Q153: 13523.71583 | R153: 0 | S153: 0 | T153: 0 | U153: 13727 | V153: 0 | W153: 0 | X153: 0 | Y153: 0
A154: 123 | B154: =OFFSET(InputPriceData!B$10,CalculationsAndCharts!$A154+$A$11,0,1,1) -> 2012-05-02 | C154: =OFFSET(InputPriceData!G$10,CalculationsAndCharts!$A154+$A$11,0,1,1) -> 100768646 | D154: =OFFSET(InputPriceData!C$10,CalculationsAndCharts!$A154+$A$11,0,1,1) -> 13278.11 | E154: =OFFSET(InputPriceData!D$10,CalculationsAndCharts!$A154+$A$11,0,1,1) -> 13278.11 | F154: =OFFSET(InputPriceData!E$10,CalculationsAndCharts!$A154+$A$11,0,1,1) -> 13192.21 | G154: =OFFSET(InputPriceData!F$10,CalculationsAndCharts!$A154+$A$11,0,1,1) -> 13268.57 | H154: =IF(AND(A154<=$B$20,$S$14),$T$14,0) -> 0 | I154: =IF(AND(A154<=$B$20,$S$15),$T$15,0) -> 0 | J154: =IF(AND(A154<=$B$20,$S$16),$T$16,0) -> 12765.86875 | K154: =IF(AND(A154<=$B$20,$S$17),$T$17,0) -> 12604.5675 | L154: =IF(AND(A154<=$B$20,$S$18),$T$18,0) -> 12330.62417 | M154: 0 | N154: 0 | O154: 13088.47125 | P154: 13249.7725 | Q154: 13523.71583 | R154: 0 | S154: 0 | T154: 0 | U154: 13727 | V154: 0 | W154: 0 | X154: 0 | Y154: 0
A155: 124 | B155: =OFFSET(InputPriceData!B$10,CalculationsAndCharts!$A155+$A$11,0,1,1) -> 2012-05-01 | C155: =OFFSET(InputPriceData!G$10,CalculationsAndCharts!$A155+$A$11,0,1,1) -> 123374175 | D155: =OFFSET(InputPriceData!C$10,CalculationsAndCharts!$A155+$A$11,0,1,1) -> 13214.16 | E155: =OFFSET(InputPriceData!D$10,CalculationsAndCharts!$A155+$A$11,0,1,1) -> 13338.66 | F155: =OFFSET(InputPriceData!E$10,CalculationsAndCharts!$A155+$A$11,0,1,1) -> 13174.65 | G155: =OFFSET(InputPriceData!F$10,CalculationsAndCharts!$A155+$A$11,0,1,1) -> 13279.32 | H155: =IF(AND(A155<=$B$20,$S$14),$T$14,0) -> 0 | I155: =IF(AND(A155<=$B$20,$S$15),$T$15,0) -> 0 | J155: =IF(AND(A155<=$B$20,$S$16),$T$16,0) -> 12765.86875 | K155: =IF(AND(A155<=$B$20,$S$17),$T$17,0) -> 12604.5675 | L155: =IF(AND(A155<=$B$20,$S$18),$T$18,0) -> 12330.62417 | M155: 0 | N155: 0 | O155: 13088.47125 | P155: 13249.7725 | Q155: 13523.71583 | R155: 0 | S155: 0 | T155: 0 | U155: 13727 | V155: 0 | W155: 0 | X155: 0 | Y155: 0
A156: 125 | B156: =OFFSET(InputPriceData!B$10,CalculationsAndCharts!$A156+$A$11,0,1,1) -> 2012-04-30 | C156: =OFFSET(InputPriceData!G$10,CalculationsAndCharts!$A156+$A$11,0,1,1) -> 127087896 | D156: =OFFSET(InputPriceData!C$10,CalculationsAndCharts!$A156+$A$11,0,1,1) -> 13228.31 | E156: =OFFSET(InputPriceData!D$10,CalculationsAndCharts!$A156+$A$11,0,1,1) -> 13228.76 | F156: =OFFSET(InputPriceData!E$10,CalculationsAndCharts!$A156+$A$11,0,1,1) -> 13176.01 | G156: =OFFSET(InputPriceData!F$10,CalculationsAndCharts!$A156+$A$11,0,1,1) -> 13213.63 | H156: =IF(AND(A156<=$B$20,$S$14),$T$14,0) -> 0 | I156: =IF(AND(A156<=$B$20,$S$15),$T$15,0) -> 0 | J156: =IF(AND(A156<=$B$20,$S$16),$T$16,0) -> 12765.86875 | K156: =IF(AND(A156<=$B$20,$S$17),$T$17,0) -> 12604.5675 | L156: =IF(AND(A156<=$B$20,$S$18),$T$18,0) -> 12330.62417 | M156: 0 | N156: 0 | O156: 13088.47125 | P156: 13249.7725 | Q156: 13523.71583 | R156: 0 | S156: 0 | T156: 0 | U156: 13727 | V156: 0 | W156: 0 | X156: 0 | Y156: 0
A157: 126 | B157: =OFFSET(InputPriceData!B$10,CalculationsAndCharts!$A157+$A$11,0,1,1) -> 2012-04-27 | C157: =OFFSET(InputPriceData!G$10,CalculationsAndCharts!$A157+$A$11,0,1,1) -> 108376549 | D157: =OFFSET(InputPriceData!C$10,CalculationsAndCharts!$A157+$A$11,0,1,1) -> 13204.7 | E157: =OFFSET(InputPriceData!D$10,CalculationsAndCharts!$A157+$A$11,0,1,1) -> 13266.68 | F157: =OFFSET(InputPriceData!E$10,CalculationsAndCharts!$A157+$A$11,0,1,1) -> 13192.21 | G157: =OFFSET(InputPriceData!F$10,CalculationsAndCharts!$A157+$A$11,0,1,1) -> 13228.31 | H157: =IF(AND(A157<=$B$20,$S$14),$T$14,0) -> 0 | I157: =IF(AND(A157<=$B$20,$S$15),$T$15,0) -> 0 | J157: =IF(AND(A157<=$B$20,$S$16),$T$16,0) -> 12765.86875 | K157: =IF(AND(A157<=$B$20,$S$17),$T$17,0) -> 12604.5675 | L157: =IF(AND(A157<=$B$20,$S$18),$T$18,0) -> 12330.62417 | M157: 0 | N157: 0 | O157: 13088.47125 | P157: 13249.7725 | Q157: 13523.71583 | R157: 0 | S157: 0 | T157: 0 | U157: 13727 | V157: 0 | W157: 0 | X157: 0 | Y157: 0
A158: 127 | B158: =OFFSET(InputPriceData!B$10,CalculationsAndCharts!$A158+$A$11,0,1,1) -> 2012-04-26 | C158: =OFFSET(InputPriceData!G$10,CalculationsAndCharts!$A158+$A$11,0,1,1) -> 107573666 | D158: =OFFSET(InputPriceData!C$10,CalculationsAndCharts!$A158+$A$11,0,1,1) -> 13090.11 | E158: =OFFSET(InputPriceData!D$10,CalculationsAndCharts!$A158+$A$11,0,1,1) -> 13227.82 | F158: =OFFSET(InputPriceData!E$10,CalculationsAndCharts!$A158+$A$11,0,1,1) -> 13075.96 | G158: =OFFSET(InputPriceData!F$10,CalculationsAndCharts!$A158+$A$11,0,1,1) -> 13204.62 | H158: =IF(AND(A158<=$B$20,$S$14),$T$14,0) -> 0 | I158: =IF(AND(A158<=$B$20,$S$15),$T$15,0) -> 0 | J158: =IF(AND(A158<=$B$20,$S$16),$T$16,0) -> 12765.86875 | K158: =IF(AND(A158<=$B$20,$S$17),$T$17,0) -> 12604.5675 | L158: =IF(AND(A158<=$B$20,$S$18),$T$18,0) -> 12330.62417 | M158: 0 | N158: 0 | O158: 13088.47125 | P158: 13249.7725 | Q158: 13523.71583 | R158: 0 | S158: 0 | T158: 0 | U158: 13727 | V158: 0 | W158: 0 | X158: 0 | Y158: 0
A159: 128 | B159: =OFFSET(InputPriceData!B$10,CalculationsAndCharts!$A159+$A$11,0,1,1) -> 2012-04-25 | C159: =OFFSET(InputPriceData!G$10,CalculationsAndCharts!$A159+$A$11,0,1,1) -> 135229412 | D159: =OFFSET(InputPriceData!C$10,CalculationsAndCharts!$A159+$A$11,0,1,1) -> 12997.69 | E159: =OFFSET(InputPriceData!D$10,CalculationsAndCharts!$A159+$A$11,0,1,1) -> 13105.7 | F159: =OFFSET(InputPriceData!E$10,CalculationsAndCharts!$A159+$A$11,0,1,1) -> 12993.6 | G159: =OFFSET(InputPriceData!F$10,CalculationsAndCharts!$A159+$A$11,0,1,1) -> 13090.72 | H159: =IF(AND(A159<=$B$20,$S$14),$T$14,0) -> 0 | I159: =IF(AND(A159<=$B$20,$S$15),$T$15,0) -> 0 | J159: =IF(AND(A159<=$B$20,$S$16),$T$16,0) -> 12765.86875 | K159: =IF(AND(A159<=$B$20,$S$17),$T$17,0) -> 12604.5675 | L159: =IF(AND(A159<=$B$20,$S$18),$T$18,0) -> 12330.62417 | M159: 0 | N159: 0 | O159: 13088.47125 | P159: 13249.7725 | Q159: 13523.71583 | R159: 0 | S159: 0 | T159: 0 | U159: 13727 | V159: 0 | W159: 0 | X159: 0 | Y159: 0
A160: 129 | B160: =OFFSET(InputPriceData!B$10,CalculationsAndCharts!$A160+$A$11,0,1,1) -> 2012-04-24 | C160: =OFFSET(InputPriceData!G$10,CalculationsAndCharts!$A160+$A$11,0,1,1) -> 132106640 | D160: =OFFSET(InputPriceData!C$10,CalculationsAndCharts!$A160+$A$11,0,1,1) -> 12927.77 | E160: =OFFSET(InputPriceData!D$10,CalculationsAndCharts!$A160+$A$11,0,1,1) -> 13050.3 | F160: =OFFSET(InputPriceData!E$10,CalculationsAndCharts!$A160+$A$11,0,1,1) -> 12926.49 | G160: =OFFSET(InputPriceData!F$10,CalculationsAndCharts!$A160+$A$11,0,1,1) -> 13001.56 | H160: =IF(AND(A160<=$B$20,$S$14),$T$14,0) -> 0 | I160: =IF(AND(A160<=$B$20,$S$15),$T$15,0) -> 0 | J160: =IF(AND(A160<=$B$20,$S$16),$T$16,0) -> 12765.86875 | K160: =IF(AND(A160<=$B$20,$S$17),$T$17,0) -> 12604.5675 | L160: =IF(AND(A160<=$B$20,$S$18),$T$18,0) -> 12330.62417 | M160: 0 | N160: 0 | O160: 13088.47125 | P160: 13249.7725 | Q160: 13523.71583 | R160: 0 | S160: =IF($A160=$B$28,S$31,0) -> 0 | T160: 13727 | U160: 13727 | V160: 0 | W160: 0 | X160: 0 | Y160: 0
A161: 130 | B161: =OFFSET(InputPriceData!B$10,CalculationsAndCharts!$A161+$A$11,0,1,1) -> 2012-04-23 | C161: =OFFSET(InputPriceData!G$10,CalculationsAndCharts!$A161+$A$11,0,1,1) -> 139356717 | D161: =OFFSET(InputPriceData!C$10,CalculationsAndCharts!$A161+$A$11,0,1,1) -> 13028.2 | E161: =OFFSET(InputPriceData!D$10,CalculationsAndCharts!$A161+$A$11,0,1,1) -> 13028.2 | F161: =OFFSET(InputPriceData!E$10,CalculationsAndCharts!$A161+$A$11,0,1,1) -> 12845.58 | G161: =OFFSET(InputPriceData!F$10,CalculationsAndCharts!$A161+$A$11,0,1,1) -> 12927.17 | H161: =IF(AND(A161<=$B$20,$S$14),$T$14,0) -> 0 | I161: =IF(AND(A161<=$B$20,$S$15),$T$15,0) -> 0 | J161: =IF(AND(A161<=$B$20,$S$16),$T$16,0) -> 0 | K161: =IF(AND(A161<=$B$20,$S$17),$T$17,0) -> 0 | L161: =IF(AND(A161<=$B$20,$S$18),$T$18,0) -> 0 | M161: =IF(AND(A161<=$B$20,$S$8),$T$8,0) -> 0 | N161: =IF(AND(A161<=$B$20,$S$7),$T$7,0) -> 0 | O161: =IF(AND(A161<=$B$20,$S$6),$T$6,0) -> 0 | P161: =IF(AND(A161<=$B$20,$S$5),$T$5,0) -> 0 | Q161: =IF(AND(A161<=$B$20,$S$4),$T$4,0) -> 0 | R161: =IF(AND(A161>$B$20,A161<=($B$20+$C$18)),$T$10-Y161,0) -> 586.55 | S161: 0 | T161: =IF($A161=$B$27,S$31,0) -> 0 | U161: =IF(AND(A161<=$B$20,A161>($B$20-$C$18)),$F$11,0) -> 0 | V161: =IF(AND($S$10,A161>$B$20,A161<=($B$20+$C$18)),$T$10,0) -> 0 | W161: =IF(AND($S$11,A161>$B$20,A161<=($B$20+$C$18)),$T$11,0) -> 12927.17 | X161: =IF(AND($S$12,A161>$B$20,A161<=($B$20+$C$18)),$T$12,0) -> 0 | Y161: =IF(AND(A161>$B$20,A161<=($B$20+$C$18)),$T$12,0) -> 12710.56
A162: 131 | B162: =OFFSET(InputPriceData!B$10,CalculationsAndCharts!$A162+$A$11,0,1,1) -> 2012-04-20 | C162: =OFFSET(InputPriceData!G$10,CalculationsAndCharts!$A162+$A$11,0,1,1) -> 212027843 | D162: =OFFSET(InputPriceData!C$10,CalculationsAndCharts!$A162+$A$11,0,1,1) -> 12964.48 | E162: =OFFSET(InputPriceData!D$10,CalculationsAndCharts!$A162+$A$11,0,1,1) -> 13082.54 | F162: =OFFSET(InputPriceData!E$10,CalculationsAndCharts!$A162+$A$11,0,1,1) -> 12964.25 | G162: =OFFSET(InputPriceData!F$10,CalculationsAndCharts!$A162+$A$11,0,1,1) -> 13029.26 | H162: =IF(AND(A162<=$B$20,$S$14),$T$14,0) -> 0 | I162: =IF(AND(A162<=$B$20,$S$15),$T$15,0) -> 0 | J162: =IF(AND(A162<=$B$20,$S$16),$T$16,0) -> 0 | K162: =IF(AND(A162<=$B$20,$S$17),$T$17,0) -> 0 | L162: =IF(AND(A162<=$B$20,$S$18),$T$18,0) -> 0 | M162: 0 | N162: 0 | O162: 0 | P162: 0 | Q162: 0 | R162: 586.55 | S162: 0 | T162: 0 | U162: 0 | V162: 0 | W162: 12927.17 | X162: 0 | Y162: 12710.56
A163: 132 | B163: =OFFSET(InputPriceData!B$10,CalculationsAndCharts!$A163+$A$11,0,1,1) -> 2012-04-19 | C163: =OFFSET(InputPriceData!G$10,CalculationsAndCharts!$A163+$A$11,0,1,1) -> 139181902 | D163: =OFFSET(InputPriceData!C$10,CalculationsAndCharts!$A163+$A$11,0,1,1) -> 13028.73 | E163: =OFFSET(InputPriceData!D$10,CalculationsAndCharts!$A163+$A$11,0,1,1) -> 13080.2 | F163: =OFFSET(InputPriceData!E$10,CalculationsAndCharts!$A163+$A$11,0,1,1) -> 12896.82 | G163: =OFFSET(InputPriceData!F$10,CalculationsAndCharts!$A163+$A$11,0,1,1) -> 12964.1 | H163: =IF(AND(A163<=$B$20,$S$14),$T$14,0) -> 0 | I163: =IF(AND(A163<=$B$20,$S$15),$T$15,0) -> 0 | J163: =IF(AND(A163<=$B$20,$S$16),$T$16,0) -> 0 | K163: =IF(AND(A163<=$B$20,$S$17),$T$17,0) -> 0 | L163: =IF(AND(A163<=$B$20,$S$18),$T$18,0) -> 0 | M163: 0 | N163: 0 | O163: 0 | P163: 0 | Q163: 0 | R163: 586.55 | S163: 0 | T163: 0 | U163: 0 | V163: 0 | W163: 12927.17 | X163: 0 | Y163: 12710.56
A164: 133 | B164: =OFFSET(InputPriceData!B$10,CalculationsAndCharts!$A164+$A$11,0,1,1) -> 2012-04-18 | C164: =OFFSET(InputPriceData!G$10,CalculationsAndCharts!$A164+$A$11,0,1,1) -> 113493735 | D164: =OFFSET(InputPriceData!C$10,CalculationsAndCharts!$A164+$A$11,0,1,1) -> 13114.56 | E164: =OFFSET(InputPriceData!D$10,CalculationsAndCharts!$A164+$A$11,0,1,1) -> 13114.56 | F164: =OFFSET(InputPriceData!E$10,CalculationsAndCharts!$A164+$A$11,0,1,1) -> 13027.49 | G164: =OFFSET(InputPriceData!F$10,CalculationsAndCharts!$A164+$A$11,0,1,1) -> 13032.75 | H164: =IF(AND(A164<=$B$20,$S$14),$T$14,0) -> 0 | I164: =IF(AND(A164<=$B$20,$S$15),$T$15,0) -> 0 | J164: =IF(AND(A164<=$B$20,$S$16),$T$16,0) -> 0 | K164: =IF(AND(A164<=$B$20,$S$17),$T$17,0) -> 0 | L164: =IF(AND(A164<=$B$20,$S$18),$T$18,0) -> 0 | M164: 0 | N164: 0 | O164: 0 | P164: 0 | Q164: 0 | R164: 586.55 | S164: 0 | T164: 0 | U164: 0 | V164: 0 | W164: 12927.17 | X164: 0 | Y164: 12710.56
A165: 134 | B165: =OFFSET(InputPriceData!B$10,CalculationsAndCharts!$A165+$A$11,0,1,1) -> 2012-04-17 | C165: =OFFSET(InputPriceData!G$10,CalculationsAndCharts!$A165+$A$11,0,1,1) -> 113085264 | D165: =OFFSET(InputPriceData!C$10,CalculationsAndCharts!$A165+$A$11,0,1,1) -> 12921.79 | E165: =OFFSET(InputPriceData!D$10,CalculationsAndCharts!$A165+$A$11,0,1,1) -> 13131.36 | F165: =OFFSET(InputPriceData!E$10,CalculationsAndCharts!$A165+$A$11,0,1,1) -> 12921.79 | G165: =OFFSET(InputPriceData!F$10,CalculationsAndCharts!$A165+$A$11,0,1,1) -> 13115.54 | H165: =IF(AND(A165<=$B$20,$S$14),$T$14,0) -> 0 | I165: =IF(AND(A165<=$B$20,$S$15),$T$15,0) -> 0 | J165: =IF(AND(A165<=$B$20,$S$16),$T$16,0) -> 0 | K165: =IF(AND(A165<=$B$20,$S$17),$T$17,0) -> 0 | L165: =IF(AND(A165<=$B$20,$S$18),$T$18,0) -> 0 | M165: 0 | N165: 0 | O165: 0 | P165: 0 | Q165: 0 | R165: 586.55 | S165: 0 | T165: 0 | U165: 0 | V165: 0 | W165: 12927.17 | X165: 0 | Y165: 12710.56
A166: 135 | B166: =OFFSET(InputPriceData!B$10,CalculationsAndCharts!$A166+$A$11,0,1,1) -> 2012-04-16 | C166: =OFFSET(InputPriceData!G$10,CalculationsAndCharts!$A166+$A$11,0,1,1) -> 120976827 | D166: =OFFSET(InputPriceData!C$10,CalculationsAndCharts!$A166+$A$11,0,1,1) -> 12850.88 | E166: =OFFSET(InputPriceData!D$10,CalculationsAndCharts!$A166+$A$11,0,1,1) -> 12986.77 | F166: =OFFSET(InputPriceData!E$10,CalculationsAndCharts!$A166+$A$11,0,1,1) -> 12850.8 | G166: =OFFSET(InputPriceData!F$10,CalculationsAndCharts!$A166+$A$11,0,1,1) -> 12921.41 | H166: =IF(AND(A166<=$B$20,$S$14),$T$14,0) -> 0 | I166: =IF(AND(A166<=$B$20,$S$15),$T$15,0) -> 0 | J166: =IF(AND(A166<=$B$20,$S$16),$T$16,0) -> 0 | K166: =IF(AND(A166<=$B$20,$S$17),$T$17,0) -> 0 | L166: =IF(AND(A166<=$B$20,$S$18),$T$18,0) -> 0 | M166: 0 | N166: 0 | O166: 0 | P166: 0 | Q166: 0 | R166: 586.55 | S166: 0 | T166: 0 | U166: 0 | V166: 0 | W166: 12927.17 | X166: 0 | Y166: 12710.56
A167: 136 | B167: =OFFSET(InputPriceData!B$10,CalculationsAndCharts!$A167+$A$11,0,1,1) -> 2012-04-13 | C167: =OFFSET(InputPriceData!G$10,CalculationsAndCharts!$A167+$A$11,0,1,1) -> 140936923 | D167: =OFFSET(InputPriceData!C$10,CalculationsAndCharts!$A167+$A$11,0,1,1) -> 12986.2 | E167: =OFFSET(InputPriceData!D$10,CalculationsAndCharts!$A167+$A$11,0,1,1) -> 12986.35 | F167: =OFFSET(InputPriceData!E$10,CalculationsAndCharts!$A167+$A$11,0,1,1) -> 12845.28 | G167: =OFFSET(InputPriceData!F$10,CalculationsAndCharts!$A167+$A$11,0,1,1) -> 12849.59 | H167: =IF(AND(A167<=$B$20,$S$14),$T$14,0) -> 0 | I167: =IF(AND(A167<=$B$20,$S$15),$T$15,0) -> 0 | J167: =IF(AND(A167<=$B$20,$S$16),$T$16,0) -> 0 | K167: =IF(AND(A167<=$B$20,$S$17),$T$17,0) -> 0 | L167: =IF(AND(A167<=$B$20,$S$18),$T$18,0) -> 0 | M167: 0 | N167: 0 | O167: 0 | P167: 0 | Q167: 0 | R167: 586.55 | S167: 0 | T167: 0 | U167: 0 | V167: 0 | W167: 12927.17 | X167: 0 | Y167: 12710.56
A168: 137 | B168: =OFFSET(InputPriceData!B$10,CalculationsAndCharts!$A168+$A$11,0,1,1) -> 2012-04-12 | C168: =OFFSET(InputPriceData!G$10,CalculationsAndCharts!$A168+$A$11,0,1,1) -> 119760382 | D168: =OFFSET(InputPriceData!C$10,CalculationsAndCharts!$A168+$A$11,0,1,1) -> 12806.45 | E168: =OFFSET(InputPriceData!D$10,CalculationsAndCharts!$A168+$A$11,0,1,1) -> 12986.96 | F168: =OFFSET(InputPriceData!E$10,CalculationsAndCharts!$A168+$A$11,0,1,1) -> 12806.3 | G168: =OFFSET(InputPriceData!F$10,CalculationsAndCharts!$A168+$A$11,0,1,1) -> 12986.58 | H168: =IF(AND(A168<=$B$20,$S$14),$T$14,0) -> 0 | I168: =IF(AND(A168<=$B$20,$S$15),$T$15,0) -> 0 | J168: =IF(AND(A168<=$B$20,$S$16),$T$16,0) -> 0 | K168: =IF(AND(A168<=$B$20,$S$17),$T$17,0) -> 0 | L168: =IF(AND(A168<=$B$20,$S$18),$T$18,0) -> 0 | M168: 0 | N168: 0 | O168: 0 | P168: 0 | Q168: 0 | R168: 586.55 | S168: 0 | T168: 0 | U168: 0 | V168: 0 | W168: 12927.17 | X168: 0 | Y168: 12710.56
A169: 138 | B169: =OFFSET(InputPriceData!B$10,CalculationsAndCharts!$A169+$A$11,0,1,1) -> 2012-04-11 | C169: =OFFSET(InputPriceData!G$10,CalculationsAndCharts!$A169+$A$11,0,1,1) -> 125199189 | D169: =OFFSET(InputPriceData!C$10,CalculationsAndCharts!$A169+$A$11,0,1,1) -> 12716.92 | E169: =OFFSET(InputPriceData!D$10,CalculationsAndCharts!$A169+$A$11,0,1,1) -> 12844.82 | F169: =OFFSET(InputPriceData!E$10,CalculationsAndCharts!$A169+$A$11,0,1,1) -> 12716.92 | G169: =OFFSET(InputPriceData!F$10,CalculationsAndCharts!$A169+$A$11,0,1,1) -> 12805.39 | H169: =IF(AND(A169<=$B$20,$S$14),$T$14,0) -> 0 | I169: =IF(AND(A169<=$B$20,$S$15),$T$15,0) -> 0 | J169: =IF(AND(A169<=$B$20,$S$16),$T$16,0) -> 0 | K169: =IF(AND(A169<=$B$20,$S$17),$T$17,0) -> 0 | L169: =IF(AND(A169<=$B$20,$S$18),$T$18,0) -> 0 | M169: 0 | N169: 0 | O169: 0 | P169: 0 | Q169: 0 | R169: 586.55 | S169: 0 | T169: 0 | U169: 0 | V169: 0 | W169: 12927.17 | X169: 0 | Y169: 12710.56
A170: 139 | B170: =OFFSET(InputPriceData!B$10,CalculationsAndCharts!$A170+$A$11,0,1,1) -> 2012-04-10 | C170: =OFFSET(InputPriceData!G$10,CalculationsAndCharts!$A170+$A$11,0,1,1) -> 159270498 | D170: =OFFSET(InputPriceData!C$10,CalculationsAndCharts!$A170+$A$11,0,1,1) -> 12929.44 | E170: =OFFSET(InputPriceData!D$10,CalculationsAndCharts!$A170+$A$11,0,1,1) -> 12929.59 | F170: =OFFSET(InputPriceData!E$10,CalculationsAndCharts!$A170+$A$11,0,1,1) -> 12710.56 | G170: =OFFSET(InputPriceData!F$10,CalculationsAndCharts!$A170+$A$11,0,1,1) -> 12715.93 | H170: =IF(AND(A170<=$B$20,$S$14),$T$14,0) -> 0 | I170: =IF(AND(A170<=$B$20,$S$15),$T$15,0) -> 0 | J170: =IF(AND(A170<=$B$20,$S$16),$T$16,0) -> 0 | K170: =IF(AND(A170<=$B$20,$S$17),$T$17,0) -> 0 | L170: =IF(AND(A170<=$B$20,$S$18),$T$18,0) -> 0 | M170: 0 | N170: 0 | O170: 0 | P170: 0 | Q170: 0 | R170: 586.55 | S170: 0 | T170: 0 | U170: 0 | V170: 0 | W170: 12927.17 | X170: 0 | Y170: 12710.56
A171: 140 | B171: =OFFSET(InputPriceData!B$10,CalculationsAndCharts!$A171+$A$11,0,1,1) -> 2012-04-09 | C171: =OFFSET(InputPriceData!G$10,CalculationsAndCharts!$A171+$A$11,0,1,1) -> 105478280 | D171: =OFFSET(InputPriceData!C$10,CalculationsAndCharts!$A171+$A$11,0,1,1) -> 13057.57 | E171: =OFFSET(InputPriceData!D$10,CalculationsAndCharts!$A171+$A$11,0,1,1) -> 13057.72 | F171: =OFFSET(InputPriceData!E$10,CalculationsAndCharts!$A171+$A$11,0,1,1) -> 12903.78 | G171: =OFFSET(InputPriceData!F$10,CalculationsAndCharts!$A171+$A$11,0,1,1) -> 12929.59 | H171: =IF(AND(A171<=$B$20,$S$14),$T$14,0) -> 0 | I171: =IF(AND(A171<=$B$20,$S$15),$T$15,0) -> 0 | J171: =IF(AND(A171<=$B$20,$S$16),$T$16,0) -> 0 | K171: =IF(AND(A171<=$B$20,$S$17),$T$17,0) -> 0 | L171: =IF(AND(A171<=$B$20,$S$18),$T$18,0) -> 0 | M171: 0 | N171: 0 | O171: 0 | P171: 0 | Q171: 0 | R171: 586.55 | S171: 0 | T171: 0 | U171: 0 | V171: 0 | W171: 12927.17 | X171: 0 | Y171: 12710.56
A172: 141 | B172: =OFFSET(InputPriceData!B$10,CalculationsAndCharts!$A172+$A$11,0,1,1) -> 2012-04-05 | C172: =OFFSET(InputPriceData!G$10,CalculationsAndCharts!$A172+$A$11,0,1,1) -> 109491748 | D172: =OFFSET(InputPriceData!C$10,CalculationsAndCharts!$A172+$A$11,0,1,1) -> 13067.18 | E172: =OFFSET(InputPriceData!D$10,CalculationsAndCharts!$A172+$A$11,0,1,1) -> 13088.11 | F172: =OFFSET(InputPriceData!E$10,CalculationsAndCharts!$A172+$A$11,0,1,1) -> 13012.46 | G172: =OFFSET(InputPriceData!F$10,CalculationsAndCharts!$A172+$A$11,0,1,1) -> 13060.14 | H172: =IF(AND(A172<=$B$20,$S$14),$T$14,0) -> 0 | I172: =IF(AND(A172<=$B$20,$S$15),$T$15,0) -> 0 | J172: =IF(AND(A172<=$B$20,$S$16),$T$16,0) -> 0 | K172: =IF(AND(A172<=$B$20,$S$17),$T$17,0) -> 0 | L172: =IF(AND(A172<=$B$20,$S$18),$T$18,0) -> 0 | M172: 0 | N172: 0 | O172: 0 | P172: 0 | Q172: 0 | R172: 586.55 | S172: 0 | T172: 0 | U172: 0 | V172: 0 | W172: 12927.17 | X172: 0 | Y172: 12710.56
A173: 142 | B173: =OFFSET(InputPriceData!B$10,CalculationsAndCharts!$A173+$A$11,0,1,1) -> 2012-04-04 | C173: =OFFSET(InputPriceData!G$10,CalculationsAndCharts!$A173+$A$11,0,1,1) -> 124961094 | D173: =OFFSET(InputPriceData!C$10,CalculationsAndCharts!$A173+$A$11,0,1,1) -> 13198.19 | E173: =OFFSET(InputPriceData!D$10,CalculationsAndCharts!$A173+$A$11,0,1,1) -> 13198.19 | F173: =OFFSET(InputPriceData!E$10,CalculationsAndCharts!$A173+$A$11,0,1,1) -> 13020.86 | G173: =OFFSET(InputPriceData!F$10,CalculationsAndCharts!$A173+$A$11,0,1,1) -> 13074.75 | H173: =IF(AND(A173<=$B$20,$S$14),$T$14,0) -> 0 | I173: =IF(AND(A173<=$B$20,$S$15),$T$15,0) -> 0 | J173: =IF(AND(A173<=$B$20,$S$16),$T$16,0) -> 0 | K173: =IF(AND(A173<=$B$20,$S$17),$T$17,0) -> 0 | L173: =IF(AND(A173<=$B$20,$S$18),$T$18,0) -> 0 | M173: 0 | N173: 0 | O173: 0 | P173: 0 | Q173: 0 | R173: 586.55 | S173: 0 | T173: 0 | U173: 0 | V173: 0 | W173: 12927.17 | X173: 0 | Y173: 12710.56
A174: 143 | B174: =OFFSET(InputPriceData!B$10,CalculationsAndCharts!$A174+$A$11,0,1,1) -> 2012-04-03 | C174: =OFFSET(InputPriceData!G$10,CalculationsAndCharts!$A174+$A$11,0,1,1) -> 123741371 | D174: =OFFSET(InputPriceData!C$10,CalculationsAndCharts!$A174+$A$11,0,1,1) -> 13258.96 | E174: =OFFSET(InputPriceData!D$10,CalculationsAndCharts!$A174+$A$11,0,1,1) -> 13265.36 | F174: =OFFSET(InputPriceData!E$10,CalculationsAndCharts!$A174+$A$11,0,1,1) -> 13131.21 | G174: =OFFSET(InputPriceData!F$10,CalculationsAndCharts!$A174+$A$11,0,1,1) -> 13199.55 | H174: =IF(AND(A174<=$B$20,$S$14),$T$14,0) -> 0 | I174: =IF(AND(A174<=$B$20,$S$15),$T$15,0) -> 0 | J174: =IF(AND(A174<=$B$20,$S$16),$T$16,0) -> 0 | K174: =IF(AND(A174<=$B$20,$S$17),$T$17,0) -> 0 | L174: =IF(AND(A174<=$B$20,$S$18),$T$18,0) -> 0 | M174: 0 | N174: 0 | O174: 0 | P174: 0 | Q174: 0 | R174: 586.55 | S174: 0 | T174: 0 | U174: 0 | V174: 0 | W174: 12927.17 | X174: 0 | Y174: 12710.56
A175: 144 | B175: =OFFSET(InputPriceData!B$10,CalculationsAndCharts!$A175+$A$11,0,1,1) -> 2012-04-02 | C175: =OFFSET(InputPriceData!G$10,CalculationsAndCharts!$A175+$A$11,0,1,1) -> 106029218 | D175: =OFFSET(InputPriceData!C$10,CalculationsAndCharts!$A175+$A$11,0,1,1) -> 13211.36 | E175: =OFFSET(InputPriceData!D$10,CalculationsAndCharts!$A175+$A$11,0,1,1) -> 13297.11 | F175: =OFFSET(InputPriceData!E$10,CalculationsAndCharts!$A175+$A$11,0,1,1) -> 13153.69 | G175: =OFFSET(InputPriceData!F$10,CalculationsAndCharts!$A175+$A$11,0,1,1) -> 13264.49 | H175: =IF(AND(A175<=$B$20,$S$14),$T$14,0) -> 0 | I175: =IF(AND(A175<=$B$20,$S$15),$T$15,0) -> 0 | J175: =IF(AND(A175<=$B$20,$S$16),$T$16,0) -> 0 | K175: =IF(AND(A175<=$B$20,$S$17),$T$17,0) -> 0 | L175: =IF(AND(A175<=$B$20,$S$18),$T$18,0) -> 0 | M175: 0 | N175: 0 | O175: 0 | P175: 0 | Q175: 0 | R175: 586.55 | S175: 0 | T175: 0 | U175: 0 | V175: 0 | W175: 12927.17 | X175: 0 | Y175: 12710.56
A176: 145 | B176: =OFFSET(InputPriceData!B$10,CalculationsAndCharts!$A176+$A$11,0,1,1) -> 2012-03-30 | C176: =OFFSET(InputPriceData!G$10,CalculationsAndCharts!$A176+$A$11,0,1,1) -> 171160349 | D176: =OFFSET(InputPriceData!C$10,CalculationsAndCharts!$A176+$A$11,0,1,1) -> 13147.94 | E176: =OFFSET(InputPriceData!D$10,CalculationsAndCharts!$A176+$A$11,0,1,1) -> 13224.49 | F176: =OFFSET(InputPriceData!E$10,CalculationsAndCharts!$A176+$A$11,0,1,1) -> 13147.78 | G176: =OFFSET(InputPriceData!F$10,CalculationsAndCharts!$A176+$A$11,0,1,1) -> 13212.04 | H176: =IF(AND(A176<=$B$20,$S$14),$T$14,0) -> 0 | I176: =IF(AND(A176<=$B$20,$S$15),$T$15,0) -> 0 | J176: =IF(AND(A176<=$B$20,$S$16),$T$16,0) -> 0 | K176: =IF(AND(A176<=$B$20,$S$17),$T$17,0) -> 0 | L176: =IF(AND(A176<=$B$20,$S$18),$T$18,0) -> 0 | M176: 0 | N176: 0 | O176: 0 | P176: 0 | Q176: 0 | R176: 586.55 | S176: 0 | T176: 0 | U176: 0 | V176: 0 | W176: 12927.17 | X176: 0 | Y176: 12710.56
A177: 146 | B177: =OFFSET(InputPriceData!B$10,CalculationsAndCharts!$A177+$A$11,0,1,1) -> 2012-03-29 | C177: =OFFSET(InputPriceData!G$10,CalculationsAndCharts!$A177+$A$11,0,1,1) -> 136249607 | D177: =OFFSET(InputPriceData!C$10,CalculationsAndCharts!$A177+$A$11,0,1,1) -> 13125.99 | E177: =OFFSET(InputPriceData!D$10,CalculationsAndCharts!$A177+$A$11,0,1,1) -> 13151.57 | F177: =OFFSET(InputPriceData!E$10,CalculationsAndCharts!$A177+$A$11,0,1,1) -> 13032.67 | G177: =OFFSET(InputPriceData!F$10,CalculationsAndCharts!$A177+$A$11,0,1,1) -> 13145.82 | H177: =IF(AND(A177<=$B$20,$S$14),$T$14,0) -> 0 | I177: =IF(AND(A177<=$B$20,$S$15),$T$15,0) -> 0 | J177: =IF(AND(A177<=$B$20,$S$16),$T$16,0) -> 0 | K177: =IF(AND(A177<=$B$20,$S$17),$T$17,0) -> 0 | L177: =IF(AND(A177<=$B$20,$S$18),$T$18,0) -> 0 | M177: 0 | N177: 0 | O177: 0 | P177: 0 | Q177: 0 | R177: 586.55 | S177: 0 | T177: 0 | U177: 0 | V177: 0 | W177: 12927.17 | X177: 0 | Y177: 12710.56
A178: 147 | B178: =OFFSET(InputPriceData!B$10,CalculationsAndCharts!$A178+$A$11,0,1,1) -> 2012-03-28 | C178: =OFFSET(InputPriceData!G$10,CalculationsAndCharts!$A178+$A$11,0,1,1) -> 141521286 | D178: =OFFSET(InputPriceData!C$10,CalculationsAndCharts!$A178+$A$11,0,1,1) -> 13195.39 | E178: =OFFSET(InputPriceData!D$10,CalculationsAndCharts!$A178+$A$11,0,1,1) -> 13212.64 | F178: =OFFSET(InputPriceData!E$10,CalculationsAndCharts!$A178+$A$11,0,1,1) -> 13069.26 | G178: =OFFSET(InputPriceData!F$10,CalculationsAndCharts!$A178+$A$11,0,1,1) -> 13126.21 | H178: =IF(AND(A178<=$B$20,$S$14),$T$14,0) -> 0 | I178: =IF(AND(A178<=$B$20,$S$15),$T$15,0) -> 0 | J178: =IF(AND(A178<=$B$20,$S$16),$T$16,0) -> 0 | K178: =IF(AND(A178<=$B$20,$S$17),$T$17,0) -> 0 | L178: =IF(AND(A178<=$B$20,$S$18),$T$18,0) -> 0 | M178: 0 | N178: 0 | O178: 0 | P178: 0 | Q178: 0 | R178: 586.55 | S178: 0 | T178: 0 | U178: 0 | V178: 0 | W178: 12927.17 | X178: 0 | Y178: 12710.56
A179: 148 | B179: =OFFSET(InputPriceData!B$10,CalculationsAndCharts!$A179+$A$11,0,1,1) -> 2012-03-27 | C179: =OFFSET(InputPriceData!G$10,CalculationsAndCharts!$A179+$A$11,0,1,1) -> 129220985 | D179: =OFFSET(InputPriceData!C$10,CalculationsAndCharts!$A179+$A$11,0,1,1) -> 13242.09 | E179: =OFFSET(InputPriceData!D$10,CalculationsAndCharts!$A179+$A$11,0,1,1) -> 13264.98 | F179: =OFFSET(InputPriceData!E$10,CalculationsAndCharts!$A179+$A$11,0,1,1) -> 13194.33 | G179: =OFFSET(InputPriceData!F$10,CalculationsAndCharts!$A179+$A$11,0,1,1) -> 13197.73 | H179: =IF(AND(A179<=$B$20,$S$14),$T$14,0) -> 0 | I179: =IF(AND(A179<=$B$20,$S$15),$T$15,0) -> 0 | J179: =IF(AND(A179<=$B$20,$S$16),$T$16,0) -> 0 | K179: =IF(AND(A179<=$B$20,$S$17),$T$17,0) -> 0 | L179: =IF(AND(A179<=$B$20,$S$18),$T$18,0) -> 0 | M179: 0 | N179: 0 | O179: 0 | P179: 0 | Q179: 0 | R179: 586.55 | S179: 0 | T179: 0 | U179: 0 | V179: 0 | W179: 12927.17 | X179: 0 | Y179: 12710.56
A180: 149 | B180: =OFFSET(InputPriceData!B$10,CalculationsAndCharts!$A180+$A$11,0,1,1) -> 2012-03-26 | C180: =OFFSET(InputPriceData!G$10,CalculationsAndCharts!$A180+$A$11,0,1,1) -> 122055589 | D180: =OFFSET(InputPriceData!C$10,CalculationsAndCharts!$A180+$A$11,0,1,1) -> 13082.62 | E180: =OFFSET(InputPriceData!D$10,CalculationsAndCharts!$A180+$A$11,0,1,1) -> 13243.86 | F180: =OFFSET(InputPriceData!E$10,CalculationsAndCharts!$A180+$A$11,0,1,1) -> 13082.39 | G180: =OFFSET(InputPriceData!F$10,CalculationsAndCharts!$A180+$A$11,0,1,1) -> 13241.63 | H180: =IF(AND(A180<=$B$20,$S$14),$T$14,0) -> 0 | I180: =IF(AND(A180<=$B$20,$S$15),$T$15,0) -> 0 | J180: =IF(AND(A180<=$B$20,$S$16),$T$16,0) -> 0 | K180: =IF(AND(A180<=$B$20,$S$17),$T$17,0) -> 0 | L180: =IF(AND(A180<=$B$20,$S$18),$T$18,0) -> 0 | M180: 0 | N180: 0 | O180: 0 | P180: 0 | Q180: 0 | R180: 586.55 | S180: 0 | T180: 0 | U180: 0 | V180: 0 | W180: 12927.17 | X180: 0 | Y180: 12710.56
A181: 150 | B181: =OFFSET(InputPriceData!B$10,CalculationsAndCharts!$A181+$A$11,0,1,1) -> 2012-03-23 | C181: =OFFSET(InputPriceData!G$10,CalculationsAndCharts!$A181+$A$11,0,1,1) -> 129219697 | D181: =OFFSET(InputPriceData!C$10,CalculationsAndCharts!$A181+$A$11,0,1,1) -> 13045.99 | E181: =OFFSET(InputPriceData!D$10,CalculationsAndCharts!$A181+$A$11,0,1,1) -> 13099.91 | F181: =OFFSET(InputPriceData!E$10,CalculationsAndCharts!$A181+$A$11,0,1,1) -> 13002.77 | G181: =OFFSET(InputPriceData!F$10,CalculationsAndCharts!$A181+$A$11,0,1,1) -> 13080.73 | H181: =IF(AND(A181<=$B$20,$S$14),$T$14,0) -> 0 | I181: =IF(AND(A181<=$B$20,$S$15),$T$15,0) -> 0 | J181: =IF(AND(A181<=$B$20,$S$16),$T$16,0) -> 0 | K181: =IF(AND(A181<=$B$20,$S$17),$T$17,0) -> 0 | L181: =IF(AND(A181<=$B$20,$S$18),$T$18,0) -> 0 | M181: 0 | N181: 0 | O181: 0 | P181: 0 | Q181: 0 | R181: 586.55 | S181: 0 | T181: 0 | U181: 0 | V181: 0 | W181: 12927.17 | X181: 0 | Y181: 12710.56
A182: 151 | B182: =OFFSET(InputPriceData!B$10,CalculationsAndCharts!$A182+$A$11,0,1,1) -> 2012-03-22 | C182: =OFFSET(InputPriceData!G$10,CalculationsAndCharts!$A182+$A$11,0,1,1) -> 121829650 | D182: =OFFSET(InputPriceData!C$10,CalculationsAndCharts!$A182+$A$11,0,1,1) -> 13124.4 | E182: =OFFSET(InputPriceData!D$10,CalculationsAndCharts!$A182+$A$11,0,1,1) -> 13124.47 | F182: =OFFSET(InputPriceData!E$10,CalculationsAndCharts!$A182+$A$11,0,1,1) -> 13017.42 | G182: =OFFSET(InputPriceData!F$10,CalculationsAndCharts!$A182+$A$11,0,1,1) -> 13046.14 | H182: =IF(AND(A182<=$B$20,$S$14),$T$14,0) -> 0 | I182: =IF(AND(A182<=$B$20,$S$15),$T$15,0) -> 0 | J182: =IF(AND(A182<=$B$20,$S$16),$T$16,0) -> 0 | K182: =IF(AND(A182<=$B$20,$S$17),$T$17,0) -> 0 | L182: =IF(AND(A182<=$B$20,$S$18),$T$18,0) -> 0 | M182: 0 | N182: 0 | O182: 0 | P182: 0 | Q182: 0 | R182: 586.55 | S182: 0 | T182: 0 | U182: 0 | V182: 0 | W182: 12927.17 | X182: 0 | Y182: 12710.56
A183: 152 | B183: =OFFSET(InputPriceData!B$10,CalculationsAndCharts!$A183+$A$11,0,1,1) -> 2012-03-21 | C183: =OFFSET(InputPriceData!G$10,CalculationsAndCharts!$A183+$A$11,0,1,1) -> 124815916 | D183: =OFFSET(InputPriceData!C$10,CalculationsAndCharts!$A183+$A$11,0,1,1) -> 13170.79 | E183: =OFFSET(InputPriceData!D$10,CalculationsAndCharts!$A183+$A$11,0,1,1) -> 13190.02 | F183: =OFFSET(InputPriceData!E$10,CalculationsAndCharts!$A183+$A$11,0,1,1) -> 13112.93 | G183: =OFFSET(InputPriceData!F$10,CalculationsAndCharts!$A183+$A$11,0,1,1) -> 13124.62 | H183: =IF(AND(A183<=$B$20,$S$14),$T$14,0) -> 0 | I183: =IF(AND(A183<=$B$20,$S$15),$T$15,0) -> 0 | J183: =IF(AND(A183<=$B$20,$S$16),$T$16,0) -> 0 | K183: =IF(AND(A183<=$B$20,$S$17),$T$17,0) -> 0 | L183: =IF(AND(A183<=$B$20,$S$18),$T$18,0) -> 0 | M183: 0 | N183: 0 | O183: 0 | P183: 0 | Q183: 0 | R183: 586.55 | S183: 0 | T183: 0 | U183: 0 | V183: 0 | W183: 12927.17 | X183: 0 | Y183: 12710.56
A184: 153 | B184: =OFFSET(InputPriceData!B$10,CalculationsAndCharts!$A184+$A$11,0,1,1) -> 2012-03-20 | C184: =OFFSET(InputPriceData!G$10,CalculationsAndCharts!$A184+$A$11,0,1,1) -> 131107695 | D184: =OFFSET(InputPriceData!C$10,CalculationsAndCharts!$A184+$A$11,0,1,1) -> 13238.45 | E184: =OFFSET(InputPriceData!D$10,CalculationsAndCharts!$A184+$A$11,0,1,1) -> 13238.45 | F184: =OFFSET(InputPriceData!E$10,CalculationsAndCharts!$A184+$A$11,0,1,1) -> 13123.38 | G184: =OFFSET(InputPriceData!F$10,CalculationsAndCharts!$A184+$A$11,0,1,1) -> 13170.19 | H184: =IF(AND(A184<=$B$20,$S$14),$T$14,0) -> 0 | I184: =IF(AND(A184<=$B$20,$S$15),$T$15,0) -> 0 | J184: =IF(AND(A184<=$B$20,$S$16),$T$16,0) -> 0 | K184: =IF(AND(A184<=$B$20,$S$17),$T$17,0) -> 0 | L184: =IF(AND(A184<=$B$20,$S$18),$T$18,0) -> 0 | M184: 0 | N184: 0 | O184: 0 | P184: 0 | Q184: 0 | R184: 586.55 | S184: 0 | T184: 0 | U184: 0 | V184: 0 | W184: 12927.17 | X184: 0 | Y184: 12710.56
A185: 154 | B185: =OFFSET(InputPriceData!B$10,CalculationsAndCharts!$A185+$A$11,0,1,1) -> 2012-03-19 | C185: =OFFSET(InputPriceData!G$10,CalculationsAndCharts!$A185+$A$11,0,1,1) -> 147093272 | D185: =OFFSET(InputPriceData!C$10,CalculationsAndCharts!$A185+$A$11,0,1,1) -> 13231.94 | E185: =OFFSET(InputPriceData!D$10,CalculationsAndCharts!$A185+$A$11,0,1,1) -> 13269.71 | F185: =OFFSET(InputPriceData!E$10,CalculationsAndCharts!$A185+$A$11,0,1,1) -> 13208.63 | G185: =OFFSET(InputPriceData!F$10,CalculationsAndCharts!$A185+$A$11,0,1,1) -> 13239.13 | H185: =IF(AND(A185<=$B$20,$S$14),$T$14,0) -> 0 | I185: =IF(AND(A185<=$B$20,$S$15),$T$15,0) -> 0 | J185: =IF(AND(A185<=$B$20,$S$16),$T$16,0) -> 0 | K185: =IF(AND(A185<=$B$20,$S$17),$T$17,0) -> 0 | L185: =IF(AND(A185<=$B$20,$S$18),$T$18,0) -> 0 | M185: 0 | N185: 0 | O185: 0 | P185: 0 | Q185: 0 | R185: 586.55 | S185: 0 | T185: 0 | U185: 0 | V185: 0 | W185: 12927.17 | X185: 0 | Y185: 12710.56
A186: 155 | B186: =OFFSET(InputPriceData!B$10,CalculationsAndCharts!$A186+$A$11,0,1,1) -> 2012-03-16 | C186: =OFFSET(InputPriceData!G$10,CalculationsAndCharts!$A186+$A$11,0,1,1) -> 392567096 | D186: =OFFSET(InputPriceData!C$10,CalculationsAndCharts!$A186+$A$11,0,1,1) -> 13253.51 | E186: =OFFSET(InputPriceData!D$10,CalculationsAndCharts!$A186+$A$11,0,1,1) -> 13289.08 | F186: =OFFSET(InputPriceData!E$10,CalculationsAndCharts!$A186+$A$11,0,1,1) -> 13231.45 | G186: =OFFSET(InputPriceData!F$10,CalculationsAndCharts!$A186+$A$11,0,1,1) -> 13232.62 | H186: =IF(AND(A186<=$B$20,$S$14),$T$14,0) -> 0 | I186: =IF(AND(A186<=$B$20,$S$15),$T$15,0) -> 0 | J186: =IF(AND(A186<=$B$20,$S$16),$T$16,0) -> 0 | K186: =IF(AND(A186<=$B$20,$S$17),$T$17,0) -> 0 | L186: =IF(AND(A186<=$B$20,$S$18),$T$18,0) -> 0 | M186: 0 | N186: 0 | O186: 0 | P186: 0 | Q186: 0 | R186: 0 | S186: 0 | T186: 0 | U186: 0 | V186: 0 | W186: 0 | X186: 0 | Y186: 0
A187: 156 | B187: =OFFSET(InputPriceData!B$10,CalculationsAndCharts!$A187+$A$11,0,1,1) -> 2012-03-15 | C187: =OFFSET(InputPriceData!G$10,CalculationsAndCharts!$A187+$A$11,0,1,1) -> 161543180 | D187: =OFFSET(InputPriceData!C$10,CalculationsAndCharts!$A187+$A$11,0,1,1) -> 13192.97 | E187: =OFFSET(InputPriceData!D$10,CalculationsAndCharts!$A187+$A$11,0,1,1) -> 13253.51 | F187: =OFFSET(InputPriceData!E$10,CalculationsAndCharts!$A187+$A$11,0,1,1) -> 13170.19 | G187: =OFFSET(InputPriceData!F$10,CalculationsAndCharts!$A187+$A$11,0,1,1) -> 13252.76 | H187: =IF(AND(A187<=$B$20,$S$14),$T$14,0) -> 0 | I187: =IF(AND(A187<=$B$20,$S$15),$T$15,0) -> 0 | J187: =IF(AND(A187<=$B$20,$S$16),$T$16,0) -> 0 | K187: =IF(AND(A187<=$B$20,$S$17),$T$17,0) -> 0 | L187: =IF(AND(A187<=$B$20,$S$18),$T$18,0) -> 0 | M187: 0 | N187: 0 | O187: 0 | P187: 0 | Q187: 0 | R187: 0 | S187: 0 | T187: 0 | U187: 0 | V187: 0 | W187: 0 | X187: 0 | Y187: 0
A188: 157 | B188: =OFFSET(InputPriceData!B$10,CalculationsAndCharts!$A188+$A$11,0,1,1) -> 2012-03-14 | C188: =OFFSET(InputPriceData!G$10,CalculationsAndCharts!$A188+$A$11,0,1,1) -> 162764025 | D188: =OFFSET(InputPriceData!C$10,CalculationsAndCharts!$A188+$A$11,0,1,1) -> 13177.15 | E188: =OFFSET(InputPriceData!D$10,CalculationsAndCharts!$A188+$A$11,0,1,1) -> 13221.27 | F188: =OFFSET(InputPriceData!E$10,CalculationsAndCharts!$A188+$A$11,0,1,1) -> 13166.25 | G188: =OFFSET(InputPriceData!F$10,CalculationsAndCharts!$A188+$A$11,0,1,1) -> 13194.1 | H188: =IF(AND(A188<=$B$20,$S$14),$T$14,0) -> 0 | I188: =IF(AND(A188<=$B$20,$S$15),$T$15,0) -> 0 | J188: =IF(AND(A188<=$B$20,$S$16),$T$16,0) -> 0 | K188: =IF(AND(A188<=$B$20,$S$17),$T$17,0) -> 0 | L188: =IF(AND(A188<=$B$20,$S$18),$T$18,0) -> 0 | M188: 0 | N188: 0 | O188: 0 | P188: 0 | Q188: 0 | R188: 0 | S188: 0 | T188: 0 | U188: 0 | V188: 0 | W188: 0 | X188: 0 | Y188: 0
A189: 158 | B189: =OFFSET(InputPriceData!B$10,CalculationsAndCharts!$A189+$A$11,0,1,1) -> 2012-03-13 | C189: =OFFSET(InputPriceData!G$10,CalculationsAndCharts!$A189+$A$11,0,1,1) -> 161950373 | D189: =OFFSET(InputPriceData!C$10,CalculationsAndCharts!$A189+$A$11,0,1,1) -> 12953.2 | E189: =OFFSET(InputPriceData!D$10,CalculationsAndCharts!$A189+$A$11,0,1,1) -> 13180.4 | F189: =OFFSET(InputPriceData!E$10,CalculationsAndCharts!$A189+$A$11,0,1,1) -> 12953.13 | G189: =OFFSET(InputPriceData!F$10,CalculationsAndCharts!$A189+$A$11,0,1,1) -> 13177.68 | H189: =IF(AND(A189<=$B$20,$S$14),$T$14,0) -> 0 | I189: =IF(AND(A189<=$B$20,$S$15),$T$15,0) -> 0 | J189: =IF(AND(A189<=$B$20,$S$16),$T$16,0) -> 0 | K189: =IF(AND(A189<=$B$20,$S$17),$T$17,0) -> 0 | L189: =IF(AND(A189<=$B$20,$S$18),$T$18,0) -> 0 | M189: 0 | N189: 0 | O189: 0 | P189: 0 | Q189: 0 | R189: 0 | S189: 0 | T189: 0 | U189: 0 | V189: 0 | W189: 0 | X189: 0 | Y189: 0
A190: 159 | B190: =OFFSET(InputPriceData!B$10,CalculationsAndCharts!$A190+$A$11,0,1,1) -> 2012-03-12 | C190: =OFFSET(InputPriceData!G$10,CalculationsAndCharts!$A190+$A$11,0,1,1) -> 99741336 | D190: =OFFSET(InputPriceData!C$10,CalculationsAndCharts!$A190+$A$11,0,1,1) -> 12920.58 | E190: =OFFSET(InputPriceData!D$10,CalculationsAndCharts!$A190+$A$11,0,1,1) -> 12976.36 | F190: =OFFSET(InputPriceData!E$10,CalculationsAndCharts!$A190+$A$11,0,1,1) -> 12919.98 | G190: =OFFSET(InputPriceData!F$10,CalculationsAndCharts!$A190+$A$11,0,1,1) -> 12959.71 | H190: =IF(AND(A190<=$B$20,$S$14),$T$14,0) -> 0 | I190: =IF(AND(A190<=$B$20,$S$15),$T$15,0) -> 0 | J190: =IF(AND(A190<=$B$20,$S$16),$T$16,0) -> 0 | K190: =IF(AND(A190<=$B$20,$S$17),$T$17,0) -> 0 | L190: =IF(AND(A190<=$B$20,$S$18),$T$18,0) -> 0 | M190: 0 | N190: 0 | O190: 0 | P190: 0 | Q190: 0 | R190: 0 | S190: 0 | T190: 0 | U190: 0 | V190: 0 | W190: 0 | X190: 0 | Y190: 0
A191: 160 | B191: =OFFSET(InputPriceData!B$10,CalculationsAndCharts!$A191+$A$11,0,1,1) -> 2012-03-09 | C191: =OFFSET(InputPriceData!G$10,CalculationsAndCharts!$A191+$A$11,0,1,1) -> 103199848 | D191: =OFFSET(InputPriceData!C$10,CalculationsAndCharts!$A191+$A$11,0,1,1) -> 12908.62 | E191: =OFFSET(InputPriceData!D$10,CalculationsAndCharts!$A191+$A$11,0,1,1) -> 12968.79 | F191: =OFFSET(InputPriceData!E$10,CalculationsAndCharts!$A191+$A$11,0,1,1) -> 12906.43 | G191: =OFFSET(InputPriceData!F$10,CalculationsAndCharts!$A191+$A$11,0,1,1) -> 12922.02 | H191: =IF(AND(A191<=$B$20,$S$14),$T$14,0) -> 0 | I191: =IF(AND(A191<=$B$20,$S$15),$T$15,0) -> 0 | J191: =IF(AND(A191<=$B$20,$S$16),$T$16,0) -> 0 | K191: =IF(AND(A191<=$B$20,$S$17),$T$17,0) -> 0 | L191: =IF(AND(A191<=$B$20,$S$18),$T$18,0) -> 0 | M191: 0 | N191: 0 | O191: 0 | P191: 0 | Q191: 0 | R191: 0 | S191: 0 | T191: 0 | U191: 0 | V191: 0 | W191: 0 | X191: 0 | Y191: 0
A192: 161 | B192: =OFFSET(InputPriceData!B$10,CalculationsAndCharts!$A192+$A$11,0,1,1) -> 2012-03-08 | C192: =OFFSET(InputPriceData!G$10,CalculationsAndCharts!$A192+$A$11,0,1,1) -> 103490039 | D192: =OFFSET(InputPriceData!C$10,CalculationsAndCharts!$A192+$A$11,0,1,1) -> 12835.53 | E192: =OFFSET(InputPriceData!D$10,CalculationsAndCharts!$A192+$A$11,0,1,1) -> 12937.19 | F192: =OFFSET(InputPriceData!E$10,CalculationsAndCharts!$A192+$A$11,0,1,1) -> 12835.53 | G192: =OFFSET(InputPriceData!F$10,CalculationsAndCharts!$A192+$A$11,0,1,1) -> 12907.94 | H192: =IF(AND(A192<=$B$20,$S$14),$T$14,0) -> 0 | I192: =IF(AND(A192<=$B$20,$S$15),$T$15,0) -> 0 | J192: =IF(AND(A192<=$B$20,$S$16),$T$16,0) -> 0 | K192: =IF(AND(A192<=$B$20,$S$17),$T$17,0) -> 0 | L192: =IF(AND(A192<=$B$20,$S$18),$T$18,0) -> 0 | M192: 0 | N192: 0 | O192: 0 | P192: 0 | Q192: 0 | R192: 0 | S192: 0 | T192: 0 | U192: 0 | V192: 0 | W192: 0 | X192: 0 | Y192: 0
A193: 162 | B193: =OFFSET(InputPriceData!B$10,CalculationsAndCharts!$A193+$A$11,0,1,1) -> 2012-03-07 | C193: =OFFSET(InputPriceData!G$10,CalculationsAndCharts!$A193+$A$11,0,1,1) -> 175083976 | D193: =OFFSET(InputPriceData!C$10,CalculationsAndCharts!$A193+$A$11,0,1,1) -> 12756.12 | E193: =OFFSET(InputPriceData!D$10,CalculationsAndCharts!$A193+$A$11,0,1,1) -> 12857.73 | F193: =OFFSET(InputPriceData!E$10,CalculationsAndCharts!$A193+$A$11,0,1,1) -> 12751.51 | G193: =OFFSET(InputPriceData!F$10,CalculationsAndCharts!$A193+$A$11,0,1,1) -> 12837.33 | H193: =IF(AND(A193<=$B$20,$S$14),$T$14,0) -> 0 | I193: =IF(AND(A193<=$B$20,$S$15),$T$15,0) -> 0 | J193: =IF(AND(A193<=$B$20,$S$16),$T$16,0) -> 0 | K193: =IF(AND(A193<=$B$20,$S$17),$T$17,0) -> 0 | L193: =IF(AND(A193<=$B$20,$S$18),$T$18,0) -> 0 | M193: 0 | N193: 0 | O193: 0 | P193: 0 | Q193: 0 | R193: 0 | S193: 0 | T193: 0 | U193: 0 | V193: 0 | W193: 0 | X193: 0 | Y193: 0
A194: 163 | B194: =OFFSET(InputPriceData!B$10,CalculationsAndCharts!$A194+$A$11,0,1,1) -> 2012-03-06 | C194: =OFFSET(InputPriceData!G$10,CalculationsAndCharts!$A194+$A$11,0,1,1) -> 142313881 | D194: =OFFSET(InputPriceData!C$10,CalculationsAndCharts!$A194+$A$11,0,1,1) -> 12958.65 | E194: =OFFSET(InputPriceData!D$10,CalculationsAndCharts!$A194+$A$11,0,1,1) -> 12958.73 | F194: =OFFSET(InputPriceData!E$10,CalculationsAndCharts!$A194+$A$11,0,1,1) -> 12734.86 | G194: =OFFSET(InputPriceData!F$10,CalculationsAndCharts!$A194+$A$11,0,1,1) -> 12759.15 | H194: =IF(AND(A194<=$B$20,$S$14),$T$14,0) -> 0 | I194: =IF(AND(A194<=$B$20,$S$15),$T$15,0) -> 0 | J194: =IF(AND(A194<=$B$20,$S$16),$T$16,0) -> 0 | K194: =IF(AND(A194<=$B$20,$S$17),$T$17,0) -> 0 | L194: =IF(AND(A194<=$B$20,$S$18),$T$18,0) -> 0 | M194: 0 | N194: 0 | O194: 0 | P194: 0 | Q194: 0 | R194: 0 | S194: 0 | T194: 0 | U194: 0 | V194: 0 | W194: 0 | X194: 0 | Y194: 0
A195: 164 | B195: =OFFSET(InputPriceData!B$10,CalculationsAndCharts!$A195+$A$11,0,1,1) -> 2012-03-05 | C195: =OFFSET(InputPriceData!G$10,CalculationsAndCharts!$A195+$A$11,0,1,1) -> 108602838 | D195: =OFFSET(InputPriceData!C$10,CalculationsAndCharts!$A195+$A$11,0,1,1) -> 12977.34 | E195: =OFFSET(InputPriceData!D$10,CalculationsAndCharts!$A195+$A$11,0,1,1) -> 12977.34 | F195: =OFFSET(InputPriceData!E$10,CalculationsAndCharts!$A195+$A$11,0,1,1) -> 12883.91 | G195: =OFFSET(InputPriceData!F$10,CalculationsAndCharts!$A195+$A$11,0,1,1) -> 12962.81 | H195: =IF(AND(A195<=$B$20,$S$14),$T$14,0) -> 0 | I195: =IF(AND(A195<=$B$20,$S$15),$T$15,0) -> 0 | J195: =IF(AND(A195<=$B$20,$S$16),$T$16,0) -> 0 | K195: =IF(AND(A195<=$B$20,$S$17),$T$17,0) -> 0 | L195: =IF(AND(A195<=$B$20,$S$18),$T$18,0) -> 0 | M195: 0 | N195: 0 | O195: 0 | P195: 0 | Q195: 0 | R195: 0 | S195: 0 | T195: 0 | U195: 0 | V195: 0 | W195: 0 | X195: 0 | Y195: 0
A196: 165 | B196: =OFFSET(InputPriceData!B$10,CalculationsAndCharts!$A196+$A$11,0,1,1) -> 2012-03-02 | C196: =OFFSET(InputPriceData!G$10,CalculationsAndCharts!$A196+$A$11,0,1,1) -> 93839580 | D196: =OFFSET(InputPriceData!C$10,CalculationsAndCharts!$A196+$A$11,0,1,1) -> 12980.75 | E196: =OFFSET(InputPriceData!D$10,CalculationsAndCharts!$A196+$A$11,0,1,1) -> 12997.51 | F196: =OFFSET(InputPriceData!E$10,CalculationsAndCharts!$A196+$A$11,0,1,1) -> 12927.77 | G196: =OFFSET(InputPriceData!F$10,CalculationsAndCharts!$A196+$A$11,0,1,1) -> 12977.57 | H196: =IF(AND(A196<=$B$20,$S$14),$T$14,0) -> 0 | I196: =IF(AND(A196<=$B$20,$S$15),$T$15,0) -> 0 | J196: =IF(AND(A196<=$B$20,$S$16),$T$16,0) -> 0 | K196: =IF(AND(A196<=$B$20,$S$17),$T$17,0) -> 0 | L196: =IF(AND(A196<=$B$20,$S$18),$T$18,0) -> 0 | M196: 0 | N196: 0 | O196: 0 | P196: 0 | Q196: 0 | R196: 0 | S196: 0 | T196: 0 | U196: 0 | V196: 0 | W196: 0 | X196: 0 | Y196: 0
A197: 166 | B197: =OFFSET(InputPriceData!B$10,CalculationsAndCharts!$A197+$A$11,0,1,1) -> 2012-03-01 | C197: =OFFSET(InputPriceData!G$10,CalculationsAndCharts!$A197+$A$11,0,1,1) -> 139143390 | D197: =OFFSET(InputPriceData!C$10,CalculationsAndCharts!$A197+$A$11,0,1,1) -> 12952.29 | E197: =OFFSET(InputPriceData!D$10,CalculationsAndCharts!$A197+$A$11,0,1,1) -> 13032.67 | F197: =OFFSET(InputPriceData!E$10,CalculationsAndCharts!$A197+$A$11,0,1,1) -> 12943.06 | G197: =OFFSET(InputPriceData!F$10,CalculationsAndCharts!$A197+$A$11,0,1,1) -> 12980.3 | H197: =IF(AND(A197<=$B$20,$S$14),$T$14,0) -> 0 | I197: =IF(AND(A197<=$B$20,$S$15),$T$15,0) -> 0 | J197: =IF(AND(A197<=$B$20,$S$16),$T$16,0) -> 0 | K197: =IF(AND(A197<=$B$20,$S$17),$T$17,0) -> 0 | L197: =IF(AND(A197<=$B$20,$S$18),$T$18,0) -> 0 | M197: 0 | N197: 0 | O197: 0 | P197: 0 | Q197: 0 | R197: 0 | S197: 0 | T197: 0 | U197: 0 | V197: 0 | W197: 0 | X197: 0 | Y197: 0
A198: 167 | B198: =OFFSET(InputPriceData!B$10,CalculationsAndCharts!$A198+$A$11,0,1,1) -> 2012-02-29 | C198: =OFFSET(InputPriceData!G$10,CalculationsAndCharts!$A198+$A$11,0,1,1) -> 182451078 | D198: =OFFSET(InputPriceData!C$10,CalculationsAndCharts!$A198+$A$11,0,1,1) -> 13005.42 | E198: =OFFSET(InputPriceData!D$10,CalculationsAndCharts!$A198+$A$11,0,1,1) -> 13055.75 | F198: =OFFSET(InputPriceData!E$10,CalculationsAndCharts!$A198+$A$11,0,1,1) -> 12929.66 | G198: =OFFSET(InputPriceData!F$10,CalculationsAndCharts!$A198+$A$11,0,1,1) -> 12952.07 | H198: =IF(AND(A198<=$B$20,$S$14),$T$14,0) -> 0 | I198: =IF(AND(A198<=$B$20,$S$15),$T$15,0) -> 0 | J198: =IF(AND(A198<=$B$20,$S$16),$T$16,0) -> 0 | K198: =IF(AND(A198<=$B$20,$S$17),$T$17,0) -> 0 | L198: =IF(AND(A198<=$B$20,$S$18),$T$18,0) -> 0 | M198: 0 | N198: 0 | O198: 0 | P198: 0 | Q198: 0 | R198: 0 | S198: 0 | T198: 0 | U198: 0 | V198: 0 | W198: 0 | X198: 0 | Y198: 0
A199: 168 | B199: =OFFSET(InputPriceData!B$10,CalculationsAndCharts!$A199+$A$11,0,1,1) -> 2012-02-28 | C199: =OFFSET(InputPriceData!G$10,CalculationsAndCharts!$A199+$A$11,0,1,1) -> 114253764 | D199: =OFFSET(InputPriceData!C$10,CalculationsAndCharts!$A199+$A$11,0,1,1) -> 12976.74 | E199: =OFFSET(InputPriceData!D$10,CalculationsAndCharts!$A199+$A$11,0,1,1) -> 13021.51 | F199: =OFFSET(InputPriceData!E$10,CalculationsAndCharts!$A199+$A$11,0,1,1) -> 12952.82 | G199: =OFFSET(InputPriceData!F$10,CalculationsAndCharts!$A199+$A$11,0,1,1) -> 13005.12 | H199: =IF(AND(A199<=$B$20,$S$14),$T$14,0) -> 0 | I199: =IF(AND(A199<=$B$20,$S$15),$T$15,0) -> 0 | J199: =IF(AND(A199<=$B$20,$S$16),$T$16,0) -> 0 | K199: =IF(AND(A199<=$B$20,$S$17),$T$17,0) -> 0 | L199: =IF(AND(A199<=$B$20,$S$18),$T$18,0) -> 0 | M199: 0 | N199: 0 | O199: 0 | P199: 0 | Q199: 0 | R199: 0 | S199: 0 | T199: 0 | U199: 0 | V199: 0 | W199: 0 | X199: 0 | Y199: 0
A200: 169 | B200: =OFFSET(InputPriceData!B$10,CalculationsAndCharts!$A200+$A$11,0,1,1) -> 2012-02-27 | C200: =OFFSET(InputPriceData!G$10,CalculationsAndCharts!$A200+$A$11,0,1,1) -> 143219994 | D200: =OFFSET(InputPriceData!C$10,CalculationsAndCharts!$A200+$A$11,0,1,1) -> 12981.13 | E200: =OFFSET(InputPriceData!D$10,CalculationsAndCharts!$A200+$A$11,0,1,1) -> 13027.52 | F200: =OFFSET(InputPriceData!E$10,CalculationsAndCharts!$A200+$A$11,0,1,1) -> 12882.59 | G200: =OFFSET(InputPriceData!F$10,CalculationsAndCharts!$A200+$A$11,0,1,1) -> 12981.51 | H200: =IF(AND(A200<=$B$20,$S$14),$T$14,0) -> 0 | I200: =IF(AND(A200<=$B$20,$S$15),$T$15,0) -> 0 | J200: =IF(AND(A200<=$B$20,$S$16),$T$16,0) -> 0 | K200: =IF(AND(A200<=$B$20,$S$17),$T$17,0) -> 0 | L200: =IF(AND(A200<=$B$20,$S$18),$T$18,0) -> 0 | M200: 0 | N200: 0 | O200: 0 | P200: 0 | Q200: 0 | R200: 0 | S200: 0 | T200: 0 | U200: 0 | V200: 0 | W200: 0 | X200: 0 | Y200: 0
A201: 170 | B201: =OFFSET(InputPriceData!B$10,CalculationsAndCharts!$A201+$A$11,0,1,1) -> 2012-02-24 | C201: =OFFSET(InputPriceData!G$10,CalculationsAndCharts!$A201+$A$11,0,1,1) -> 89429935 | D201: =OFFSET(InputPriceData!C$10,CalculationsAndCharts!$A201+$A$11,0,1,1) -> 12981.2 | E201: =OFFSET(InputPriceData!D$10,CalculationsAndCharts!$A201+$A$11,0,1,1) -> 13013.82 | F201: =OFFSET(InputPriceData!E$10,CalculationsAndCharts!$A201+$A$11,0,1,1) -> 12950.59 | G201: =OFFSET(InputPriceData!F$10,CalculationsAndCharts!$A201+$A$11,0,1,1) -> 12982.95 | H201: =IF(AND(A201<=$B$20,$S$14),$T$14,0) -> 0 | I201: =IF(AND(A201<=$B$20,$S$15),$T$15,0) -> 0 | J201: =IF(AND(A201<=$B$20,$S$16),$T$16,0) -> 0 | K201: =IF(AND(A201<=$B$20,$S$17),$T$17,0) -> 0 | L201: =IF(AND(A201<=$B$20,$S$18),$T$18,0) -> 0 | M201: 0 | N201: 0 | O201: 0 | P201: 0 | Q201: 0 | R201: 0 | S201: 0 | T201: 0 | U201: 0 | V201: 0 | W201: 0 | X201: 0 | Y201: 0
A202: 171 | B202: =OFFSET(InputPriceData!B$10,CalculationsAndCharts!$A202+$A$11,0,1,1) -> 2012-02-23 | C202: =OFFSET(InputPriceData!G$10,CalculationsAndCharts!$A202+$A$11,0,1,1) -> 120437812 | D202: =OFFSET(InputPriceData!C$10,CalculationsAndCharts!$A202+$A$11,0,1,1) -> 12937.08 | E202: =OFFSET(InputPriceData!D$10,CalculationsAndCharts!$A202+$A$11,0,1,1) -> 12996.08 | F202: =OFFSET(InputPriceData!E$10,CalculationsAndCharts!$A202+$A$11,0,1,1) -> 12882.67 | G202: =OFFSET(InputPriceData!F$10,CalculationsAndCharts!$A202+$A$11,0,1,1) -> 12984.69 | H202: =IF(AND(A202<=$B$20,$S$14),$T$14,0) -> 0 | I202: =IF(AND(A202<=$B$20,$S$15),$T$15,0) -> 0 | J202: =IF(AND(A202<=$B$20,$S$16),$T$16,0) -> 0 | K202: =IF(AND(A202<=$B$20,$S$17),$T$17,0) -> 0 | L202: =IF(AND(A202<=$B$20,$S$18),$T$18,0) -> 0 | M202: 0 | N202: 0 | O202: 0 | P202: 0 | Q202: 0 | R202: 0 | S202: 0 | T202: 0 | U202: 0 | V202: 0 | W202: 0 | X202: 0 | Y202: 0
A203: 172 | B203: =OFFSET(InputPriceData!B$10,CalculationsAndCharts!$A203+$A$11,0,1,1) -> 2012-02-22 | C203: =OFFSET(InputPriceData!G$10,CalculationsAndCharts!$A203+$A$11,0,1,1) -> 124175846 | D203: =OFFSET(InputPriceData!C$10,CalculationsAndCharts!$A203+$A$11,0,1,1) -> 12966.22 | E203: =OFFSET(InputPriceData!D$10,CalculationsAndCharts!$A203+$A$11,0,1,1) -> 12977.91 | F203: =OFFSET(InputPriceData!E$10,CalculationsAndCharts!$A203+$A$11,0,1,1) -> 12914.83 | G203: =OFFSET(InputPriceData!F$10,CalculationsAndCharts!$A203+$A$11,0,1,1) -> 12938.67 | H203: =IF(AND(A203<=$B$20,$S$14),$T$14,0) -> 0 | I203: =IF(AND(A203<=$B$20,$S$15),$T$15,0) -> 0 | J203: =IF(AND(A203<=$B$20,$S$16),$T$16,0) -> 0 | K203: =IF(AND(A203<=$B$20,$S$17),$T$17,0) -> 0 | L203: =IF(AND(A203<=$B$20,$S$18),$T$18,0) -> 0 | M203: 0 | N203: 0 | O203: 0 | P203: 0 | Q203: 0 | R203: 0 | S203: 0 | T203: 0 | U203: 0 | V203: 0 | W203: 0 | X203: 0 | Y203: 0
... 669 more rows
